Authority,Department,Spending Area,Expense Type,Posting Date,Reference,Amount,Supplier
OXFORDSHIRE CC,"CHILDRENS, YOUNG PEOPLE AND FAMILIES",FAMILY SOLUTIONS PLUS NON-STAFF - NORTH,PAYMENTS TO TRANSPORT OPERATORS,28/01/2022,9897363171,5.81,THETRAINLINE.COM
OXFORDSHIRE CC,"CHILDRENS, YOUNG PEOPLE AND FAMILIES","	LEAVING CARE CITY 1",TRAINING RELATED EXPENDITURE,28/01/2022,9897363215,39.5,EB  YOUTH IN MIND CONF
OXFORDSHIRE CC,"CHILDRENS, YOUNG PEOPLE AND FAMILIES","	LEAVING CARE CITY 1",TELEPHONE - EQUIPMENT,28/01/2022,9897363217,21.99,TESCO STORE 2994
OXFORDSHIRE CC,SOCIAL AND COMMUNITY SERVICES,CICC,PAYMENTS TO TRANSPORT OPERATORS,28/01/2022,9897363229,9.17,THETRAINLINE.COM
OXFORDSHIRE CC,SOCIAL AND COMMUNITY SERVICES,CICC,PAYMENTS TO TRANSPORT OPERATORS,28/01/2022,9897363233,9.17,THETRAINLINE.COM
OXFORDSHIRE CC,SOCIAL AND COMMUNITY SERVICES,CSS - BANBURY,MATERIALS,28/01/2022,9897363255,34.22,AMZNMKTPLACE
OXFORDSHIRE CC,SOCIAL AND COMMUNITY SERVICES,CSS WALLINGFORD,CATERING PROVISIONS,28/01/2022,9897363271,5.5,WAITROSE 675
OXFORDSHIRE CC,"CHILDRENS, YOUNG PEOPLE AND FAMILIES",THAME E&A HOME,MATERIALS,28/01/2022,9897362641,52.95,AMZNMKTPLACE
OXFORDSHIRE CC,"CHILDRENS, YOUNG PEOPLE AND FAMILIES","	ALTERNATIVES TO CARE",MATERIALS,28/01/2022,9897362647,84.1,AMZNMKTPLACE AMAZON.CO
OXFORDSHIRE CC,"CHILDRENS, YOUNG PEOPLE AND FAMILIES",WITNEY,CATERING PROVISIONS,28/01/2022,9897362683,7.87,ASDA STORES 4920
OXFORDSHIRE CC,CORPORATE CORE,"	ORGANISATIONAL DEV'T",MATERIALS,28/01/2022,9897364475,106.5,ONE4ALL
OXFORDSHIRE CC,"CHILDRENS, YOUNG PEOPLE AND FAMILIES","	RIVERSIDE CENTRE",PAYMENTS TO VOLUNTARY BODIES,28/01/2022,9897364491,276,ST JOHN AMBULANCE
OXFORDSHIRE CC,"CHILDRENS, YOUNG PEOPLE AND FAMILIES","	RIVERSIDE CENTRE",PAYMENTS TO VOLUNTARY BODIES,28/01/2022,9897364495,-276,ST JOHN AMBULANCE
OXFORDSHIRE CC,"CHILDRENS, YOUNG PEOPLE AND FAMILIES","	OCCG GRANT",CATERING PROVISIONS,28/01/2022,9897364525,14.54,ALDI STORES 775-142
OXFORDSHIRE CC,SOCIAL AND COMMUNITY SERVICES,CSS - ABINGDON,CATERING PROVISIONS,28/01/2022,9897362695,32.12,TESCO STORES 2008
OXFORDSHIRE CC,"CHILDRENS, YOUNG PEOPLE AND FAMILIES",UASC 16&17,CLOTHING AND UNIFORMS,28/01/2022,9897362799,82.99,SPORTSDIRECT 218
OXFORDSHIRE CC,ENVIRONMENT AND ECONOMY,HARD FM,HARDWARE AND CROCKERY,28/01/2022,9897362923,55.91,B AND Q
OXFORDSHIRE CC,"CHILDRENS, YOUNG PEOPLE AND FAMILIES","	LEAVING CARE CITY 1",MATERIALS,28/01/2022,9897362963,162.95,ARGOS LTD
OXFORDSHIRE CC,"CHILDRENS, YOUNG PEOPLE AND FAMILIES","	LEAVING CARE CITY 1",MATERIALS,28/01/2022,9897362967,152.94,ARGOS LTD
OXFORDSHIRE CC,"CHILDRENS, YOUNG PEOPLE AND FAMILIES","	LEAVING CARE CITY 1",MATERIALS,28/01/2022,9897362971,232.95,ARGOS LTD
OXFORDSHIRE CC,"CHILDRENS, YOUNG PEOPLE AND FAMILIES","	LEAVING CARE CITY 1",MATERIALS,28/01/2022,9897362977,192.94,ARGOS LTD
OXFORDSHIRE CC,"CHILDRENS, YOUNG PEOPLE AND FAMILIES","	LEAVING CARE CITY 1",MATERIALS,28/01/2022,9897362981,181.95,ARGOS LTD
OXFORDSHIRE CC,"CHILDRENS, YOUNG PEOPLE AND FAMILIES","	LEAVING CARE CITY 1",MATERIALS,28/01/2022,9897362985,79.99,ARGOS LTD
OXFORDSHIRE CC,"CHILDRENS, YOUNG PEOPLE AND FAMILIES","	LEAVING CARE CITY 1",MATERIALS,28/01/2022,9897362991,192.95,ARGOS LTD
OXFORDSHIRE CC,ENVIRONMENT AND ECONOMY,"	FLEET OPERATIONS",ROAD FUND LICENCES AND MOTS,28/01/2022,9897364651,277.5,DVLA VEHICLE TAX
OXFORDSHIRE CC,ENVIRONMENT AND ECONOMY,"	FLEET OPERATIONS",ROAD FUND LICENCES AND MOTS,28/01/2022,9897364655,282.5,DVLA VEHICLE TAX
OXFORDSHIRE CC,SOCIAL AND COMMUNITY SERVICES,"	EMERGENCY DUTY TEAM",HIRE OF ACCOMMODATION AND FACILITIES,28/01/2022,9897364677,67.05,TRAVELODGE
OXFORDSHIRE CC,"CHILDRENS, YOUNG PEOPLE AND FAMILIES","	FAM SUPP CITY 1",MATERIALS,28/01/2022,9897363027,27.09,AMZNMKTPLACE
OXFORDSHIRE CC,"CHILDRENS, YOUNG PEOPLE AND FAMILIES",CNTL ERLY HELP-BBLEY,POSTAGE AND DELIVERY,28/01/2022,9897363105,15.3,POST OFFICE COUNTER
OXFORDSHIRE CC,"CHILDRENS, YOUNG PEOPLE AND FAMILIES","	LEAVING CARE NORTH",CATERING PROVISIONS,28/01/2022,9897363121,30,ASDA STORES LTD
OXFORDSHIRE CC,"CHILDRENS, YOUNG PEOPLE AND FAMILIES",CHILDREN IN CARE NON-STAFFING - CENTRL 2,PAYMENT TO GOVERNMENT DEPARTMENTS,28/01/2022,9897363131,11,OXFORDSHIRE CC MOTO1
OXFORDSHIRE CC,"CHILDRENS, YOUNG PEOPLE AND FAMILIES",PAUSE PROGRAMME,CATERING,28/01/2022,9897363781,8.18,MCDONALDS
OXFORDSHIRE CC,"CHILDRENS, YOUNG PEOPLE AND FAMILIES","	LAC PUPIL PREMIUM",MATERIALS,28/01/2022,9897363793,37.85,AMZNMKTPLACE AMAZON.CO
OXFORDSHIRE CC,"CHILDRENS, YOUNG PEOPLE AND FAMILIES","	LAC PUPIL PREMIUM",MATERIALS,28/01/2022,9897363799,23.57,AMZNMKTPLACE
OXFORDSHIRE CC,"CHILDRENS, YOUNG PEOPLE AND FAMILIES",THAME E&A HOME,SUBSCRIPTIONS,28/01/2022,9897363839,21.74,HOLLYWOOD BOWL
OXFORDSHIRE CC,"CHILDRENS, YOUNG PEOPLE AND FAMILIES",WITNEY,CATERING PROVISIONS,28/01/2022,9897363899,4.5,CO-OP GROUP 070582
OXFORDSHIRE CC,"CHILDRENS, YOUNG PEOPLE AND FAMILIES",WITNEY,CATERING PROVISIONS,28/01/2022,9897363903,10.6,CO-OP GROUP 070582
OXFORDSHIRE CC,"CHILDRENS, YOUNG PEOPLE AND FAMILIES",WITNEY,CATERING PROVISIONS,28/01/2022,9897363905,11.65,CO-OP GROUP 070582
OXFORDSHIRE CC,SOCIAL AND COMMUNITY SERVICES,CSS - OXFORD,CATERING PROVISIONS,28/01/2022,9897363913,21.2,ALDI STORES 775-142
OXFORDSHIRE CC,CORPORATE CORE,SCHOOLS FM CATERING AREA 4,CATERING PROVISIONS,28/01/2022,9897363941,3.95,SAINSBURYS S/MKTS
OXFORDSHIRE CC,"CHILDRENS, YOUNG PEOPLE AND FAMILIES","	LEAVING CARE SOUTH",PAYMENT TO GOVERNMENT DEPARTMENTS,28/01/2022,9897363949,3.9,WAVERLEY BOROUGH COUNC
OXFORDSHIRE CC,"CHILDRENS, YOUNG PEOPLE AND FAMILIES","	LEAVING CARE SOUTH",CATERING,28/01/2022,9897363955,6.2,STARBUCKS
OXFORDSHIRE CC,"CHILDRENS, YOUNG PEOPLE AND FAMILIES","	LEAVING CARE CITY 2",CATERING,28/01/2022,9897363971,10.16,MCDONALDS 064
OXFORDSHIRE CC,"CHILDRENS, YOUNG PEOPLE AND FAMILIES","DIDCOT CC, PARK ROAD",CATERING PROVISIONS,28/01/2022,9897363999,2.3,SAINSBURYS S/MKTS
OXFORDSHIRE CC,"CHILDRENS, YOUNG PEOPLE AND FAMILIES","	OCCG GRANT",CATERING PROVISIONS,28/01/2022,9897364041,10.5,SAINSBURY'S S/MKT
OXFORDSHIRE CC,"CHILDRENS, YOUNG PEOPLE AND FAMILIES","	OCCG GRANT",VEHICLE FUEL,28/01/2022,9897364047,6.08,TESCO PFS 2488
OXFORDSHIRE CC,"CHILDRENS, YOUNG PEOPLE AND FAMILIES",HOUSE PROJECT,CATERING PROVISIONS,28/01/2022,9897364071,26.7,SAINSBURYS S/MKTS
OXFORDSHIRE CC,"CHILDRENS, YOUNG PEOPLE AND FAMILIES",DIDCOT MOVE-ON HOME,CATERING PROVISIONS,28/01/2022,9897364077,21.32,SAINSBURYS SMKT
OXFORDSHIRE CC,"CHILDRENS, YOUNG PEOPLE AND FAMILIES",DIDCOT MOVE-ON HOME,CATERING,28/01/2022,9897364083,12.11,BURGER KING  BICESTER
OXFORDSHIRE CC,"CHILDRENS, YOUNG PEOPLE AND FAMILIES",DIDCOT MOVE-ON HOME,CATERING,28/01/2022,9897364085,10.5,STARBUCKS COFFEE
OXFORDSHIRE CC,"CHILDRENS, YOUNG PEOPLE AND FAMILIES",FAMILY SOLUTIONS PLUS NON-STAFF � SOUTH,PAYMENTS TO TRANSPORT OPERATORS,28/01/2022,9897364097,17.17,TRAINLINE.COM
OXFORDSHIRE CC,ENVIRONMENT AND ECONOMY,"	KNIGHTS COURT",CATERING PROVISIONS,28/01/2022,9897364145,3.7,SAINSBURYS S/MKTS
OXFORDSHIRE CC,ENVIRONMENT AND ECONOMY,"	NAT TRAILS GENERAL",CATERING PROVISIONS,28/01/2022,9897364169,3.24,CO OPERATIVE FOOD
OXFORDSHIRE CC,"CHILDRENS, YOUNG PEOPLE AND FAMILIES",PAUSE PROGRAMME,CATERING PROVISIONS,28/01/2022,9897364175,1.95,SAINSBURYS S/MKTS
OXFORDSHIRE CC,"CHILDRENS, YOUNG PEOPLE AND FAMILIES",PAUSE PROGRAMME,CATERING PROVISIONS,28/01/2022,9897364179,2.9,SAINSBURYS SMKT
OXFORDSHIRE CC,CORPORATE CORE,"MARKETING, COMMUNICATIONS & ENGAGEMENT","PUBLICITY, PROMOTIONS AND ADVERTISEMENT",28/01/2022,9897364241,6.2,SNAP INC SNAP SNAP ADS
OXFORDSHIRE CC,ENVIRONMENT AND ECONOMY,"	WASTE MNGMNT GEN",MATERIALS,28/01/2022,9897364345,26.49,AMZNMKTPLACE
OXFORDSHIRE CC,SOCIAL AND COMMUNITY SERVICES,CSS - OXFORD,POSTAGE AND DELIVERY,28/01/2022,9897364381,2.69,POST OFFICE COUNTER
OXFORDSHIRE CC,ENVIRONMENT AND ECONOMY,THE RIDGEWAY,MATERIALS,28/01/2022,9897363323,30.19,WWW.INSTANTPRINT.C
OXFORDSHIRE CC,"CHILDRENS, YOUNG PEOPLE AND FAMILIES",TRANSPORT COSTS,PAYMENTS TO TRANSPORT OPERATORS,28/01/2022,9897363327,165.96,WWW.TRAVELUP.COM
OXFORDSHIRE CC,"CHILDRENS, YOUNG PEOPLE AND FAMILIES","	RIVERSIDE CENTRE",CATERING PROVISIONS,28/01/2022,9897363353,1.55,TESCO STORES 4377
OXFORDSHIRE CC,"CHILDRENS, YOUNG PEOPLE AND FAMILIES",KINGFISHER,POSTAGE AND DELIVERY,28/01/2022,9897363375,6.85,POST OFFICE COUNTER
OXFORDSHIRE CC,"CHILDRENS, YOUNG PEOPLE AND FAMILIES",KINGFISHER,PAYMENT TO GOVERNMENT DEPARTMENTS,28/01/2022,9897363381,80.5,HM PASSPORT OFFICE
OXFORDSHIRE CC,"CHILDRENS, YOUNG PEOPLE AND FAMILIES",DIDCOT MOVE-ON HOME,CATERING,28/01/2022,9897364955,39.91,LITTLE INDIA PORTABLE
OXFORDSHIRE CC,"CHILDRENS, YOUNG PEOPLE AND FAMILIES","	LOOKED AFTER CITY 2",OTHER TRANSPORT ARRANGEMENTS,28/01/2022,9897364975,135,IZ  ROYAL CARS OXF
OXFORDSHIRE CC,"CHILDRENS, YOUNG PEOPLE AND FAMILIES",EYNSHAM,CATERING PROVISIONS,28/01/2022,9897365061,4.6,CO-OPERATIVE FOOD
OXFORDSHIRE CC,"CHILDRENS, YOUNG PEOPLE AND FAMILIES",UASC 16&17,RESIDENTIAL ACTIVITIES,28/01/2022,9897365063,13.99,THE GYM LIMITED
OXFORDSHIRE CC,"CHILDRENS, YOUNG PEOPLE AND FAMILIES",UASC 16&17,RESIDENTIAL ACTIVITIES,28/01/2022,9897365065,13.99,THE GYM LIMITED
OXFORDSHIRE CC,"CHILDRENS, YOUNG PEOPLE AND FAMILIES",UASC 16&17,OTHER EXPENSES,28/01/2022,9897365067,32.97,AMZNMKTPLACE
OXFORDSHIRE CC,"CHILDRENS, YOUNG PEOPLE AND FAMILIES",CHILDREN IN CARE NON-STAFFING - SOUTH,PAYMENT TO GOVERNMENT DEPARTMENTS,28/01/2022,9897365083,23,DVSA
OXFORDSHIRE CC,"CHILDRENS, YOUNG PEOPLE AND FAMILIES","	HOME SUPPORT",CATERING PROVISIONS,28/01/2022,9897363399,18.95,SAINSBURYS S/MKTS
OXFORDSHIRE CC,"CHILDRENS, YOUNG PEOPLE AND FAMILIES",40 THE MOORS,CATERING PROVISIONS,28/01/2022,9897363421,8.47,TESCO STORE 2788
OXFORDSHIRE CC,"CHILDRENS, YOUNG PEOPLE AND FAMILIES",40 THE MOORS,VEHICLE FUEL,28/01/2022,9897363461,8.81,BP WOODSTOCK F/STN
OXFORDSHIRE CC,"CHILDRENS, YOUNG PEOPLE AND FAMILIES",C&I BASE ST ANDREWS,MATERIALS,28/01/2022,9897363511,6.99,AMZNMKTPLACE AMAZON.CO
OXFORDSHIRE CC,SOCIAL AND COMMUNITY SERVICES,FLEET OPERATIONS,MANAGEMENT CONSULTANT FEES,28/01/2022,9897365147,159,TVLICENSING.CO.UK
OXFORDSHIRE CC,"CHILDRENS, YOUNG PEOPLE AND FAMILIES",EYNSHAM,MATERIALS,28/01/2022,9897365151,5.48,SP   SUSIE BUTTON
OXFORDSHIRE CC,"CHILDRENS, YOUNG PEOPLE AND FAMILIES",EYNSHAM,MATERIALS,28/01/2022,9897365153,14.93,WWW.WOOLFACTORYONLINE.
OXFORDSHIRE CC,CORPORATE CORE,,STATIONERY,28/01/2022,9897365155,4.91,LYRECO UK LTD
OXFORDSHIRE CC,CORPORATE CORE,,STATIONERY,28/01/2022,9897365159,36.84,LYRECO UK LTD
OXFORDSHIRE CC,CORPORATE CORE,,STATIONERY,28/01/2022,9897365167,15.06,LYRECO UK LTD
OXFORDSHIRE CC,CORPORATE CORE,,STATIONERY,28/01/2022,9897365177,27.83,LYRECO UK LTD
OXFORDSHIRE CC,"CHILDRENS, YOUNG PEOPLE AND FAMILIES",FAMILY SOLUTIONS PLUS NON-STAFF - NORTH,HIRE OF ACCOMMODATION AND FACILITIES,28/01/2022,9897363577,378,PREMIER INN
OXFORDSHIRE CC,"CHILDRENS, YOUNG PEOPLE AND FAMILIES","	OCCG GRANT",CATERING PROVISIONS,28/01/2022,9897363621,14,B&M 236 - COWLEY
OXFORDSHIRE CC,"CHILDRENS, YOUNG PEOPLE AND FAMILIES","	OCCG GRANT",MATERIALS,28/01/2022,9897363629,7.84,CARD FACTORY
OXFORDSHIRE CC,"CHILDRENS, YOUNG PEOPLE AND FAMILIES","	LEAVING CARE CITY 1","SUPPLIES, STATIONERY AND MATERIALS",28/01/2022,9897363641,39.5,EB  YOUTH IN MIND CONF
OXFORDSHIRE CC,"CHILDRENS, YOUNG PEOPLE AND FAMILIES","	LOOKED AFTER NORTH",CATERING,28/01/2022,9897363669,6.88,MCDONALDS
OXFORDSHIRE CC,CORPORATE CORE,CATERING MANAGEMENT SOFT FM,CATERING,28/01/2022,9897365181,12.22,BRAKES (STORED CARDS)
OXFORDSHIRE CC,CORPORATE CORE,LIBRARY COLLECTIONS,EDUCATIONAL AND VOCATIONAL TRAINING ,28/01/2022,9897363699,39.5,EB  YOUTH IN MIND CONF
OXFORDSHIRE CC,"CHILDRENS, YOUNG PEOPLE AND FAMILIES",UASC POST 18,RESIDENTIAL ACTIVITIES,28/01/2022,9897363737,13.99,THE GYM LIMITED
OXFORDSHIRE CC,"CHILDRENS, YOUNG PEOPLE AND FAMILIES",FIELDWORK UASC,RESIDENTIAL ACTIVITIES,28/01/2022,9897363745,13.99,THE GYM LIMITED
OXFORDSHIRE CC,"CHILDRENS, YOUNG PEOPLE AND FAMILIES",UASC 16&17,RESIDENTIAL ACTIVITIES,28/01/2022,9897363749,13.99,THE GYM LIMITED
OXFORDSHIRE CC,"CHILDRENS, YOUNG PEOPLE AND FAMILIES",FIELDWORK UASC,OTHER TRANSPORT ARRANGEMENTS,28/01/2022,9897363753,34,STGCOACH/CTYLINK
OXFORDSHIRE CC,"CHILDRENS, YOUNG PEOPLE AND FAMILIES",UASC 16&17,OTHER TRANSPORT ARRANGEMENTS,28/01/2022,9897363761,15,STGCOACH/CTYLINK
OXFORDSHIRE CC,"CHILDRENS, YOUNG PEOPLE AND FAMILIES",FIELDWORK UASC,OTHER TRANSPORT ARRANGEMENTS,28/01/2022,9897363761,15,STGCOACH/CTYLINK
OXFORDSHIRE CC,"CHILDRENS, YOUNG PEOPLE AND FAMILIES",UASC 16&17,CATERING,28/01/2022,9897363767,6.84,ROOSTERS PIRI PIRI
OXFORDSHIRE CC,"CHILDRENS, YOUNG PEOPLE AND FAMILIES",FIELDWORK UASC,CATERING,28/01/2022,9897363767,6.84,ROOSTERS PIRI PIRI
OXFORDSHIRE CC,"CHILDRENS, YOUNG PEOPLE AND FAMILIES",FIELDWORK UASC,OTHER TRANSPORT ARRANGEMENTS,28/01/2022,9897363771,-34,STGCOACH/CTYLINK
OXFORDSHIRE CC,CORPORATE CORE,STAFF ENGAGEMENT,CATERING PROVISIONS,27/01/2022,9892687835,841,IMPACT
OXFORDSHIRE CC,ENVIRONMENT AND ECONOMY,"	ROW MAINT",CLOTHING AND UNIFORMS,27/01/2022,9892687841,89.52,WWW.WIGLEYDIY.CO.UK
OXFORDSHIRE CC,ENVIRONMENT AND ECONOMY,"	FLEET OPERATIONS",STATIONERY,27/01/2022,9892687849,1.98,CO-OPERATIVE FOOD
OXFORDSHIRE CC,"CHILDRENS, YOUNG PEOPLE AND FAMILIES",THAME E&A HOME,MATERIALS,27/01/2022,9892687069,20.9,AMAZON.CO.UK CZ9VN5CX5
OXFORDSHIRE CC,CORPORATE CORE,OPERATIONS,EQUIPMENT,27/01/2022,9892687705,-7.99,AMZNMKTPLACE AMAZON.CO
OXFORDSHIRE CC,"CHILDRENS, YOUNG PEOPLE AND FAMILIES",WITNEY,CATERING PROVISIONS,27/01/2022,9892687091,5.25,SAINSBURYS S/MKTS
OXFORDSHIRE CC,"CHILDRENS, YOUNG PEOPLE AND FAMILIES",WITNEY,CATERING PROVISIONS,27/01/2022,9892687095,1.65,SAINSBURYS S/MKTS
OXFORDSHIRE CC,SOCIAL AND COMMUNITY SERVICES,CSS - ABINGDON,MATERIALS,27/01/2022,9892687099,4,POUNDLAND LTD 1366
OXFORDSHIRE CC,SOCIAL AND COMMUNITY SERVICES,CSS - ABINGDON,CATERING PROVISIONS,27/01/2022,9892687103,11.62,WAITROSE 211
OXFORDSHIRE CC,SOCIAL AND COMMUNITY SERVICES,CSS - ABINGDON,CATERING PROVISIONS,27/01/2022,9892687105,10.4,TESCO STORES 6519
OXFORDSHIRE CC,ENVIRONMENT AND ECONOMY,HOLDING CODE FOR REA,HARDWARE AND CROCKERY,27/01/2022,9892687109,16.2,B & Q 1176
OXFORDSHIRE CC,"CHILDRENS, YOUNG PEOPLE AND FAMILIES",KINGFISHER,TRAINING RELATED EXPENDITURE,27/01/2022,9892687115,118.8,WWW.PUBLICPOLICYEXCHAN
OXFORDSHIRE CC,"CHILDRENS, YOUNG PEOPLE AND FAMILIES","	FOSTER CARE RECRUIT","PUBLICITY, PROMOTIONS AND ADVERTISEMENT",27/01/2022,9892687725,900,FYNE ASSOCIATED
OXFORDSHIRE CC,"CHILDRENS, YOUNG PEOPLE AND FAMILIES","	FAMILY & PLACEMENT",MATERIALS,27/01/2022,9892687145,15.99,ARGOS LTD
OXFORDSHIRE CC,"CHILDRENS, YOUNG PEOPLE AND FAMILIES","	LEAVING CARE CITY 1",MATERIALS,27/01/2022,9892687151,234.99,ARGOS LTD
OXFORDSHIRE CC,"CHILDRENS, YOUNG PEOPLE AND FAMILIES","	LEAVING CARE CITY 1",CATERING,27/01/2022,9892687153,4.9,CAFE ROUGE
OXFORDSHIRE CC,"CHILDRENS, YOUNG PEOPLE AND FAMILIES",THAME E&A HOME,PAYMENT TO GOVERNMENT DEPARTMENTS,27/01/2022,9892687121,13,DISCLOSURE & BARRING
OXFORDSHIRE CC,"CHILDRENS, YOUNG PEOPLE AND FAMILIES","	SEN/ICT EQUIPMENT",PURCHASE OF IT EQUIPMENT,27/01/2022,9892687811,16.98,AMAZON.CO.UK 4079N0HW5
OXFORDSHIRE CC,"CHILDRENS, YOUNG PEOPLE AND FAMILIES","	LEAVING CARE NORTH",OTHER TRANSPORT ARRANGEMENTS,27/01/2022,9892687779,28,OXFORDBUS.CO.UK
OXFORDSHIRE CC,SOCIAL AND COMMUNITY SERVICES,CSS WANTAGE,PAYMENTS TO HEALTH AUTHORITIES,27/01/2022,9892687807,25,IZ  JANET LYNN FOO
OXFORDSHIRE CC,"CHILDRENS, YOUNG PEOPLE AND FAMILIES","	FAM SUPP CITY 1",MATERIALS,27/01/2022,9892687161,282,M & M SKIP HIRE
OXFORDSHIRE CC,"CHILDRENS, YOUNG PEOPLE AND FAMILIES",FAMILY SOLUTIONS PLUS NON-STAFF � SOUTH,OTHER TRANSPORT ARRANGEMENTS,27/01/2022,9892687173,141.5,WWW.THEKEY.CO.UK
OXFORDSHIRE CC,CORPORATE CORE,REGISTRAR,CATERING PROVISIONS,27/01/2022,9892687193,4.47,LEWIS BAKER RETAIL LTD
OXFORDSHIRE CC,"CHILDRENS, YOUNG PEOPLE AND FAMILIES",SEND CASEWORK TEAM,POSTAGE AND DELIVERY,27/01/2022,9892687817,10.91,ROYAL MAIL GROUP LTD
OXFORDSHIRE CC,"CHILDRENS, YOUNG PEOPLE AND FAMILIES",SEND CASEWORK TEAM,POSTAGE AND DELIVERY,27/01/2022,9892687821,7.62,ROYAL MAIL GROUP LTD
OXFORDSHIRE CC,ENTERPRISEVC,,CAR LEASING - PRIVATE RENTALS,27/01/2022,9892688133,82.02,ENTERPRISE RENT-A-CAR
OXFORDSHIRE CC,ENTERPRISEVC,,CAR LEASING - PRIVATE RENTALS,27/01/2022,9892688147,47.15,ENTERPRISE RENT-A-CAR
OXFORDSHIRE CC,ENTERPRISEVC,,CAR LEASING - PRIVATE RENTALS,27/01/2022,9892688135,26.75,ENTERPRISE RENT-A-CAR
OXFORDSHIRE CC,ENTERPRISEVC,,CAR LEASING - PRIVATE RENTALS,27/01/2022,9892688151,89.78,ENTERPRISE RENT-A-CAR
OXFORDSHIRE CC,ENTERPRISEVC,,CAR LEASING - PRIVATE RENTALS,27/01/2022,9892688155,71.38,ENTERPRISE RENT-A-CAR
OXFORDSHIRE CC,"CHILDRENS, YOUNG PEOPLE AND FAMILIES",THAME E&A HOME,MATERIALS,27/01/2022,9892687465,44.99,ARGOS LTD
OXFORDSHIRE CC,"CHILDRENS, YOUNG PEOPLE AND FAMILIES",WITNEY,MATERIALS,27/01/2022,9892687497,70,WITNEY INSIDE SAINSBUR
OXFORDSHIRE CC,"CHILDRENS, YOUNG PEOPLE AND FAMILIES","	OCCG GRANT",HARDWARE AND CROCKERY,27/01/2022,9892687473,124,HOMEBASE LTD 091
OXFORDSHIRE CC,"CHILDRENS, YOUNG PEOPLE AND FAMILIES",WITNEY,CLEANING MATERIALS,27/01/2022,9892687501,5.5,SAINSBURYS S/MKTS
OXFORDSHIRE CC,SOCIAL AND COMMUNITY SERVICES,CSS - OXFORD,CATERING PROVISIONS,27/01/2022,9892687503,11.32,ALDI STORES 775-142
OXFORDSHIRE CC,CORPORATE CORE,CATERING MANAGEMENT SOFT FM,CATERING,27/01/2022,9892688161,-7.36,BRAKES (STORED CARDS)
OXFORDSHIRE CC,"CHILDRENS, YOUNG PEOPLE AND FAMILIES",UASC 16&17,OTHER TRANSPORT ARRANGEMENTS,27/01/2022,9892687521,2.8,SIP CARS PARKS (1) LI
OXFORDSHIRE CC,"CHILDRENS, YOUNG PEOPLE AND FAMILIES","	LEAVING CARE CITY 2",PAYMENTS TO TRANSPORT OPERATORS,27/01/2022,9892687525,21.2,MILTON KEYNES T/O
OXFORDSHIRE CC,"CHILDRENS, YOUNG PEOPLE AND FAMILIES","	LEAVING CARE CITY 2",OTHER TRANSPORT ARRANGEMENTS,27/01/2022,9892687527,4.3,STGCOACH/CTYLINK
OXFORDSHIRE CC,"CHILDRENS, YOUNG PEOPLE AND FAMILIES","	LEAVING CARE CITY 2",OTHER TRANSPORT ARRANGEMENTS,27/01/2022,9892687529,30,STGCOACH/CTYLINK
OXFORDSHIRE CC,"CHILDRENS, YOUNG PEOPLE AND FAMILIES","	LEAVING CARE CITY 2",OTHER TRANSPORT ARRANGEMENTS,27/01/2022,9892687531,12.8,STGCOACH/CTYLINK
OXFORDSHIRE CC,"CHILDRENS, YOUNG PEOPLE AND FAMILIES","	LEAVING CARE CITY 2",OTHER TRANSPORT ARRANGEMENTS,27/01/2022,9892687535,-12.8,STGCOACH/CTYLINK
OXFORDSHIRE CC,"CHILDRENS, YOUNG PEOPLE AND FAMILIES",PAUSE PROGRAMME,OTHER PREMISES RELATED COSTS,27/01/2022,9892687543,24,SAINSBURY'S S/MKT
OXFORDSHIRE CC,"CHILDRENS, YOUNG PEOPLE AND FAMILIES",PAUSE PROGRAMME,CATERING PROVISIONS,27/01/2022,9892687547,20.11,FARMFOODS 645
OXFORDSHIRE CC,"CHILDRENS, YOUNG PEOPLE AND FAMILIES",EYNSHAM,CATERING,27/01/2022,9892687551,4.18,MCDONALDS
OXFORDSHIRE CC,"CHILDRENS, YOUNG PEOPLE AND FAMILIES",FIELDWORK UASC,OTHER TRANSPORT ARRANGEMENTS,27/01/2022,9892687561,2.3,STGCOACH/CTYLINK
OXFORDSHIRE CC,"CHILDRENS, YOUNG PEOPLE AND FAMILIES",DIDCOT MOVE-ON HOME,CATERING,27/01/2022,9892687563,25.6,THE CHIPPY
OXFORDSHIRE CC,"CHILDRENS, YOUNG PEOPLE AND FAMILIES",WITNEY,VEHICLE FUEL,27/01/2022,9892687567,3.05,TESCO PFS 3418
OXFORDSHIRE CC,"CHILDRENS, YOUNG PEOPLE AND FAMILIES","	LEAVING CARE NORTH",CATERING,27/01/2022,9892687571,8.79,SILKSTONE INN
OXFORDSHIRE CC,"CHILDRENS, YOUNG PEOPLE AND FAMILIES","	LEAVING CARE NORTH",CLOTHING AND UNIFORMS,27/01/2022,9892687573,69.6,PRIMARK
OXFORDSHIRE CC,"CHILDRENS, YOUNG PEOPLE AND FAMILIES","	SM QUALITY ASSURANCE",HEALTH AND SAFETY EQUIPMENT,27/01/2022,9892687577,48.58,PAYPAL  EVERYTHING4 ON
OXFORDSHIRE CC,"CHILDRENS, YOUNG PEOPLE AND FAMILIES",CHILDREN IN CARE NON-STAFFING - CENTRL 1,PAYMENT TO GOVERNMENT DEPARTMENTS,27/01/2022,9892687539,34,DVLA DRIVING LICENSE
OXFORDSHIRE CC,"CHILDRENS, YOUNG PEOPLE AND FAMILIES",THAME E&A HOME,CATERING PROVISIONS,27/01/2022,9892687581,8.9,WELCOME BREAK STARBUCK
OXFORDSHIRE CC,"CHILDRENS, YOUNG PEOPLE AND FAMILIES",THAME E&A HOME,CATERING,27/01/2022,9892687585,10.9,OXFORD CAFE AND GRILL
OXFORDSHIRE CC,"CHILDRENS, YOUNG PEOPLE AND FAMILIES",PAUSE PROGRAMME,CATERING PROVISIONS,27/01/2022,9892687605,8.4,SAINSBURYS SMKT
OXFORDSHIRE CC,"CHILDRENS, YOUNG PEOPLE AND FAMILIES",FSP NON-STAFFING - CENTRAL,CATERING PROVISIONS,27/01/2022,9892687633,22.7,SAINSBURYS S/MKTS
OXFORDSHIRE CC,CORPORATE CORE,"MARKETING, COMMUNICATIONS & ENGAGEMENT","PUBLICITY, PROMOTIONS AND ADVERTISEMENT",27/01/2022,9892687647,6.43,SNAP INC SNAP SNAP ADS
OXFORDSHIRE CC,"CHILDRENS, YOUNG PEOPLE AND FAMILIES",THAME E&A HOME,MATERIALS,27/01/2022,9892687057,9.5,AMZNMKTPLACE AMAZON.CO
OXFORDSHIRE CC,"CHILDRENS, YOUNG PEOPLE AND FAMILIES",THAME E&A HOME,MATERIALS,27/01/2022,9892687061,33.96,AMZNMKTPLACE
OXFORDSHIRE CC,"CHILDRENS, YOUNG PEOPLE AND FAMILIES",THAME E&A HOME,LAUNDRY AND DRY CLEANING,27/01/2022,9892687065,12,MR MEND
OXFORDSHIRE CC,"CHILDRENS, YOUNG PEOPLE AND FAMILIES","	C&I BASE LORD WILL'M",MATERIALS,27/01/2022,9892687345,12.99,AMZNMKTPLACE
OXFORDSHIRE CC,"CHILDRENS, YOUNG PEOPLE AND FAMILIES",BULLINGDON PRISON,"BOOKS, DVDS AND CDS",27/01/2022,9892688003,6.99,AMAZON.CO.UK KN1MM2AI5
OXFORDSHIRE CC,"CHILDRENS, YOUNG PEOPLE AND FAMILIES","	LOOKED AFTER CITY 2",OTHER TRANSPORT ARRANGEMENTS,27/01/2022,9892688009,7.2,GWR OXFORD SST
OXFORDSHIRE CC,"CHILDRENS, YOUNG PEOPLE AND FAMILIES",CHILDREN IN CARE NON-STAFFING - CENTRL 2,OTHER EXPENSES,27/01/2022,9892688013,8,PHOTO ME INTERNATIONAL
OXFORDSHIRE CC,"CHILDRENS, YOUNG PEOPLE AND FAMILIES","	LEAVING CARE SOUTH",CATERING PROVISIONS,27/01/2022,9892688017,43.8,SAINSBURYS S/MKTS
OXFORDSHIRE CC,CORPORATE CORE,ICT OPERATIONS & MAI,IT SOFTWARE,27/01/2022,9892688023,331.51,GOOGLE CLOUD EMEA LIMI
OXFORDSHIRE CC,"CHILDRENS, YOUNG PEOPLE AND FAMILIES",THAME E&A HOME,CATERING PROVISIONS,27/01/2022,9892688035,159.8,RH  HIGOLOT.COM
OXFORDSHIRE CC,"CHILDRENS, YOUNG PEOPLE AND FAMILIES","	C&I BASE LORD WILL'M",MATERIALS,27/01/2022,9892687347,11.69,AMZNMKTPLACE
OXFORDSHIRE CC,"CHILDRENS, YOUNG PEOPLE AND FAMILIES","	C&I BASE LORD WILL'M",MATERIALS,27/01/2022,9892687351,1.87,AMZNMKTPLACE
OXFORDSHIRE CC,"CHILDRENS, YOUNG PEOPLE AND FAMILIES","	C&I BASE LORD WILL'M",MATERIALS,27/01/2022,9892687353,18.95,AMZNMKTPLACE
OXFORDSHIRE CC,"CHILDRENS, YOUNG PEOPLE AND FAMILIES","	C&I BASE LORD WILL'M",MATERIALS,27/01/2022,9892687357,9.97,AMZNMKTPLACE
OXFORDSHIRE CC,"CHILDRENS, YOUNG PEOPLE AND FAMILIES","	C&I BASE LORD WILL'M",MATERIALS,27/01/2022,9892687361,17.46,AMZNMKTPLACE
OXFORDSHIRE CC,"CHILDRENS, YOUNG PEOPLE AND FAMILIES","	LEAVING CARE SOUTH",STATIONERY,27/01/2022,9892687365,1,TESCO STORES 2008
OXFORDSHIRE CC,SOCIAL AND COMMUNITY SERVICES,CHILDREN IN CARE NON-STAFFING - NORTH,VEHICLE FUEL,27/01/2022,9892687369,59.64,BYFIELD RETAIL LTD
OXFORDSHIRE CC,"CHILDRENS, YOUNG PEOPLE AND FAMILIES",THAME E&A HOME,VEHICLE FUEL,27/01/2022,9892688039,13.29,ESSO BAYNARDS GN SSTN
OXFORDSHIRE CC,SOCIAL AND COMMUNITY SERVICES,"	MENTAL CAPACITY",POSTAGE AND DELIVERY,27/01/2022,9892688051,28.55,ROYAL MAIL GROUP LTD
OXFORDSHIRE CC,CORPORATE CORE,MOTOR FLEET,MOTOR IF OWN DAMAGE,27/01/2022,9892688053,434.26,WHOLESALE AUTOPARTS
OXFORDSHIRE CC,CORPORATE CORE,MOTOR FLEET,MOTOR IF OWN DAMAGE,27/01/2022,9892688057,900,WHOLESALE AUTOPARTS
OXFORDSHIRE CC,"CHILDRENS, YOUNG PEOPLE AND FAMILIES",UASC 16&17,OTHER EXPENSES,27/01/2022,9892688061,59.95,EBAY COMMERCE UK LTD
OXFORDSHIRE CC,"CHILDRENS, YOUNG PEOPLE AND FAMILIES",UASC 16&17,OTHER EXPENSES,27/01/2022,9892688065,59.9,EBAY COMMERCE UK LTD
OXFORDSHIRE CC,"CHILDRENS, YOUNG PEOPLE AND FAMILIES",CHILDREN IN CARE NON-STAFFING - SOUTH,OTHER TRANSPORT ARRANGEMENTS,27/01/2022,9892688069,16,READING-BUSES.CO.
OXFORDSHIRE CC,"CHILDRENS, YOUNG PEOPLE AND FAMILIES","	SEN/ICT EQUIPMENT",TELEPHONE - EQUIPMENT,27/01/2022,9892687403,11.99,ZOOM.US 888-799-9666
OXFORDSHIRE CC,"CHILDRENS, YOUNG PEOPLE AND FAMILIES",HOUSE PROJECT,OTHER TRANSPORT ARRANGEMENTS,27/01/2022,9892687415,5,WESTGATE OXFORD CAR PA
OXFORDSHIRE CC,"CHILDRENS, YOUNG PEOPLE AND FAMILIES",FAMILY SOLUTIONS PLUS NON-STAFF - NORTH,HIRE OF ACCOMMODATION AND FACILITIES,27/01/2022,9892687399,462,PREMIER INN
OXFORDSHIRE CC,"CHILDRENS, YOUNG PEOPLE AND FAMILIES",EYNSHAM,MATERIALS,27/01/2022,9892688105,27.84,AMZNMKTPLACE AMAZON.CO
OXFORDSHIRE CC,ENTERPRISEVC,,CAR LEASING - PRIVATE RENTALS,27/01/2022,9892688111,31.55,ENTERPRISE RENT-A-CAR
OXFORDSHIRE CC,ENTERPRISEVC,,CAR LEASING - PRIVATE RENTALS,27/01/2022,9892688113,73.9,ENTERPRISE RENT-A-CAR
OXFORDSHIRE CC,ENTERPRISEVC,,CAR LEASING - PRIVATE RENTALS,27/01/2022,9892688121,47.15,ENTERPRISE RENT-A-CAR
OXFORDSHIRE CC,ENTERPRISEVC,,CAR LEASING - PRIVATE RENTALS,27/01/2022,9892688117,114.46,ENTERPRISE RENT-A-CAR
OXFORDSHIRE CC,"CHILDRENS, YOUNG PEOPLE AND FAMILIES","	OCCG GRANT",CATERING PROVISIONS,27/01/2022,9892687421,22.65,TESCO STORES 6880
OXFORDSHIRE CC,"CHILDRENS, YOUNG PEOPLE AND FAMILIES",FAMILY SOLUTIONS PLUS NON-STAFF - NORTH,MATERIALS,27/01/2022,9892687451,50,BUYATAB - ALDI
OXFORDSHIRE CC,"CHILDRENS, YOUNG PEOPLE AND FAMILIES","	LOOKED AFTER NORTH",CATERING,27/01/2022,9892687427,5.09,MCDONALDS
OXFORDSHIRE CC,"CHILDRENS, YOUNG PEOPLE AND FAMILIES",VULNERABLE LEARNERS,SUBSCRIPTIONS,27/01/2022,9892687433,149,MAGSUBCRIPTIONS COM
OXFORDSHIRE CC,ENTERPRISEVC,,CAR LEASING - PRIVATE RENTALS,27/01/2022,9892688139,77.15,ENTERPRISE RENT-A-CAR
OXFORDSHIRE CC,ENTERPRISEVC,,CAR LEASING - PRIVATE RENTALS,27/01/2022,9892688143,30.47,ENTERPRISE RENT-A-CAR
OXFORDSHIRE CC,ENTERPRISEVC,,CAR LEASING - PRIVATE RENTALS,27/01/2022,9892688125,73.46,ENTERPRISE RENT-A-CAR
OXFORDSHIRE CC,ENTERPRISEVC,,CAR LEASING - PRIVATE RENTALS,27/01/2022,9892688145,26.75,ENTERPRISE RENT-A-CAR
OXFORDSHIRE CC,ENTERPRISEVC,,CAR LEASING - PRIVATE RENTALS,27/01/2022,9892688129,50.4,ENTERPRISE RENT-A-CAR
OXFORDSHIRE CC,"CHILDRENS, YOUNG PEOPLE AND FAMILIES",FAMILY SOLUTIONS PLUS NON-STAFF - NORTH,PAYMENTS TO TRANSPORT OPERATORS,27/01/2022,9892687201,235.54,THETRAINLINE.COM
OXFORDSHIRE CC,"CHILDRENS, YOUNG PEOPLE AND FAMILIES",FAMILY SOLUTIONS PLUS NON-STAFF - NORTH,POSTAGE AND DELIVERY,27/01/2022,9892687205,214,POST OFFICE COUNTER
OXFORDSHIRE CC,"CHILDRENS, YOUNG PEOPLE AND FAMILIES",FAMILY SOLUTIONS PLUS NON-STAFF - NORTH,PAYMENTS TO TRANSPORT OPERATORS,27/01/2022,9892687209,14.78,THETRAINLINE.COM
OXFORDSHIRE CC,"CHILDRENS, YOUNG PEOPLE AND FAMILIES","	MALTFIELD HOUSE",CATERING PROVISIONS,27/01/2022,9892687879,16.74,POUNDSTRETCHER 700
OXFORDSHIRE CC,SOCIAL AND COMMUNITY SERVICES,CICC,CATERING PROVISIONS,27/01/2022,9892687245,27.15,SAINSBURYS S/MKTS
OXFORDSHIRE CC,"CHILDRENS, YOUNG PEOPLE AND FAMILIES",40 THE MOORS,EDUCATIONAL AND VOCATIONAL TRAINING ,27/01/2022,9892687927,88.4,PARENTPAY E-COM R
OXFORDSHIRE CC,"CHILDRENS, YOUNG PEOPLE AND FAMILIES",CSS - DIDCOT,CATERING PROVISIONS,27/01/2022,9892687271,30.51,ALDI 99 775
OXFORDSHIRE CC,SOCIAL AND COMMUNITY SERVICES,CSS - OXFORD,CATERING PROVISIONS,27/01/2022,9892687273,7.24,ALDI STORES 775-142
OXFORDSHIRE CC,SOCIAL AND COMMUNITY SERVICES,CSS - OXFORD,MATERIALS,27/01/2022,9892687275,28.37,ALDI STORES 775-142
OXFORDSHIRE CC,"CHILDRENS, YOUNG PEOPLE AND FAMILIES",40 THE MOORS,CATERING PROVISIONS,27/01/2022,9892687285,8.75,TESCO STORE 2788
OXFORDSHIRE CC,"CHILDRENS, YOUNG PEOPLE AND FAMILIES",40 THE MOORS,POSTAGE AND DELIVERY,27/01/2022,9892687301,30,POST OFFICE COUNTER
OXFORDSHIRE CC,"CHILDRENS, YOUNG PEOPLE AND FAMILIES",40 THE MOORS,CATERING PROVISIONS,27/01/2022,9892687305,5.09,TESCO STORE 2788
OXFORDSHIRE CC,"CHILDRENS, YOUNG PEOPLE AND FAMILIES",DIDCOT MOVE-ON HOME,CATERING PROVISIONS,27/01/2022,9892687997,41.07,SAINSBURYS SMKT
OXFORDSHIRE CC,"CHILDRENS, YOUNG PEOPLE AND FAMILIES",40 THE MOORS,CATERING PROVISIONS,27/01/2022,9892687309,2.99,TESCO STORE 2788
OXFORDSHIRE CC,"CHILDRENS, YOUNG PEOPLE AND FAMILIES",40 THE MOORS,CATERING PROVISIONS,27/01/2022,9892687311,31.62,TESCO STORES 4480
OXFORDSHIRE CC,"CHILDRENS, YOUNG PEOPLE AND FAMILIES",FSP NON-STAFFING - CENTRAL,CATERING PROVISIONS,27/01/2022,9892687315,40,TESCO GIFT CARD
OXFORDSHIRE CC,SOCIAL AND COMMUNITY SERVICES,CSS - OXFORD,MATERIALS,26/01/2022,9890200815,27.58,ALDI STORES 775-142
OXFORDSHIRE CC,"CHILDRENS, YOUNG PEOPLE AND FAMILIES",FSP NON-STAFFING - CENTRAL,MATERIALS,26/01/2022,9890200833,27.65,AMZNMKTPLACE
OXFORDSHIRE CC,"CHILDRENS, YOUNG PEOPLE AND FAMILIES",40 THE MOORS,CATERING PROVISIONS,26/01/2022,9890200839,279.22,ASDA GROCERIES ONLINE
OXFORDSHIRE CC,"CHILDRENS, YOUNG PEOPLE AND FAMILIES",40 THE MOORS,CATERING PROVISIONS,26/01/2022,9890200841,-0.94,ASDA GROCERIES ONLINE
OXFORDSHIRE CC,"CHILDRENS, YOUNG PEOPLE AND FAMILIES",40 THE MOORS,DOMESTIC SUPPLIES,26/01/2022,9890200843,11.95,AMZNMKTPLACE
OXFORDSHIRE CC,SOCIAL AND COMMUNITY SERVICES,CSS WANTAGE,CATERING PROVISIONS,26/01/2022,9890201049,-47.17,ASDA GROCERIES ONLINE
OXFORDSHIRE CC,SOCIAL AND COMMUNITY SERVICES,CSS WANTAGE,CATERING PROVISIONS,26/01/2022,9890201045,45.28,SAINSBURYS S/MKTS
OXFORDSHIRE CC,SOCIAL AND COMMUNITY SERVICES,CSS WANTAGE,CATERING PROVISIONS,26/01/2022,9890201047,192.66,ASDA GROCERIES ONLINE
OXFORDSHIRE CC,"CHILDRENS, YOUNG PEOPLE AND FAMILIES","	AAC EQUIPMENT",PURCHASE OF IT EQUIPMENT,26/01/2022,9890201051,319.48,AMZNMKTPLACE
OXFORDSHIRE CC,"CHILDRENS, YOUNG PEOPLE AND FAMILIES","	AAC EQUIPMENT",PURCHASE OF IT EQUIPMENT,26/01/2022,9890201053,319.48,AMZNMKTPLACE
OXFORDSHIRE CC,"CHILDRENS, YOUNG PEOPLE AND FAMILIES","	AAC EQUIPMENT",PURCHASE OF IT EQUIPMENT,26/01/2022,9890201055,319.48,AMZNMKTPLACE
OXFORDSHIRE CC,"CHILDRENS, YOUNG PEOPLE AND FAMILIES","	LEAVING CARE CITY 2",CATERING PROVISIONS,26/01/2022,9890200747,25.43,LIDL GB ABINGDON
OXFORDSHIRE CC,"CHILDRENS, YOUNG PEOPLE AND FAMILIES",FAMILY SOLUTIONS PLUS NON-STAFF � SOUTH,HIRE OF ACCOMMODATION AND FACILITIES,26/01/2022,9890200757,124.53,KIRKSTYLE HOTEL LIMITE
OXFORDSHIRE CC,SOCIAL AND COMMUNITY SERVICES,CSS BICESTER,CATERING PROVISIONS,26/01/2022,9890200763,3,ICELAND
OXFORDSHIRE CC,"CHILDRENS, YOUNG PEOPLE AND FAMILIES","	AAC EQUIPMENT",PURCHASE OF IT EQUIPMENT,26/01/2022,9890201057,319.48,AMZNMKTPLACE
OXFORDSHIRE CC,"CHILDRENS, YOUNG PEOPLE AND FAMILIES","	AAC EQUIPMENT",PURCHASE OF IT EQUIPMENT,26/01/2022,9890201059,319.48,AMZNMKTPLACE
OXFORDSHIRE CC,CORPORATE CORE,STAFF ENGAGEMENT,MATERIALS,26/01/2022,9890201069,4.95,AMZNMKTPLACE
OXFORDSHIRE CC,ENVIRONMENT AND ECONOMY,"	FLEET OPERATIONS",POSTAGE AND DELIVERY,26/01/2022,9890201071,3.2,POST OFFICE COUNTER
OXFORDSHIRE CC,SOCIAL AND COMMUNITY SERVICES,SCHOOLS FM CATERING AREA 2,CATERING PROVISIONS,26/01/2022,9890200773,24.96,SAINSBURY'S S/MKT
OXFORDSHIRE CC,SOCIAL AND COMMUNITY SERVICES,CICC,PAYMENTS TO TRANSPORT OPERATORS,26/01/2022,9890200775,9.17,TRAINLINE.COM
OXFORDSHIRE CC,SOCIAL AND COMMUNITY SERVICES,CSS - BANBURY,CATERING PROVISIONS,26/01/2022,9890200777,53.1,SAINSBURYS.CO.UK
OXFORDSHIRE CC,CORPORATE CORE,HUNTERCOMBE PRISON,"SUPPLIES, STATIONERY AND MATERIALS",26/01/2022,9890200779,6.99,BOOTS 2092
OXFORDSHIRE CC,"CHILDRENS, YOUNG PEOPLE AND FAMILIES","DIDCOT CC, PARK ROAD",CATERING PROVISIONS,26/01/2022,9890200813,1.8,CO-OP FOOD
OXFORDSHIRE CC,ENVIRONMENT AND ECONOMY,HARD FM,HARDWARE AND CROCKERY,26/01/2022,9890200681,5.89,SCREWFIX DIRECT
OXFORDSHIRE CC,ENVIRONMENT AND ECONOMY,HARD FM,HARDWARE AND CROCKERY,26/01/2022,9890200683,65.87,C BREWER & SONS LT
OXFORDSHIRE CC,ENVIRONMENT AND ECONOMY,HARD FM,HARDWARE AND CROCKERY,26/01/2022,9890200685,14.33,SCREWFIX DIR LTD
OXFORDSHIRE CC,CORPORATE CORE,"MARKETING, COMMUNICATIONS & ENGAGEMENT","PUBLICITY, PROMOTIONS AND ADVERTISEMENT",26/01/2022,9890200991,5.7,SNAP INC SNAP SNAP ADS
OXFORDSHIRE CC,SOCIAL AND COMMUNITY SERVICES,UASC 16&17,MATERIALS,26/01/2022,9890200689,3.39,CYCLE KING
OXFORDSHIRE CC,"CHILDRENS, YOUNG PEOPLE AND FAMILIES","	LEAVING CARE CITY 1",HARDWARE AND CROCKERY,26/01/2022,9890200691,300,B & Q 1321
OXFORDSHIRE CC,"CHILDRENS, YOUNG PEOPLE AND FAMILIES","	LEAVING CARE CITY 1",HARDWARE AND CROCKERY,26/01/2022,9890200693,24.36,B & Q 1321
OXFORDSHIRE CC,"CHILDRENS, YOUNG PEOPLE AND FAMILIES","	LEAVING CARE CITY 1",FURNITURE,26/01/2022,9890200695,71.95,THE RANGE
OXFORDSHIRE CC,"CHILDRENS, YOUNG PEOPLE AND FAMILIES","	LEAVING CARE CITY 1",FURNITURE,26/01/2022,9890200697,41.57,THE RANGE
OXFORDSHIRE CC,CORPORATE CORE,"	MEMBERS SERVICES",MATERIALS,26/01/2022,9890201009,110.66,AMZNMKTPLACE AMAZON.CO
OXFORDSHIRE CC,ENVIRONMENT AND ECONOMY,"	WASTE MNGMNT GEN",MATERIALS,26/01/2022,9890201011,20,AMZNMKTPLACE AMAZON.CO
OXFORDSHIRE CC,"CHILDRENS, YOUNG PEOPLE AND FAMILIES","	LOOKED AFTER CITY 2",OTHER TRANSPORT ARRANGEMENTS,26/01/2022,9890201013,11.5,WWW.THEKEY.CO.UK
OXFORDSHIRE CC,SOCIAL AND COMMUNITY SERVICES,"	MUSEUMS COLLECTIONS",OTHER SERVICES,26/01/2022,9890201033,158.1,ALBERT HAYWOOD & SON L
OXFORDSHIRE CC,ENVIRONMENT AND ECONOMY,"	MUSEUM SERV MANAGER",SUBSCRIPTIONS,26/01/2022,9890201031,165,AIMUSEUMS
OXFORDSHIRE CC,"CHILDRENS, YOUNG PEOPLE AND FAMILIES",FAMILY SOLUTIONS PLUS NON-STAFF � SOUTH,PAYMENT TO GOVERNMENT DEPARTMENTS,26/01/2022,9890200729,14,GEN REGISTER OFFICE
OXFORDSHIRE CC,SOCIAL AND COMMUNITY SERVICES,SCHOOLS FM CATERING AREA 4,CATERING PROVISIONS,26/01/2022,9890200741,57.3,SAINSBURYS S/MKTS
OXFORDSHIRE CC,ENTERPRISEVC,BUSINESS SYST STAFF,PAYMENT TO GOVERNMENT DEPARTMENTS,26/01/2022,9890200739,10.5,PAYPAL  HOUSE LORDS
OXFORDSHIRE CC,"CHILDRENS, YOUNG PEOPLE AND FAMILIES","	LEAVING CARE NORTH",OTHER TRANSPORT ARRANGEMENTS,26/01/2022,9890201037,4,WESTGATE OXFORD CAR PA
OXFORDSHIRE CC,"CHILDRENS, YOUNG PEOPLE AND FAMILIES",KINGFISHER,VEHICLE FUEL,26/01/2022,9890201039,65.94,SHELL COWLEY
OXFORDSHIRE CC,"CHILDRENS, YOUNG PEOPLE AND FAMILIES",THAME E&A HOME,MATERIALS,26/01/2022,9890200913,60,ARGOS LTD
OXFORDSHIRE CC,CORPORATE CORE,CATERING MANAGEMENT SOFT FM,CATERING,26/01/2022,9890201165,7.36,BRAKES (STORED CARDS)
OXFORDSHIRE CC,CORPORATE CORE,CATERING MANAGEMENT SOFT FM,CATERING,26/01/2022,9890201167,188.9,BRAKES (STORED CARDS)
OXFORDSHIRE CC,SOCIAL AND COMMUNITY SERVICES,CSS WANTAGE,CATERING EQUIPMENT,26/01/2022,9890200629,219.99,PETER B LEDBURY LIMIT
OXFORDSHIRE CC,"CHILDRENS, YOUNG PEOPLE AND FAMILIES",WITNEY,MATERIALS,26/01/2022,9890200925,19.5,TIMPSON LTD
OXFORDSHIRE CC,"CHILDRENS, YOUNG PEOPLE AND FAMILIES",FAMILY SOLUTIONS PLUS NON-STAFF - NORTH,PAYMENTS TO TRANSPORT OPERATORS,26/01/2022,9890200927,268.2,WWW.GWR.COM
OXFORDSHIRE CC,"CHILDRENS, YOUNG PEOPLE AND FAMILIES",NRPF & HOMELESSNESS,NON-STAFF SUBSISTENCE AND EXPENSES,26/01/2022,9890200937,652.7,TRAVELODGE
OXFORDSHIRE CC,"CHILDRENS, YOUNG PEOPLE AND FAMILIES",CSS WALLINGFORD,CATERING PROVISIONS,26/01/2022,9890200631,5.5,WAITROSE 675
OXFORDSHIRE CC,"CHILDRENS, YOUNG PEOPLE AND FAMILIES",THAME E&A HOME,MATERIALS,26/01/2022,9890200633,46.65,AMZNMKTPLACE
OXFORDSHIRE CC,"CHILDRENS, YOUNG PEOPLE AND FAMILIES",THAME E&A HOME,MATERIALS,26/01/2022,9890200635,112.49,AMZNMKTPLACE
OXFORDSHIRE CC,"CHILDRENS, YOUNG PEOPLE AND FAMILIES","	ALTERNATIVES TO CARE",MATERIALS,26/01/2022,9890200637,157.93,AMZNMKTPLACE
OXFORDSHIRE CC,"CHILDRENS, YOUNG PEOPLE AND FAMILIES","	ALTERNATIVES TO CARE",MATERIALS,26/01/2022,9890200639,133.6,AMZNMKTPLACE
OXFORDSHIRE CC,"CHILDRENS, YOUNG PEOPLE AND FAMILIES","	ALTERNATIVES TO CARE",MATERIALS,26/01/2022,9890200641,133.59,AMZNMKTPLACE
OXFORDSHIRE CC,"CHILDRENS, YOUNG PEOPLE AND FAMILIES",CHILDREN IN CARE NON-STAFFING - SOUTH,MATERIALS,26/01/2022,9890200647,22.99,ARGOS LTD
OXFORDSHIRE CC,"CHILDRENS, YOUNG PEOPLE AND FAMILIES",THAME E&A HOME,MATERIALS,26/01/2022,9890200643,22.48,AMZNMKTPLACE
OXFORDSHIRE CC,"CHILDRENS, YOUNG PEOPLE AND FAMILIES",FAMILY SOLUTIONS PLUS NON-STAFF - NORTH,HIRE OF ACCOMMODATION AND FACILITIES,26/01/2022,9890200939,336,PREMIER INN
OXFORDSHIRE CC,CORPORATE CORE,BUSINESS INTELLECTUAL PROPERTY CENTRE,PAYMENTS TO TRANSPORT OPERATORS,26/01/2022,9890200941,69.5,TRIP.COM
OXFORDSHIRE CC,"CHILDRENS, YOUNG PEOPLE AND FAMILIES","	LEAVING CARE CITY 2",PAYMENTS TO TRANSPORT OPERATORS,26/01/2022,9890200943,60,OXFORD PARKWAY
OXFORDSHIRE CC,"CHILDRENS, YOUNG PEOPLE AND FAMILIES","	LEAVING CARE CITY 2",OTHER TRANSPORT ARRANGEMENTS,26/01/2022,9890200945,4.3,STGCOACH/CTYLINK
OXFORDSHIRE CC,CORPORATE CORE,INCOME TEAM,PAYMENT TO GOVERNMENT DEPARTMENTS,26/01/2022,9890200949,11,OXFORDSHIRE CC WEB1
OXFORDSHIRE CC,"CHILDRENS, YOUNG PEOPLE AND FAMILIES",PAUSE PROGRAMME,MATERIALS,26/01/2022,9890200953,4.99,HOME BARGAINS
OXFORDSHIRE CC,"CHILDRENS, YOUNG PEOPLE AND FAMILIES",CHILDREN IN CARE NON-STAFFING - SOUTH,MATERIALS,26/01/2022,9890200649,3.95,ARGOS LTD
OXFORDSHIRE CC,"CHILDRENS, YOUNG PEOPLE AND FAMILIES",UASC POST 18,OTHER TRANSPORT ARRANGEMENTS,26/01/2022,9890200667,40.5,BANBURY STATION T/O
OXFORDSHIRE CC,ENVIRONMENT AND ECONOMY,HOLDING CODE FOR REA,HARDWARE AND CROCKERY,26/01/2022,9890200661,31.7,WICKES OXFORD
OXFORDSHIRE CC,ENVIRONMENT AND ECONOMY,HOLDING CODE FOR REA,HARDWARE AND CROCKERY,26/01/2022,9890200663,133.36,B AND Q
OXFORDSHIRE CC,ENVIRONMENT AND ECONOMY,HOLDING CODE FOR REA,HARDWARE AND CROCKERY,26/01/2022,9890200665,31.88,B AND Q
OXFORDSHIRE CC,"CHILDRENS, YOUNG PEOPLE AND FAMILIES",PAUSE PROGRAMME,CATERING PROVISIONS,26/01/2022,9890200975,3.85,SAINSBURY'S S/MKT
OXFORDSHIRE CC,"CHILDRENS, YOUNG PEOPLE AND FAMILIES","	LEAVING CARE NORTH",STATIONERY,26/01/2022,9890200961,8,PHOTO ME INTERNATIONAL
OXFORDSHIRE CC,"CHILDRENS, YOUNG PEOPLE AND FAMILIES",PAUSE PROGRAMME,CATERING PROVISIONS,26/01/2022,9890200977,2.99,HAILEY EXPRESS
OXFORDSHIRE CC,"CHILDRENS, YOUNG PEOPLE AND FAMILIES",UASC POST 18,OTHER TRANSPORT ARRANGEMENTS,26/01/2022,9890200669,8.5,CHILTERN RAIL RINGGO
OXFORDSHIRE CC,"CHILDRENS, YOUNG PEOPLE AND FAMILIES","	LEAVING CARE SOUTH",OTHER TRANSPORT ARRANGEMENTS,26/01/2022,9890200861,3.9,NCP PARK PASS
OXFORDSHIRE CC,CORPORATE CORE,"MARKETING, COMMUNICATIONS & ENGAGEMENT",IT SOFTWARE,26/01/2022,9890201107,78.97,ADOBE STOCK
OXFORDSHIRE CC,"CHILDRENS, YOUNG PEOPLE AND FAMILIES",DIDCOT MOVE-ON HOME,CATERING PROVISIONS,26/01/2022,9890201123,6.62,SAINSBURYS SMKT
OXFORDSHIRE CC,"CHILDRENS, YOUNG PEOPLE AND FAMILIES",CNTL ERLY HELP-BBLEY,OTHER TRANSPORT ARRANGEMENTS,26/01/2022,9890201125,122.25,PARCELFORCE WL
OXFORDSHIRE CC,SOCIAL AND COMMUNITY SERVICES,CHILDREN IN CARE NON-STAFFING - NORTH,OTHER TRANSPORT ARRANGEMENTS,26/01/2022,9890200863,28.95,TRAVEL EXTRA DEALS LTD
OXFORDSHIRE CC,"CHILDRENS, YOUNG PEOPLE AND FAMILIES",FSP STAFFING � NORTH,MATERIALS,26/01/2022,9890200877,68.49,AMZNMKTPLACE
OXFORDSHIRE CC,"CHILDRENS, YOUNG PEOPLE AND FAMILIES",EYNSHAM,CATERING PROVISIONS,26/01/2022,9890200873,3,CO-OPERATIVE FOOD
OXFORDSHIRE CC,"CHILDRENS, YOUNG PEOPLE AND FAMILIES","	OCCG GRANT",BIRTHDAY ALLOWANCE,26/01/2022,9890200879,13.74,B&M 514 - DICOT
OXFORDSHIRE CC,"CHILDRENS, YOUNG PEOPLE AND FAMILIES",CNTL ERLY HELP-BBLEY,PAYMENTS TO TRANSPORT OPERATORS,26/01/2022,9890201127,31.9,WWW.GWR.COM
OXFORDSHIRE CC,"CHILDRENS, YOUNG PEOPLE AND FAMILIES","	LEAVING CARE SOUTH",HARDWARE AND CROCKERY,26/01/2022,9890201129,104.49,HOMEBASE
OXFORDSHIRE CC,"CHILDRENS, YOUNG PEOPLE AND FAMILIES","	LEAVING CARE SOUTH",MATERIALS,26/01/2022,9890201131,94.93,ARGOS LTD
OXFORDSHIRE CC,"CHILDRENS, YOUNG PEOPLE AND FAMILIES",EYNSHAM,CATERING PROVISIONS,26/01/2022,9890201133,166.43,TESCO STORES 2008
OXFORDSHIRE CC,"CHILDRENS, YOUNG PEOPLE AND FAMILIES",UASC 16&17,OTHER EXPENSES,26/01/2022,9890201139,31.96,TK MAXX
OXFORDSHIRE CC,"CHILDRENS, YOUNG PEOPLE AND FAMILIES",EYNSHAM,CATERING PROVISIONS,26/01/2022,9890200881,10.34,SAINSBURYS S/MKTS
OXFORDSHIRE CC,"CHILDRENS, YOUNG PEOPLE AND FAMILIES","	LOOKED AFTER NORTH",CATERING,26/01/2022,9890200887,9.51,KFC-BANBURY
OXFORDSHIRE CC,"CHILDRENS, YOUNG PEOPLE AND FAMILIES",CHILDREN IN CARE NON-STAFFING - NORTH,REGISTRATION AND INSPECTION FEES,26/01/2022,9890200889,36,HMPO
OXFORDSHIRE CC,"CHILDRENS, YOUNG PEOPLE AND FAMILIES","	OCCG GRANT",HARDWARE AND CROCKERY,26/01/2022,9890200897,25,B & Q 1062
OXFORDSHIRE CC,"CHILDRENS, YOUNG PEOPLE AND FAMILIES","	LOOKED AFTER NORTH",CATERING,26/01/2022,9890201149,2.9,COSTA COFFEE
OXFORDSHIRE CC,SOCIAL AND COMMUNITY SERVICES,FLEET OPERATIONS,MATERIALS,26/01/2022,9890201151,29.64,AMZNMKTPLACE AMAZON.CO
OXFORDSHIRE CC,SOCIAL AND COMMUNITY SERVICES,FLEET OPERATIONS,MATERIALS,26/01/2022,9890201153,3.9,AMAZON.CO.UK 8J3338715
OXFORDSHIRE CC,CORPORATE CORE,,STATIONERY,26/01/2022,9890201157,120.12,LYRECO UK LTD
OXFORDSHIRE CC,CORPORATE CORE,,STATIONERY,26/01/2022,9890201159,7.3,LYRECO UK LTD
OXFORDSHIRE CC,CORPORATE CORE,,STATIONERY,26/01/2022,9890201161,119.86,LYRECO UK LTD
OXFORDSHIRE CC,CORPORATE CORE,,STATIONERY,26/01/2022,9890201163,11.88,LYRECO UK LTD
OXFORDSHIRE CC,"CHILDRENS, YOUNG PEOPLE AND FAMILIES",PAUSE PROGRAMME,CATERING,26/01/2022,9890200909,7.05,COSTA COFFEE 43043010
OXFORDSHIRE CC,"CHILDRENS, YOUNG PEOPLE AND FAMILIES",UASC 16&17,CLOTHING AND UNIFORMS,25/01/2022,9885595811,254.95,SPORTSDIRECT.COM
OXFORDSHIRE CC,ENTERPRISEVC,BUSINESS SYST STAFF,PAYMENT TO GOVERNMENT DEPARTMENTS,25/01/2022,9885594843,5,PAYPAL  HOUSE LORDS
OXFORDSHIRE CC,COMMUNITY SAFETY,ON ST PARK OXFD SPA,POSTAGE AND DELIVERY,25/01/2022,9885594853,95.5,ROYAL MAIL ONLINE SHOP
OXFORDSHIRE CC,"CHILDRENS, YOUNG PEOPLE AND FAMILIES",CNTL ERLY HELP-BBLEY,FURNITURE,25/01/2022,9885595853,-6,DUNELM LTD
OXFORDSHIRE CC,"CHILDRENS, YOUNG PEOPLE AND FAMILIES",CNTL ERLY HELP-BBLEY,FURNITURE,25/01/2022,9885595859,-51.8,DUNELM LTD
OXFORDSHIRE CC,CORPORATE CORE,READING SERV. ADULTS,EDUCATIONAL AND VOCATIONAL TRAINING ,25/01/2022,9885594887,140.73,EB  YOUTH IN MIND CONF
OXFORDSHIRE CC,SOCIAL AND COMMUNITY SERVICES,CSS BICESTER,CATERING PROVISIONS,25/01/2022,9885594909,42.98,TESCO STORE 2162
OXFORDSHIRE CC,SOCIAL AND COMMUNITY SERVICES,CSS BICESTER,CATERING PROVISIONS,25/01/2022,9885594915,5,TESCO STORES 4480
OXFORDSHIRE CC,CORPORATE CORE,OPERATIONS,MATERIALS,25/01/2022,9885595429,2.3,AMZNMKTPLACE
OXFORDSHIRE CC,SOCIAL AND COMMUNITY SERVICES,CSS - OXFORD,ENTERTAINMENT EXPENSES,25/01/2022,9885595439,15.15,WWW.BETTER.ORG.UK
OXFORDSHIRE CC,"CHILDRENS, YOUNG PEOPLE AND FAMILIES",EYNSHAM,OTHER SERVICES,25/01/2022,9885595933,6.99,TESCO SUBSCRIPTION
OXFORDSHIRE CC,CORPORATE CORE,,STATIONERY,25/01/2022,9885595939,1.16,LYRECO UK LTD
OXFORDSHIRE CC,CORPORATE CORE,,STATIONERY,25/01/2022,9885595945,101.9,LYRECO UK LTD
OXFORDSHIRE CC,CORPORATE CORE,,STATIONERY,25/01/2022,9885595949,14.22,LYRECO UK LTD
OXFORDSHIRE CC,"CHILDRENS, YOUNG PEOPLE AND FAMILIES",THAME E&A HOME,CATERING PROVISIONS,25/01/2022,9885594631,48.5,ASDA GEORGE COM LEEDS
OXFORDSHIRE CC,"CHILDRENS, YOUNG PEOPLE AND FAMILIES",FAMILY SOLUTIONS PLUS NON-STAFF - NORTH,HIRE OF ACCOMMODATION AND FACILITIES,25/01/2022,9885595229,354,HAMPTON BY HILTON OXFO
OXFORDSHIRE CC,CORPORATE CORE,"MARKETING, COMMUNICATIONS & ENGAGEMENT","PUBLICITY, PROMOTIONS AND ADVERTISEMENT",25/01/2022,9885595715,500,GOOGLE ADS4896546035
OXFORDSHIRE CC,"CHILDRENS, YOUNG PEOPLE AND FAMILIES",40 THE MOORS,HOSPITALITY EXPENSES,25/01/2022,9885595705,50,KIDLINGTON FOOTBALL CL
OXFORDSHIRE CC,"CHILDRENS, YOUNG PEOPLE AND FAMILIES",CSS WANTAGE,MATERIALS,25/01/2022,9885594703,25.25,WWW.BETTER.ORG.UK
OXFORDSHIRE CC,"CHILDRENS, YOUNG PEOPLE AND FAMILIES",FAMILY SOLUTIONS PLUS NON-STAFF - NORTH,HIRE OF ACCOMMODATION AND FACILITIES,25/01/2022,9885595239,500,HAMPTON BY HILTON OXFO
OXFORDSHIRE CC,"CHILDRENS, YOUNG PEOPLE AND FAMILIES",FAMILY SOLUTIONS PLUS NON-STAFF � SOUTH,POSTAGE AND DELIVERY,25/01/2022,9885595245,6.85,POST OFFICE COUNTER
OXFORDSHIRE CC,"CHILDRENS, YOUNG PEOPLE AND FAMILIES","	LEAVING CARE NORTH",OTHER EXPENSES,25/01/2022,9885595785,4.75,PRET A MANGER
OXFORDSHIRE CC,"CHILDRENS, YOUNG PEOPLE AND FAMILIES","	LEAVING CARE NORTH",OTHER EXPENSES,25/01/2022,9885595791,2.95,PRET A MANGER
OXFORDSHIRE CC,SOCIAL AND COMMUNITY SERVICES,ADULTS AT RISK,HIRE OF ACCOMMODATION AND FACILITIES,25/01/2022,9885595763,455,ASHLEA GUEST HOUSE
OXFORDSHIRE CC,"CHILDRENS, YOUNG PEOPLE AND FAMILIES","	LEAVING CARE NORTH",OTHER TRANSPORT ARRANGEMENTS,25/01/2022,9885595769,9.4,SUMUP   M A BCABS
OXFORDSHIRE CC,"CHILDRENS, YOUNG PEOPLE AND FAMILIES","	LEAVING CARE NORTH",OTHER TRANSPORT ARRANGEMENTS,25/01/2022,9885595775,41.9,GWR OXFORD TO
OXFORDSHIRE CC,"CHILDRENS, YOUNG PEOPLE AND FAMILIES","	LEAVING CARE NORTH",OTHER EXPENSES,25/01/2022,9885595781,10.04,THE RESTAURANT HUB SEL
OXFORDSHIRE CC,"CHILDRENS, YOUNG PEOPLE AND FAMILIES","	LEAVING CARE CITY 1",CATERING PROVISIONS,25/01/2022,9885594773,23.4,WILKO RETAIL LIMITED
OXFORDSHIRE CC,"CHILDRENS, YOUNG PEOPLE AND FAMILIES","	LEAVING CARE CITY 1",EDUCATIONAL AND VOCATIONAL TRAINING ,25/01/2022,9885594753,39.5,EB  YOUTH IN MIND CONF
OXFORDSHIRE CC,"CHILDRENS, YOUNG PEOPLE AND FAMILIES","	LEAVING CARE CITY 1",CATERING,25/01/2022,9885594759,14,COSTA COFFEE 43037475
OXFORDSHIRE CC,"CHILDRENS, YOUNG PEOPLE AND FAMILIES",LEGAL BUDGET,HIRE OF ACCOMMODATION AND FACILITIES,25/01/2022,9885594777,"1,321.44",AIRBNB   HMJ43KSJ3N
OXFORDSHIRE CC,"CHILDRENS, YOUNG PEOPLE AND FAMILIES",FIELDWORK UASC,CATERING,25/01/2022,9885595273,3.1,COSTA COFFEE
OXFORDSHIRE CC,"CHILDRENS, YOUNG PEOPLE AND FAMILIES","	SM QUALITY ASSURANCE",HIRE OF ACCOMMODATION AND FACILITIES,25/01/2022,9885595283,500,HAMPTON BY HILTON OXFO
OXFORDSHIRE CC,"CHILDRENS, YOUNG PEOPLE AND FAMILIES",FAMILY SOLUTIONS PLUS NON-STAFF - NORTH,PAYMENTS TO TRANSPORT OPERATORS,25/01/2022,9885595289,30.16,THETRAINLINE.COM
OXFORDSHIRE CC,"CHILDRENS, YOUNG PEOPLE AND FAMILIES",FAMILY SOLUTIONS PLUS NON-STAFF � SOUTH,PAYMENTS TO TRANSPORT OPERATORS,25/01/2022,9885595321,42.95,TRAINLINE.COM
OXFORDSHIRE CC,"CHILDRENS, YOUNG PEOPLE AND FAMILIES",THAME E&A HOME,CATERING PROVISIONS,25/01/2022,9885594965,90.82,TESCO STORES 2038
OXFORDSHIRE CC,"CHILDRENS, YOUNG PEOPLE AND FAMILIES",40 THE MOORS,CATERING PROVISIONS,25/01/2022,9885595003,8.2,TESCO STORE 2788
OXFORDSHIRE CC,ENVIRONMENT AND ECONOMY,LIB ICT SUPPRT&MAINT,EQUIPMENT,25/01/2022,9885595081,273.41,AMZNMKTPLACE
OXFORDSHIRE CC,"CHILDRENS, YOUNG PEOPLE AND FAMILIES",UASC POST 18,MATERIALS,25/01/2022,9885595093,201.9,AMZNMKTPLACE AMAZON.CO
OXFORDSHIRE CC,"CHILDRENS, YOUNG PEOPLE AND FAMILIES",PAUSE PROGRAMME,CATERING PROVISIONS,25/01/2022,9885595101,6.49,687 - WILMINGTON
OXFORDSHIRE CC,"CHILDRENS, YOUNG PEOPLE AND FAMILIES",FAMILY SOLUTIONS PLUS NON-STAFF - NORTH,PAYMENTS TO TRANSPORT OPERATORS,25/01/2022,9885595109,89.4,WWW.GWR.COM
OXFORDSHIRE CC,ENVIRONMENT AND ECONOMY,LEARNING & ACCESS,VEHICLES AND PLANT - REPAIRS AND MAIN,25/01/2022,9885595587,544.08,THE WITNEY MOTOR CO LT
OXFORDSHIRE CC,"CHILDRENS, YOUNG PEOPLE AND FAMILIES",FAMILY SOLUTIONS PLUS NON-STAFF - NORTH,HIRE OF ACCOMMODATION AND FACILITIES,25/01/2022,9885595599,194,PREMIER INN
OXFORDSHIRE CC,CORPORATE CORE,"	LEGAL SERVICES",PURCHASE OF IT EQUIPMENT,25/01/2022,9885595547,45.93,AMAZON.CO.UK ER4SK3I05
OXFORDSHIRE CC,"CHILDRENS, YOUNG PEOPLE AND FAMILIES",FSP NON-STAFFING - CENTRAL,CATERING PROVISIONS,25/01/2022,9885595555,0.95,TESCO STORES 4377
OXFORDSHIRE CC,SOCIAL AND COMMUNITY SERVICES,CSS WANTAGE,MATERIALS,25/01/2022,9885595621,159.96,AMZNMKTPLACE
OXFORDSHIRE CC,SOCIAL AND COMMUNITY SERVICES,CSS WANTAGE,VEHICLE EQUIPMENT AND EXPENSES - OTHER,25/01/2022,9885595625,26,WANTAGE MOTORIST CENTR
OXFORDSHIRE CC,"CHILDRENS, YOUNG PEOPLE AND FAMILIES",KINGFISHER,CATERING,25/01/2022,9885595123,3.9,COSTA COFFEE
OXFORDSHIRE CC,"CHILDRENS, YOUNG PEOPLE AND FAMILIES",UASC POST 18,PAYMENTS TO TRANSPORT OPERATORS,25/01/2022,9885595129,44.07,TRAINLINE.COM
OXFORDSHIRE CC,"CHILDRENS, YOUNG PEOPLE AND FAMILIES",THAME E&A HOME,CATERING PROVISIONS,25/01/2022,9885595137,40,B&M 515 - ABINGDON
OXFORDSHIRE CC,"CHILDRENS, YOUNG PEOPLE AND FAMILIES",THAME E&A HOME,CATERING PROVISIONS,25/01/2022,9885595143,33.55,B&M 515 - ABINGDON
OXFORDSHIRE CC,"CHILDRENS, YOUNG PEOPLE AND FAMILIES",THAME E&A HOME,CATERING PROVISIONS,25/01/2022,9885595147,50,B&M 515 - ABINGDON
OXFORDSHIRE CC,"CHILDRENS, YOUNG PEOPLE AND FAMILIES",THAME E&A HOME,CATERING PROVISIONS,25/01/2022,9885595153,153.94,B&M 515 - ABINGDON
OXFORDSHIRE CC,"CHILDRENS, YOUNG PEOPLE AND FAMILIES",THAME E&A HOME,MATERIALS,25/01/2022,9885595157,187.49,CURRYS ONLINE
OXFORDSHIRE CC,"CHILDRENS, YOUNG PEOPLE AND FAMILIES",40 THE MOORS,CATERING,25/01/2022,9885595163,92.7,JUST EAT
OXFORDSHIRE CC,SOCIAL AND COMMUNITY SERVICES,SCHOOLS FM CATERING AREA 1,MATERIALS,24/01/2022,9879979653,28.1,AMZNMKTPLACE
OXFORDSHIRE CC,SOCIAL AND COMMUNITY SERVICES,SCHOOLS FM CATERING AREA 1,MATERIALS,24/01/2022,9879979669,61.43,AMZNMKTPLACE
OXFORDSHIRE CC,"CHILDRENS, YOUNG PEOPLE AND FAMILIES",NRPF & HOMELESSNESS,NON-STAFF SUBSISTENCE AND EXPENSES,24/01/2022,9879979539,-414,PREMIER INN
OXFORDSHIRE CC,SOCIAL AND COMMUNITY SERVICES,SCHOOLS FM CATERING AREA 1,MATERIALS,24/01/2022,9879979683,47.91,AMZNMKTPLACE
OXFORDSHIRE CC,"CHILDRENS, YOUNG PEOPLE AND FAMILIES",NRPF & HOMELESSNESS,NON-STAFF SUBSISTENCE AND EXPENSES,24/01/2022,9879979557,-125,PREMIER INN
OXFORDSHIRE CC,"CHILDRENS, YOUNG PEOPLE AND FAMILIES",UASC 16&17,RESIDENTIAL ACTIVITIES,24/01/2022,9879979585,31.47,ADIDASWWW.ADIDAS.CO.UK
OXFORDSHIRE CC,"CHILDRENS, YOUNG PEOPLE AND FAMILIES",NTH EARLY HELP-WITNY,OTHER EXPENSES,24/01/2022,9879979617,27.68,WEST OXFORDSHIRE D
OXFORDSHIRE CC,"CHILDRENS, YOUNG PEOPLE AND FAMILIES",NTH EARLY HELP-WITNY,MATERIALS,24/01/2022,9879979635,414,M & M SKIP HIRE
OXFORDSHIRE CC,"CHILDRENS, YOUNG PEOPLE AND FAMILIES","	LEAVING CARE SOUTH",CATERING PROVISIONS,24/01/2022,9879979713,30,ICELAND FOODS
OXFORDSHIRE CC,"CHILDRENS, YOUNG PEOPLE AND FAMILIES",EYNSHAM,CATERING PROVISIONS,24/01/2022,9879983029,6.5,MAYFIELDEGGS
OXFORDSHIRE CC,"CHILDRENS, YOUNG PEOPLE AND FAMILIES",THAME E&A HOME,CATERING PROVISIONS,24/01/2022,9879983223,18.54,SAINSBURYS SUPERMA
OXFORDSHIRE CC,"CHILDRENS, YOUNG PEOPLE AND FAMILIES",THAME E&A HOME,CATERING PROVISIONS,24/01/2022,9879983235,24.46,SAINSBURYS SUPERMA
OXFORDSHIRE CC,SOCIAL AND COMMUNITY SERVICES,CSS WITNEY,CATERING PROVISIONS,24/01/2022,9879979843,16.49,ASDA STORES 4920
OXFORDSHIRE CC,"CHILDRENS, YOUNG PEOPLE AND FAMILIES",CHILDREN IN CARE NON-STAFFING - CENTRL 1,OTHER TRANSPORT ARRANGEMENTS,24/01/2022,9879979863,56.25,OXFORDBUS.CO.UK
OXFORDSHIRE CC,"CHILDRENS, YOUNG PEOPLE AND FAMILIES","	LEAVING CARE SOUTH",CATERING PROVISIONS,24/01/2022,9879979723,-5,ICELAND FOODS
OXFORDSHIRE CC,"CHILDRENS, YOUNG PEOPLE AND FAMILIES",KINGFISHER,INSURANCE COSTS,24/01/2022,9879979737,7,COSTA GROVE
OXFORDSHIRE CC,"CHILDRENS, YOUNG PEOPLE AND FAMILIES",KINGFISHER,CATERING PROVISIONS,24/01/2022,9879979753,20,TESCO STORES 5429
OXFORDSHIRE CC,"CHILDRENS, YOUNG PEOPLE AND FAMILIES",PAUSE PROGRAMME,CATERING,24/01/2022,9879979895,6,KHAIRO?S STREET FOOD
OXFORDSHIRE CC,"CHILDRENS, YOUNG PEOPLE AND FAMILIES",PAUSE PROGRAMME,MATERIALS,24/01/2022,9879979915,5,POUNDLAND LTD
OXFORDSHIRE CC,"CHILDRENS, YOUNG PEOPLE AND FAMILIES",THAME E&A HOME,ENTERTAINMENT EXPENSES,24/01/2022,9879979789,6.5,CINEWORLD
OXFORDSHIRE CC,"CHILDRENS, YOUNG PEOPLE AND FAMILIES",EYNSHAM,CATERING PROVISIONS,24/01/2022,9879983343,15.9,ASDA SUPERSTORE
OXFORDSHIRE CC,"CHILDRENS, YOUNG PEOPLE AND FAMILIES","	ALTERNATIVES TO CARE",FURNITURE,24/01/2022,9879983611,12.4,DUNELM LTD
OXFORDSHIRE CC,"CHILDRENS, YOUNG PEOPLE AND FAMILIES",CHILDREN IN CARE NON-STAFFING - SOUTH,MATERIALS,24/01/2022,9879983455,238,AO RETAIL LIMITED
OXFORDSHIRE CC,"CHILDRENS, YOUNG PEOPLE AND FAMILIES","	ALTERNATIVES TO CARE",FURNITURE,24/01/2022,9879983597,242.8,DUNELM LTD
OXFORDSHIRE CC,"CHILDRENS, YOUNG PEOPLE AND FAMILIES",EET SERVICE,PAYMENTS TO TRANSPORT OPERATORS,24/01/2022,9879981469,16.5,WWW.GWR.COM
OXFORDSHIRE CC,"CHILDRENS, YOUNG PEOPLE AND FAMILIES","	RIVERSIDE CENTRE",DAY ACTIVITIES,24/01/2022,9879981495,5,OXFORD BROOKES UNI
OXFORDSHIRE CC,"CHILDRENS, YOUNG PEOPLE AND FAMILIES","	RIVERSIDE CENTRE",DAY ACTIVITIES,24/01/2022,9879981511,6.5,OXFORD BROOKES UNI
OXFORDSHIRE CC,SOCIAL AND COMMUNITY SERVICES,"	MUSEUMS COLLECTIONS",OTHER SERVICES,24/01/2022,9879981627,88.84,SCREWFIX DIRECT
OXFORDSHIRE CC,SOCIAL AND COMMUNITY SERVICES,CSS WANTAGE,CATERING PROVISIONS,24/01/2022,9879981837,4.5,SAINSBURYS S/MKT
OXFORDSHIRE CC,"CHILDRENS, YOUNG PEOPLE AND FAMILIES","	SEN/ICT EQUIPMENT",PURCHASE OF IT EQUIPMENT,24/01/2022,9879981857,59.99,AMZNMKTPLACE
OXFORDSHIRE CC,ENVIRONMENT AND ECONOMY,"	COUNTRYSIDE PREMISES",CATERING,24/01/2022,9879981939,14.04,CO OPERATIVE FOOD
OXFORDSHIRE CC,"CHILDRENS, YOUNG PEOPLE AND FAMILIES","	MALTFIELD HOUSE",HARDWARE AND CROCKERY,24/01/2022,9879982121,4.7,B & Q 1176
OXFORDSHIRE CC,"CHILDRENS, YOUNG PEOPLE AND FAMILIES","	MALTFIELD HOUSE",CATERING PROVISIONS,24/01/2022,9879982145,10.71,SAINSBURYS S/MKTS
OXFORDSHIRE CC,ENVIRONMENT AND ECONOMY,"	ROW MAINT",EQUIPMENT,24/01/2022,9879981955,164.49,SP   SAM TURNER & SONS
OXFORDSHIRE CC,ENVIRONMENT AND ECONOMY,"	FLEET OPERATIONS",CATERING PROVISIONS,24/01/2022,9879981983,13.44,MILK AND MORE (RECUR
OXFORDSHIRE CC,"CHILDRENS, YOUNG PEOPLE AND FAMILIES","	MALTFIELD HOUSE",CATERING PROVISIONS,24/01/2022,9879982161,2,TESCO STORES 4480
OXFORDSHIRE CC,"CHILDRENS, YOUNG PEOPLE AND FAMILIES",DIDCOT MOVE-ON HOME,DOMESTIC AND CLEANING EQUIPMENT,24/01/2022,9879982603,4.5,SAINSBURYS S/MKTS
OXFORDSHIRE CC,"CHILDRENS, YOUNG PEOPLE AND FAMILIES",DIDCOT MOVE-ON HOME,CATERING PROVISIONS,24/01/2022,9879982617,12.69,SAINSBURYS S/MKTS
OXFORDSHIRE CC,"CHILDRENS, YOUNG PEOPLE AND FAMILIES",40 THE MOORS,MATERIALS,24/01/2022,9879982429,51.25,HOBBYCRAFT TRADING LIM
OXFORDSHIRE CC,SOCIAL AND COMMUNITY SERVICES,CSS - BANBURY,CATERING PROVISIONS,24/01/2022,9879982463,13.95,TESCO STORE 2064
OXFORDSHIRE CC,"CHILDRENS, YOUNG PEOPLE AND FAMILIES",DIDCOT MOVE-ON HOME,CATERING PROVISIONS,24/01/2022,9879982823,13.19,SAINSBURYS SMKT
OXFORDSHIRE CC,"CHILDRENS, YOUNG PEOPLE AND FAMILIES",CNTL ERLY HELP-BBLEY,PAYMENTS TO TRANSPORT OPERATORS,24/01/2022,9879982855,25.15,WWW.GWR.COM
OXFORDSHIRE CC,"CHILDRENS, YOUNG PEOPLE AND FAMILIES",CNTL ERLY HELP-BBLEY,PAYMENTS TO TRANSPORT OPERATORS,24/01/2022,9879982873,307.22,WIZZ AIR  BBZ83P
OXFORDSHIRE CC,"CHILDRENS, YOUNG PEOPLE AND FAMILIES","	LEAVING CARE SOUTH",CATERING,24/01/2022,9879982927,10.95,MCDONALDS
OXFORDSHIRE CC,"CHILDRENS, YOUNG PEOPLE AND FAMILIES","	SUPERVISED CONTACT",MATERIALS,24/01/2022,9879980201,304.99,ARGOS LTD
OXFORDSHIRE CC,"CHILDRENS, YOUNG PEOPLE AND FAMILIES","	SM QUALITY ASSURANCE",EDUCATIONAL AND VOCATIONAL TRAINING ,24/01/2022,9879980227,84,NCT BOOKING
OXFORDSHIRE CC,SOCIAL AND COMMUNITY SERVICES,CSS - OXFORD,CATERING PROVISIONS,24/01/2022,9879980275,14,B&M 514 - DICOT
OXFORDSHIRE CC,"CHILDRENS, YOUNG PEOPLE AND FAMILIES",CHILDREN IN CARE NON-STAFFING - NORTH,VEHICLE FUEL,24/01/2022,9879980311,63.45,ESSO ERMONT WAY SSTN
OXFORDSHIRE CC,"CHILDRENS, YOUNG PEOPLE AND FAMILIES",EYNSHAM,CATERING PROVISIONS,24/01/2022,9879983975,68.18,TESCO STORES 2008
OXFORDSHIRE CC,"CHILDRENS, YOUNG PEOPLE AND FAMILIES",EYNSHAM,MATERIALS,24/01/2022,9879983993,7.98,AMZNMKTPLACE
OXFORDSHIRE CC,"CHILDRENS, YOUNG PEOPLE AND FAMILIES",EYNSHAM,MATERIALS,24/01/2022,9879984005,14.97,AMZNMKTPLACE
OXFORDSHIRE CC,"CHILDRENS, YOUNG PEOPLE AND FAMILIES","	LOOKED AFTER CITY 1",VEHICLE FUEL,24/01/2022,9879980423,32.04,SAINSBURYS PETROL
OXFORDSHIRE CC,ENVIRONMENT AND ECONOMY,"	KNIGHTS COURT",CATERING PROVISIONS,24/01/2022,9879980449,1.49,CO-OPERATIVE FOOD
OXFORDSHIRE CC,"CHILDRENS, YOUNG PEOPLE AND FAMILIES",UASC 16&17,RESIDENTIAL ACTIVITIES,24/01/2022,9879980483,13.99,THE GYM LIMITED
OXFORDSHIRE CC,"CHILDRENS, YOUNG PEOPLE AND FAMILIES",PAUSE PROGRAMME,CATERING,24/01/2022,9879980537,5,GREGGS
OXFORDSHIRE CC,"CHILDRENS, YOUNG PEOPLE AND FAMILIES",UASC 16&17,RESIDENTIAL ACTIVITIES,24/01/2022,9879980501,13.99,THE GYM LIMITED
OXFORDSHIRE CC,"CHILDRENS, YOUNG PEOPLE AND FAMILIES",FAMILY SOLUTIONS PLUS NON-STAFF � SOUTH,HIRE OF ACCOMMODATION AND FACILITIES,24/01/2022,9879980513,525,JURYS INN OXFORD HOTEL
OXFORDSHIRE CC,"CHILDRENS, YOUNG PEOPLE AND FAMILIES","	HEARING IMPAIRMENT",MATERIALS,24/01/2022,9879981195,6.95,AMZNMKTPLACE
OXFORDSHIRE CC,CORPORATE CORE,OPERATIONS,MATERIALS,24/01/2022,9879981219,18.37,AMAZON.CO.UK MZ0HO7PW5
OXFORDSHIRE CC,CORPORATE CORE,OPERATIONS,MATERIALS,24/01/2022,9879981233,3.49,AMZNMKTPLACE
OXFORDSHIRE CC,SOCIAL AND COMMUNITY SERVICES,"	MUSEUMS COLLECTIONS",CATERING PROVISIONS,24/01/2022,9879981353,1.62,MILK AND MORE (RECUR
OXFORDSHIRE CC,"CHILDRENS, YOUNG PEOPLE AND FAMILIES","	LOOKED AFTER CITY 2",OTHER TRANSPORT ARRANGEMENTS,24/01/2022,9879981379,3.3,OXFORD BUS COMPANY
OXFORDSHIRE CC,"CHILDRENS, YOUNG PEOPLE AND FAMILIES","	LOOKED AFTER CITY 2",OTHER TRANSPORT ARRANGEMENTS,24/01/2022,9879981389,3.3,OXFORD BUS COMPANY
OXFORDSHIRE CC,"CHILDRENS, YOUNG PEOPLE AND FAMILIES","	OCCG GRANT",MATERIALS,24/01/2022,9879978455,9,ASDA STORE 4442
OXFORDSHIRE CC,"CHILDRENS, YOUNG PEOPLE AND FAMILIES","	OCCG GRANT",CATERING PROVISIONS,24/01/2022,9879978471,6,TESCO STORE 2788
OXFORDSHIRE CC,"CHILDRENS, YOUNG PEOPLE AND FAMILIES","	OCCG GRANT","SUPPLIES, STATIONERY AND MATERIALS",24/01/2022,9879978481,17,THEWORKS.CO.UK
OXFORDSHIRE CC,"CHILDRENS, YOUNG PEOPLE AND FAMILIES","	OCCG GRANT",CATERING,24/01/2022,9879978487,12.17,MCDONALDS
OXFORDSHIRE CC,"CHILDRENS, YOUNG PEOPLE AND FAMILIES","	OCCG GRANT",BIRTHDAY ALLOWANCE,24/01/2022,9879978501,10,J D SPORTS
OXFORDSHIRE CC,"CHILDRENS, YOUNG PEOPLE AND FAMILIES","	OCCG GRANT",CATERING PROVISIONS,24/01/2022,9879978533,4.77,LIDL GB WITNEY
OXFORDSHIRE CC,"CHILDRENS, YOUNG PEOPLE AND FAMILIES","	OCCG GRANT",CATERING PROVISIONS,24/01/2022,9879978551,1.9,SAINSBURYS S/MKTS
OXFORDSHIRE CC,ENVIRONMENT AND ECONOMY,"	SAMUELSON HOUSE",CATERING PROVISIONS,24/01/2022,9879978681,1.25,WM MORRISONS STORE
OXFORDSHIRE CC,ENVIRONMENT AND ECONOMY,"	SAMUELSON HOUSE",OTHER PREMISES RELATED COSTS,24/01/2022,9879978693,29.95,AMAZON.CO.UK SN5UZ19P5
OXFORDSHIRE CC,ENVIRONMENT AND ECONOMY,"	SAMUELSON HOUSE",OTHER PREMISES RELATED COSTS,24/01/2022,9879978665,74.75,AMZNMKTPLACE
OXFORDSHIRE CC,"CHILDRENS, YOUNG PEOPLE AND FAMILIES",UASC POST 18,OTHER EXPENSES,24/01/2022,9879978737,219.99,AMZNMKTPLACE
OXFORDSHIRE CC,"CHILDRENS, YOUNG PEOPLE AND FAMILIES","	RIVERSIDE CENTRE",CATERING PROVISIONS,24/01/2022,9879978917,7.85,SAINSBURYS S/MKTS
OXFORDSHIRE CC,"CHILDRENS, YOUNG PEOPLE AND FAMILIES",UASC POST 18,PAYMENTS TO TRANSPORT OPERATORS,24/01/2022,9879978997,12.9,GWR SWINDON TO
OXFORDSHIRE CC,"CHILDRENS, YOUNG PEOPLE AND FAMILIES",40 THE MOORS,CATERING,24/01/2022,9879979035,14.58,WENDY'S # 13253 OXFORD
OXFORDSHIRE CC,"CHILDRENS, YOUNG PEOPLE AND FAMILIES",40 THE MOORS,"BOOKS, DVDS AND CDS",24/01/2022,9879979049,9.99,WATERSTONES
OXFORDSHIRE CC,"CHILDRENS, YOUNG PEOPLE AND FAMILIES",WITNEY,HARDWARE AND CROCKERY,24/01/2022,9879979069,15,B & Q 1176
OXFORDSHIRE CC,"CHILDRENS, YOUNG PEOPLE AND FAMILIES","	OCCG GRANT",HARDWARE AND CROCKERY,24/01/2022,9879979089,22,B AND Q
OXFORDSHIRE CC,ENVIRONMENT AND ECONOMY,HARD FM,MATERIALS,24/01/2022,9879978941,4.99,HALFORDS 0837
OXFORDSHIRE CC,"CHILDRENS, YOUNG PEOPLE AND FAMILIES","	OCCG GRANT",HARDWARE AND CROCKERY,24/01/2022,9879979103,30,HOMEBASE LTD 091
OXFORDSHIRE CC,"CHILDRENS, YOUNG PEOPLE AND FAMILIES",DIDCOT MOVE-ON HOME,CATERING PROVISIONS,24/01/2022,9879980071,28.62,SAINSBURYS SMKT
OXFORDSHIRE CC,"CHILDRENS, YOUNG PEOPLE AND FAMILIES",FAMILY SOLUTIONS PLUS NON-STAFF � SOUTH,HIRE OF ACCOMMODATION AND FACILITIES,24/01/2022,9879980091,500,CROWNE PLAZA MARLOW
OXFORDSHIRE CC,"CHILDRENS, YOUNG PEOPLE AND FAMILIES",FAMILY SOLUTIONS PLUS NON-STAFF � SOUTH,HIRE OF ACCOMMODATION AND FACILITIES,24/01/2022,9879980103,500,CROWNE PLAZA MARLOW
OXFORDSHIRE CC,SOCIAL AND COMMUNITY SERVICES,"	LIBRARY COLLECTIONS",PROFESSIONAL SUBSCRIPTIONS,24/01/2022,9879980119,"2,587.59",ISUBSCRIBE.COM
OXFORDSHIRE CC,"CHILDRENS, YOUNG PEOPLE AND FAMILIES",EYNSHAM,CATERING PROVISIONS,24/01/2022,9879980019,13.4,CO-OPERATIVE FOOD
OXFORDSHIRE CC,"CHILDRENS, YOUNG PEOPLE AND FAMILIES",UASC 16&17,CLOTHING AND UNIFORMS,24/01/2022,9879980035,71,PRIMARK 440
OXFORDSHIRE CC,"CHILDRENS, YOUNG PEOPLE AND FAMILIES",DIDCOT MOVE-ON HOME,CATERING PROVISIONS,24/01/2022,9879980059,32.61,SAINSBURYS SMKT
OXFORDSHIRE CC,"CHILDRENS, YOUNG PEOPLE AND FAMILIES","	ALTERNATIVES TO CARE",HARDWARE AND CROCKERY,24/01/2022,9879983625,6,HOMEBASE LTD 091
OXFORDSHIRE CC,"CHILDRENS, YOUNG PEOPLE AND FAMILIES","	ALTERNATIVES TO CARE",VEHICLE FUEL,24/01/2022,9879983735,4.35,CO-OPERATIVE FUEL
OXFORDSHIRE CC,"CHILDRENS, YOUNG PEOPLE AND FAMILIES","	ALTERNATIVES TO CARE",MATERIALS,24/01/2022,9879983643,59,ARGOS LTD
OXFORDSHIRE CC,"CHILDRENS, YOUNG PEOPLE AND FAMILIES","	ALTERNATIVES TO CARE",MATERIALS,24/01/2022,9879983661,181.95,ARGOS LTD
OXFORDSHIRE CC,CORPORATE CORE,THAME LIBRARY,LAUNDRY AND DRY CLEANING,24/01/2022,9879983799,10,MR MEND
OXFORDSHIRE CC,"CHILDRENS, YOUNG PEOPLE AND FAMILIES","	ALTERNATIVES TO CARE",CATERING PROVISIONS,24/01/2022,9879983673,10.69,ALDI STORES 775-142
OXFORDSHIRE CC,"CHILDRENS, YOUNG PEOPLE AND FAMILIES","	ALTERNATIVES TO CARE",CATERING PROVISIONS,24/01/2022,9879983689,236.17,B&M 514 - DICOT
OXFORDSHIRE CC,"CHILDRENS, YOUNG PEOPLE AND FAMILIES","	ALTERNATIVES TO CARE",CATERING PROVISIONS,24/01/2022,9879983707,197.43,B&M 514 - DICOT
OXFORDSHIRE CC,"CHILDRENS, YOUNG PEOPLE AND FAMILIES","	ALTERNATIVES TO CARE",VEHICLE FUEL,24/01/2022,9879983723,5.3,TESCO PFS 3418
OXFORDSHIRE CC,"CHILDRENS, YOUNG PEOPLE AND FAMILIES",WITNEY,CATERING PROVISIONS,24/01/2022,9879980141,7.97,SAINSBURYS S/MKTS
OXFORDSHIRE CC,"CHILDRENS, YOUNG PEOPLE AND FAMILIES",WITNEY,VEHICLE FUEL,24/01/2022,9879980155,6.75,TESCO PFS 3418
OXFORDSHIRE CC,"CHILDRENS, YOUNG PEOPLE AND FAMILIES","	LEAVING CARE NORTH",CATERING,24/01/2022,9879980175,4.96,MCDONALDS
OXFORDSHIRE CC,"CHILDRENS, YOUNG PEOPLE AND FAMILIES",FAMILY SOLUTIONS PLUS NON-STAFF � SOUTH,MATERIALS,24/01/2022,9879977001,49.99,ARGOS LTD
OXFORDSHIRE CC,SOCIAL AND COMMUNITY SERVICES,SCHOOLS FM CATERING AREA 4,CATERING PROVISIONS,24/01/2022,9879977077,38.9,SAINSBURY'S S/MKT
OXFORDSHIRE CC,"CHILDRENS, YOUNG PEOPLE AND FAMILIES","	LEAVING CARE CITY 2",OTHER TRANSPORT ARRANGEMENTS,24/01/2022,9879977129,3.9,OCC ON-STREET PARKING
OXFORDSHIRE CC,SOCIAL AND COMMUNITY SERVICES,SCHOOLS FM CATERING AREA 2,CATERING,24/01/2022,9879977299,55.58,BOOKER LIMITED OXFORD
OXFORDSHIRE CC,"CHILDRENS, YOUNG PEOPLE AND FAMILIES",DISABILITIES TEAM S,OTHER SERVICES,24/01/2022,9879977355,12.7,ABINGDON SNAKES AND LA
OXFORDSHIRE CC,SOCIAL AND COMMUNITY SERVICES,CSS - OXFORD,HARDWARE AND CROCKERY,24/01/2022,9879977263,16,HOMEBASE LTD 091
OXFORDSHIRE CC,"CHILDRENS, YOUNG PEOPLE AND FAMILIES",DISABILITIES TEAM S,OTHER SERVICES,24/01/2022,9879977369,12.7,ABINGDON SNAKES AND LA
OXFORDSHIRE CC,SOCIAL AND COMMUNITY SERVICES,CSS WALLINGFORD,CATERING PROVISIONS,24/01/2022,9879977391,6.55,WAITROSE 675
OXFORDSHIRE CC,SOCIAL AND COMMUNITY SERVICES,CSS WALLINGFORD,MATERIALS,24/01/2022,9879977409,6.49,AMZNMKTPLACE
OXFORDSHIRE CC,"CHILDRENS, YOUNG PEOPLE AND FAMILIES",CSS - DIDCOT,CATERING PROVISIONS,24/01/2022,9879977583,2,SAINSBURYS S/MKTS
OXFORDSHIRE CC,"CHILDRENS, YOUNG PEOPLE AND FAMILIES",THAME E&A HOME,CATERING PROVISIONS,24/01/2022,9879977609,90.63,TESCO STORES 2038
OXFORDSHIRE CC,"CHILDRENS, YOUNG PEOPLE AND FAMILIES",FAMILY SOLUTIONS PLUS NON-STAFF � SOUTH,HIRE OF ACCOMMODATION AND FACILITIES,24/01/2022,9879977625,68,PREMIER INN
OXFORDSHIRE CC,"CHILDRENS, YOUNG PEOPLE AND FAMILIES",40 THE MOORS,CATERING PROVISIONS,24/01/2022,9879977753,2.65,TESCO STORE 2788
OXFORDSHIRE CC,"CHILDRENS, YOUNG PEOPLE AND FAMILIES",DIDCOT MOVE-ON HOME,MATERIALS,24/01/2022,9879977685,7.99,AMAZON PRIME 936M26IN5
OXFORDSHIRE CC,"CHILDRENS, YOUNG PEOPLE AND FAMILIES",40 THE MOORS,CATERING,24/01/2022,9879977765,11.97,KFC
OXFORDSHIRE CC,"CHILDRENS, YOUNG PEOPLE AND FAMILIES",40 THE MOORS,CATERING PROVISIONS,24/01/2022,9879977777,62.67,HEAT AFRICAN BAR
OXFORDSHIRE CC,"CHILDRENS, YOUNG PEOPLE AND FAMILIES",40 THE MOORS,TELEPHONE - EQUIPMENT,24/01/2022,9879977789,35,THREE
OXFORDSHIRE CC,"CHILDRENS, YOUNG PEOPLE AND FAMILIES",EYNSHAM,ENTERTAINMENT EXPENSES,24/01/2022,9879977843,14,LASERQUEST
OXFORDSHIRE CC,"CHILDRENS, YOUNG PEOPLE AND FAMILIES",40 THE MOORS,CLOTHING AND UNIFORMS,24/01/2022,9879977885,25.45,THE STEVENSON GROUP LT
OXFORDSHIRE CC,"CHILDRENS, YOUNG PEOPLE AND FAMILIES",40 THE MOORS,CATERING PROVISIONS,24/01/2022,9879977903,11.99,SAINSBURYS S/MKTS
OXFORDSHIRE CC,"CHILDRENS, YOUNG PEOPLE AND FAMILIES",40 THE MOORS,CATERING PROVISIONS,24/01/2022,9879977979,105.31,SAINSBURYS.CO.UK
OXFORDSHIRE CC,"CHILDRENS, YOUNG PEOPLE AND FAMILIES",40 THE MOORS,MATERIALS,24/01/2022,9879978005,-34.97,M AND M DIRECT LTD
OXFORDSHIRE CC,"CHILDRENS, YOUNG PEOPLE AND FAMILIES","	LEAVING CARE SOUTH",PAYMENT TO GOVERNMENT DEPARTMENTS,24/01/2022,9879978121,75.5,HM PASSPORT OFFICE
OXFORDSHIRE CC,SOCIAL AND COMMUNITY SERVICES,CHILDREN IN CARE NON-STAFFING - NORTH,MATERIALS,24/01/2022,9879978145,11.98,AMZNMKTPLACE AMAZON.CO
OXFORDSHIRE CC,SOCIAL AND COMMUNITY SERVICES,CHILDREN IN CARE NON-STAFFING - NORTH,MATERIALS,24/01/2022,9879978159,9.6,HOBBYCRAFT
OXFORDSHIRE CC,SOCIAL AND COMMUNITY SERVICES,CHILDREN IN CARE NON-STAFFING - NORTH,PAYMENTS TO TRANSPORT OPERATORS,24/01/2022,9879978169,245.48,BRITISH A
OXFORDSHIRE CC,SOCIAL AND COMMUNITY SERVICES,CHILDREN IN CARE NON-STAFFING - NORTH,MATERIALS,24/01/2022,9879978191,33.84,AMZNMKTPLACE AMAZON.CO
OXFORDSHIRE CC,SOCIAL AND COMMUNITY SERVICES,CHILDREN IN CARE NON-STAFFING - NORTH,PAYMENT TO GOVERNMENT DEPARTMENTS,24/01/2022,9879978199,11,GEN REGISTER OFFICE
OXFORDSHIRE CC,"CHILDRENS, YOUNG PEOPLE AND FAMILIES","	LEAVING CARE NORTH",MATERIALS,24/01/2022,9879978229,55.94,ARGOS LTD
OXFORDSHIRE CC,"CHILDRENS, YOUNG PEOPLE AND FAMILIES","	LEAVING CARE NORTH",FURNITURE,24/01/2022,9879978245,258.95,DUNELM
OXFORDSHIRE CC,"CHILDRENS, YOUNG PEOPLE AND FAMILIES","	OCCG GRANT",RESIDENTIAL ACTIVITIES,24/01/2022,9879979177,39.99,PUREGYM LIMITED
OXFORDSHIRE CC,"CHILDRENS, YOUNG PEOPLE AND FAMILIES","	OCCG GRANT",RESIDENTIAL ACTIVITIES,24/01/2022,9879979199,39.99,PUREGYM LIMITED
OXFORDSHIRE CC,"CHILDRENS, YOUNG PEOPLE AND FAMILIES","	OCCG GRANT",CATERING PROVISIONS,24/01/2022,9879979213,15.75,TESCO STORE 2994
OXFORDSHIRE CC,"CHILDRENS, YOUNG PEOPLE AND FAMILIES",FAMILY SOLUTIONS PLUS STAFFING - SOUTH,HIRE OF ACCOMMODATION AND FACILITIES,24/01/2022,9879979239,500,CROWNE PLAZA MARLOW
OXFORDSHIRE CC,"CHILDRENS, YOUNG PEOPLE AND FAMILIES",FAMILY SOLUTIONS PLUS STAFFING - SOUTH,HIRE OF ACCOMMODATION AND FACILITIES,24/01/2022,9879979257,500,CROWNE PLAZA MARLOW
OXFORDSHIRE CC,ENVIRONMENT AND ECONOMY,"	ROW MAINT",EQUIPMENT,24/01/2022,9879976329,624,L J AND C A CANNINGS
OXFORDSHIRE CC,"CHILDRENS, YOUNG PEOPLE AND FAMILIES",ATV ADOPTION WOODLEY,POSTAGE AND DELIVERY,24/01/2022,9879976201,2.69,POST OFFICE COUNTER
OXFORDSHIRE CC,"CHILDRENS, YOUNG PEOPLE AND FAMILIES",THAME E&A HOME,CATERING PROVISIONS,24/01/2022,9879976233,24.44,ASDA SUPERSTORE
OXFORDSHIRE CC,"CHILDRENS, YOUNG PEOPLE AND FAMILIES",CSS WANTAGE,MATERIALS,24/01/2022,9879976351,15.25,SAINSBURYS S/MKT
OXFORDSHIRE CC,"CHILDRENS, YOUNG PEOPLE AND FAMILIES",WITNEY,CATERING PROVISIONS,24/01/2022,9879979467,8.9,CO-OP GROUP 070582
OXFORDSHIRE CC,"CHILDRENS, YOUNG PEOPLE AND FAMILIES",WITNEY,CATERING PROVISIONS,24/01/2022,9879979481,38.57,SAINSBURY'S S/MKT
OXFORDSHIRE CC,"CHILDRENS, YOUNG PEOPLE AND FAMILIES",WITNEY,CATERING PROVISIONS,24/01/2022,9879979489,56.65,SAINSBURY'S S/MKT
OXFORDSHIRE CC,"CHILDRENS, YOUNG PEOPLE AND FAMILIES",WITNEY,MATERIALS,24/01/2022,9879979447,2,POUNDLAND LTD
OXFORDSHIRE CC,SOCIAL AND COMMUNITY SERVICES,CSS - OXFORD,ENTERTAINMENT EXPENSES,24/01/2022,9879976519,80,ZTL DELTAVIOLIN
OXFORDSHIRE CC,SOCIAL AND COMMUNITY SERVICES,CSS - ABINGDON,MATERIALS,24/01/2022,9879976547,5.5,TESCO STORES 2008
OXFORDSHIRE CC,ENVIRONMENT AND ECONOMY,HARD FM,HARDWARE AND CROCKERY,24/01/2022,9879976571,18.2,WICKES BICESTER
OXFORDSHIRE CC,ENVIRONMENT AND ECONOMY,HARD FM,HARDWARE AND CROCKERY,24/01/2022,9879976591,4.99,SCREWFIX DIRECT
OXFORDSHIRE CC,ENVIRONMENT AND ECONOMY,HARD FM,HARDWARE AND CROCKERY,24/01/2022,9879976695,83.83,SCREWFIX DIRECT
OXFORDSHIRE CC,ENVIRONMENT AND ECONOMY,HARD FM,HARDWARE AND CROCKERY,24/01/2022,9879976603,5.99,SCREWFIX DIRECT
OXFORDSHIRE CC,ENVIRONMENT AND ECONOMY,"	COUNTY PRINT FINSHRS",CATERING PROVISIONS,24/01/2022,9879976717,9.72,MILK AND MORE (RECUR
OXFORDSHIRE CC,"CHILDRENS, YOUNG PEOPLE AND FAMILIES","	LEAVING CARE CITY 1",OTHER EXPENSES,24/01/2022,9879976751,5.99,THE RANGE
OXFORDSHIRE CC,"CHILDRENS, YOUNG PEOPLE AND FAMILIES","	LEAVING CARE CITY 1",OTHER EXPENSES,24/01/2022,9879976769,499.78,THE RANGE
OXFORDSHIRE CC,ENVIRONMENT AND ECONOMY,HARD FM,HARDWARE AND CROCKERY,24/01/2022,9879976635,287.13,B AND Q
OXFORDSHIRE CC,ENVIRONMENT AND ECONOMY,HARD FM,HARDWARE AND CROCKERY,24/01/2022,9879976661,48.05,SCREWFIX DIR LTD
OXFORDSHIRE CC,"CHILDRENS, YOUNG PEOPLE AND FAMILIES",KEEP ON CARING,OTHER TRANSPORT ARRANGEMENTS,24/01/2022,9879976781,1.95,NCP PARK PASS
OXFORDSHIRE CC,"CHILDRENS, YOUNG PEOPLE AND FAMILIES",KEEP ON CARING,OTHER EXPENSES,24/01/2022,9879976793,54.99,ARGOS LTD
OXFORDSHIRE CC,"CHILDRENS, YOUNG PEOPLE AND FAMILIES","	LEAVING CARE CITY 1",CATERING,24/01/2022,9879976811,3,IZ  DODO PUB CO
OXFORDSHIRE CC,"CHILDRENS, YOUNG PEOPLE AND FAMILIES","	FAM SUPP CITY 1","SUPPLIES, STATIONERY AND MATERIALS",24/01/2022,9879976875,180.27,EASYSTORAGE
OXFORDSHIRE CC,ENVIRONMENT AND ECONOMY,MAINTENANCE STAFF,STATIONERY,21/01/2022,7948065014,37.88,STINKYINK COM
OXFORDSHIRE CC,"CHILDRENS, YOUNG PEOPLE AND FAMILIES","	LEAVING CARE CITY 2",CATERING PROVISIONS,21/01/2022,7948065052,3.09,LONDIS SUPERMARKET
OXFORDSHIRE CC,"CHILDRENS, YOUNG PEOPLE AND FAMILIES","	LEAVING CARE CITY 2",OTHER TRANSPORT ARRANGEMENTS,21/01/2022,7948065056,5.7,OCC ON-STREET PARKING
OXFORDSHIRE CC,"CHILDRENS, YOUNG PEOPLE AND FAMILIES","	LEAVING CARE CITY 2",CATERING,21/01/2022,7948065060,6.95,THE JERICHO CAFE
OXFORDSHIRE CC,"CHILDRENS, YOUNG PEOPLE AND FAMILIES",CNTL EARLY HELP-BRTN,PURCHASE OF IT EQUIPMENT,21/01/2022,7948065764,85.2,TOTAL COMPUTER NETWORK
OXFORDSHIRE CC,"CHILDRENS, YOUNG PEOPLE AND FAMILIES","	PARENT PARTNERSHIP",PRINTING,21/01/2022,7948065796,179.99,WWW.LEXISNEXIS.CO.UK
OXFORDSHIRE CC,SOCIAL AND COMMUNITY SERVICES,LIBRARY SUPPORT SERV,GENERAL MAINTENANCE,21/01/2022,7948065082,9.99,AMZNMKTPLACE
OXFORDSHIRE CC,"CHILDRENS, YOUNG PEOPLE AND FAMILIES",FAMILY SOLUTIONS PLUS NON-STAFF - NORTH,PAYMENTS TO TRANSPORT OPERATORS,21/01/2022,7948065094,5.81,THETRAINLINE.COM
OXFORDSHIRE CC,"CHILDRENS, YOUNG PEOPLE AND FAMILIES",FAMILY SOLUTIONS PLUS NON-STAFF - NORTH,PAYMENTS TO TRANSPORT OPERATORS,21/01/2022,7948065098,14.78,THETRAINLINE.COM
OXFORDSHIRE CC,"CHILDRENS, YOUNG PEOPLE AND FAMILIES",NTH EARLY HELP-BCSTR,MATERIALS,21/01/2022,7948065102,14.44,AMZNMKTPLACE
OXFORDSHIRE CC,SOCIAL AND COMMUNITY SERVICES,SCHOOLS FM CATERING AREA 2,CATERING PROVISIONS,21/01/2022,7948065108,67.96,TESCO STORE 2064
OXFORDSHIRE CC,SOCIAL AND COMMUNITY SERVICES,CSS WALLINGFORD,MATERIALS,21/01/2022,7948065122,10.94,AMAZON.CO.UK L08F96JN5
OXFORDSHIRE CC,"CHILDRENS, YOUNG PEOPLE AND FAMILIES","	LEAVING CARE SOUTH","SUPPLIES, STATIONERY AND MATERIALS",21/01/2022,7948065900,210,BOING RAPID SECURE LTD
OXFORDSHIRE CC,CORPORATE CORE,ICT OPERATIONS & MAI,MATERIALS,21/01/2022,7948065906,342.51,AMZNMKTPLACE
OXFORDSHIRE CC,CORPORATE CORE,ICT OPERATIONS & MAI,MATERIALS,21/01/2022,7948065910,293.58,AMZNMKTPLACE
OXFORDSHIRE CC,"CHILDRENS, YOUNG PEOPLE AND FAMILIES",WITNEY,MATERIALS,21/01/2022,7948064842,37.96,AMZNMKTPLACE AMAZON.CO
OXFORDSHIRE CC,SOCIAL AND COMMUNITY SERVICES,CSS - ABINGDON,MATERIALS,21/01/2022,7948064848,26.2,HOBBYCRAFT
OXFORDSHIRE CC,SOCIAL AND COMMUNITY SERVICES,CSS - ABINGDON,MATERIALS,21/01/2022,7948064850,102.4,CARESHOP
OXFORDSHIRE CC,SOCIAL AND COMMUNITY SERVICES,CSS - ABINGDON,MATERIALS,21/01/2022,7948064854,23.82,AMZNMKTPLACE
OXFORDSHIRE CC,"CHILDRENS, YOUNG PEOPLE AND FAMILIES",KINGFISHER,HEALTH AND SAFETY EQUIPMENT,21/01/2022,7948064866,28.5,AMZNMKTPLACE AMAZON.CO
OXFORDSHIRE CC,"CHILDRENS, YOUNG PEOPLE AND FAMILIES",UASC 16&17,NON-STAFF SUBSISTENCE AND EXPENSES,21/01/2022,7948064868,46.43,CYCLE KING
OXFORDSHIRE CC,"CHILDRENS, YOUNG PEOPLE AND FAMILIES","	LOOKED AFTER CITY 2",OTHER TRANSPORT ARRANGEMENTS,21/01/2022,7948065634,3.3,OXFORD BUS COMPANY
OXFORDSHIRE CC,"CHILDRENS, YOUNG PEOPLE AND FAMILIES","	LOOKED AFTER CITY 2",OTHER TRANSPORT ARRANGEMENTS,21/01/2022,7948065638,1.7,OXFORD BUS COMPANY
OXFORDSHIRE CC,"CHILDRENS, YOUNG PEOPLE AND FAMILIES","	LOOKED AFTER CITY 2",OTHER TRANSPORT ARRANGEMENTS,21/01/2022,7948065640,3.8,STGCOACH/CTYLINK
OXFORDSHIRE CC,CORPORATE CORE,HISTORY SERVICE,FURNITURE,21/01/2022,7948065676,199.99,AMZNMKTPLACE
OXFORDSHIRE CC,SOCIAL AND COMMUNITY SERVICES,CHILDREN IN CARE NON-STAFFING - NORTH,CATERING PROVISIONS,21/01/2022,7948065684,1.75,WM MORRISONS STORE
OXFORDSHIRE CC,ENVIRONMENT AND ECONOMY,HARD FM,HARDWARE AND CROCKERY,21/01/2022,7948064928,40.75,WICKES OXFORD
OXFORDSHIRE CC,"CHILDRENS, YOUNG PEOPLE AND FAMILIES","	LOOKED AFTER CITY 1",RESIDENTIAL ACTIVITIES,21/01/2022,7948064896,15.05,SAINSBURYS S/MKTS
OXFORDSHIRE CC,ENVIRONMENT AND ECONOMY,HARD FM,HARDWARE AND CROCKERY,21/01/2022,7948064906,36,WICKES OXFORD
OXFORDSHIRE CC,ENVIRONMENT AND ECONOMY,HARD FM,HARDWARE AND CROCKERY,21/01/2022,7948064916,16,B & Q 1062
OXFORDSHIRE CC,SOCIAL AND COMMUNITY SERVICES,UASC 16&17,PAYMENTS TO TRANSPORT OPERATORS,21/01/2022,7948064936,7.1,GWR OXFORD SST
OXFORDSHIRE CC,"CHILDRENS, YOUNG PEOPLE AND FAMILIES","	LEAVING CARE CITY 1",OTHER EXPENSES,21/01/2022,7948064942,132.45,WILKO RETAIL LIMITED
OXFORDSHIRE CC,SOCIAL AND COMMUNITY SERVICES,CHILDREN IN CARE NON-STAFFING - NORTH,CATERING,21/01/2022,7948065688,23.7,FRANKIE & BENNYS 5389
OXFORDSHIRE CC,SOCIAL AND COMMUNITY SERVICES,"	MUSEUMS COLLECTIONS",OTHER SERVICES,21/01/2022,7948065694,49.32,FINDEL EDUCATION
OXFORDSHIRE CC,SOCIAL AND COMMUNITY SERVICES,CSS WANTAGE,MATERIALS,21/01/2022,7948065714,53.94,AMZNMKTPLACE
OXFORDSHIRE CC,"CHILDRENS, YOUNG PEOPLE AND FAMILIES","	PHYSICAL DISABILITY",DISABILITY AIDS AND EQUIPMENT,21/01/2022,7948065716,31.8,EXPLORE YOUR SENSES
OXFORDSHIRE CC,"CHILDRENS, YOUNG PEOPLE AND FAMILIES","	AAC EQUIPMENT",PURCHASE OF IT EQUIPMENT,21/01/2022,7948065720,52.5,AMZNMKTPLACE AMAZON.CO
OXFORDSHIRE CC,"CHILDRENS, YOUNG PEOPLE AND FAMILIES","	SEN/ICT EQUIPMENT",PURCHASE OF IT EQUIPMENT,21/01/2022,7948065722,400,AMZNMKTPLACE AMAZON.CO
OXFORDSHIRE CC,"CHILDRENS, YOUNG PEOPLE AND FAMILIES","	AAC EQUIPMENT",PURCHASE OF IT EQUIPMENT,21/01/2022,7948065724,109.24,AMZNMKTPLACE
OXFORDSHIRE CC,ENVIRONMENT AND ECONOMY,"	ROW MAINT","SUPPLIES, STATIONERY AND MATERIALS",21/01/2022,7948065728,229.96,BSI STANDARDS LTD
OXFORDSHIRE CC,ENVIRONMENT AND ECONOMY,SCH&SOC CARE TRANSP,DISABILITY AIDS AND EQUIPMENT,21/01/2022,7948065734,172.58,AMZNMKTPLACE AMAZON.CO
OXFORDSHIRE CC,CORPORATE CORE,PUBLIC HEALTH GENERA,"SUPPLIES, STATIONERY AND MATERIALS",21/01/2022,7948065386,190.8,WWW.LOCAL.GOV.UK
OXFORDSHIRE CC,"CHILDRENS, YOUNG PEOPLE AND FAMILIES",WITNEY,CATERING PROVISIONS,21/01/2022,7948065394,19.13,SAINSBURYS S/MKTS
OXFORDSHIRE CC,"CHILDRENS, YOUNG PEOPLE AND FAMILIES","	OCCG GRANT",CATERING,21/01/2022,7948065400,79.92,DOMINO S PIZZA
OXFORDSHIRE CC,"CHILDRENS, YOUNG PEOPLE AND FAMILIES",WITNEY,CATERING PROVISIONS,21/01/2022,7948065434,11.7,CO-OP GROUP 070582
OXFORDSHIRE CC,"CHILDRENS, YOUNG PEOPLE AND FAMILIES",UASC 16&17,RESIDENTIAL ACTIVITIES,21/01/2022,7948065456,13.99,THE GYM LIMITED
OXFORDSHIRE CC,SOCIAL AND COMMUNITY SERVICES,CSS - OXFORD,CATERING PROVISIONS,21/01/2022,7948065464,26.53,ALDI STORES 775-142
OXFORDSHIRE CC,"CHILDRENS, YOUNG PEOPLE AND FAMILIES","	LEAVING CARE CITY 2",OTHER TRANSPORT ARRANGEMENTS,21/01/2022,7948065470,4.3,STGCOACH/CTYLINK
OXFORDSHIRE CC,"CHILDRENS, YOUNG PEOPLE AND FAMILIES",HOUSE PROJECT,OTHER TRANSPORT ARRANGEMENTS,21/01/2022,7948065488,4,WESTGATE OXFORD CAR PA
OXFORDSHIRE CC,"CHILDRENS, YOUNG PEOPLE AND FAMILIES",HOUSE PROJECT,CATERING PROVISIONS,21/01/2022,7948065492,3.38,BONN SQUARE NEWS
OXFORDSHIRE CC,"CHILDRENS, YOUNG PEOPLE AND FAMILIES",HOUSE PROJECT,CATERING PROVISIONS,21/01/2022,7948065484,30.3,SAINSBURYS S/MKTS
OXFORDSHIRE CC,"CHILDRENS, YOUNG PEOPLE AND FAMILIES",STH EARLY HELP-ABNDN,MATERIALS,21/01/2022,7948065506,189.99,CURRYS ONLINE
OXFORDSHIRE CC,SOCIAL AND COMMUNITY SERVICES,CSS - OXFORD,CATERING PROVISIONS,21/01/2022,7948065510,22,SAINSBURYS S/MKTS
OXFORDSHIRE CC,"CHILDRENS, YOUNG PEOPLE AND FAMILIES","	OCCG GRANT",CATERING PROVISIONS,21/01/2022,7948065516,5.65,SAINSBURYS S/MKTS
OXFORDSHIRE CC,ENVIRONMENT AND ECONOMY,"	KNIGHTS COURT",OTHER PREMISES RELATED COSTS,21/01/2022,7948065520,1.5,ASDA STORE 4442
OXFORDSHIRE CC,"CHILDRENS, YOUNG PEOPLE AND FAMILIES","	LEAVING CARE CITY 2",CATERING,21/01/2022,7948065522,5.9,CAFFE NERO CHIPPING NO
OXFORDSHIRE CC,"CHILDRENS, YOUNG PEOPLE AND FAMILIES",WITNEY,CATERING PROVISIONS,21/01/2022,7948064836,14.4,SAINSBURY'S S/MKT
OXFORDSHIRE CC,"CHILDRENS, YOUNG PEOPLE AND FAMILIES",ATV ADOPTION WOODLEY,HIRE OF ACCOMMODATION AND FACILITIES,21/01/2022,7948064824,280,SHIILLINGFORD BRIDGE H
OXFORDSHIRE CC,"CHILDRENS, YOUNG PEOPLE AND FAMILIES",WITNEY,MATERIALS,21/01/2022,7948064826,189.99,ARGOS LTD
OXFORDSHIRE CC,"CHILDRENS, YOUNG PEOPLE AND FAMILIES",WITNEY,MATERIALS,21/01/2022,7948064828,18,THEWORKS
OXFORDSHIRE CC,"CHILDRENS, YOUNG PEOPLE AND FAMILIES",WITNEY,CATERING PROVISIONS,21/01/2022,7948064832,25.75,SAINSBURY'S S/MKT
OXFORDSHIRE CC,SOCIAL AND COMMUNITY SERVICES,CSS WALLINGFORD,MATERIALS,21/01/2022,7948065124,8.48,AMZNMKTPLACE
OXFORDSHIRE CC,ENVIRONMENT AND ECONOMY,EET SERVICE,HIRE OF ACCOMMODATION AND FACILITIES,21/01/2022,7948065936,49,PREMIER INN
OXFORDSHIRE CC,ENVIRONMENT AND ECONOMY,EET SERVICE,HIRE OF ACCOMMODATION AND FACILITIES,21/01/2022,7948065944,-3,PREMIER INN
OXFORDSHIRE CC,"CHILDRENS, YOUNG PEOPLE AND FAMILIES",CARE & SUPPORT BROKERAGE CHILDREN,POSTAGE AND DELIVERY,21/01/2022,7948065966,26.65,ROYAL MAIL GROUP LTD
OXFORDSHIRE CC,"CHILDRENS, YOUNG PEOPLE AND FAMILIES",EYNSHAM,MATERIALS,21/01/2022,7948066010,16.28,AMZNMKTPLACE AMAZON.CO
OXFORDSHIRE CC,"CHILDRENS, YOUNG PEOPLE AND FAMILIES",EYNSHAM,MATERIALS,21/01/2022,7948066012,54.98,AMZNMKTPLACE AMAZON.CO
OXFORDSHIRE CC,CORPORATE CORE,,STATIONERY,21/01/2022,7948066014,9.02,LYRECO UK LTD
OXFORDSHIRE CC,CORPORATE CORE,,STATIONERY,21/01/2022,7948066016,14.88,LYRECO UK LTD
OXFORDSHIRE CC,CORPORATE CORE,,STATIONERY,21/01/2022,7948066018,14.74,LYRECO UK LTD
OXFORDSHIRE CC,CORPORATE CORE,,STATIONERY,21/01/2022,7948066022,73.55,LYRECO UK LTD
OXFORDSHIRE CC,CORPORATE CORE,,STATIONERY,21/01/2022,7948066028,4.12,LYRECO UK LTD
OXFORDSHIRE CC,SHARED SERVICES,CSC MAIN TEAM,POSTAGE AND DELIVERY,21/01/2022,7948065234,22.5,ROYAL MAIL GROUP LTD
OXFORDSHIRE CC,SOCIAL AND COMMUNITY SERVICES,CHILDREN IN CARE NON-STAFFING - NORTH,HIRE OF ACCOMMODATION AND FACILITIES,21/01/2022,7948065242,91.08,HOTEL AT BOOKING.COM
OXFORDSHIRE CC,CORPORATE CORE,,STATIONERY,21/01/2022,7948066032,28.58,LYRECO UK LTD
OXFORDSHIRE CC,"CHILDRENS, YOUNG PEOPLE AND FAMILIES",NTH EARLY HELP-WITNY,MANAGEMENT CONSULTANT FEES,21/01/2022,7948065298,159,TVLICENSING.CO.UK
OXFORDSHIRE CC,"CHILDRENS, YOUNG PEOPLE AND FAMILIES",THAME E&A HOME,CATERING PROVISIONS,21/01/2022,7948065304,6.9,THAME BP SF CONNECT
OXFORDSHIRE CC,"CHILDRENS, YOUNG PEOPLE AND FAMILIES",THAME E&A HOME,CATERING PROVISIONS,21/01/2022,7948065308,1.25,SAINSBURYS S/MKTS
OXFORDSHIRE CC,"CHILDRENS, YOUNG PEOPLE AND FAMILIES",HOUSE PROJECT,MATERIALS,21/01/2022,7948065318,69,WWW.GROUPON.CO.UK
OXFORDSHIRE CC,"CHILDRENS, YOUNG PEOPLE AND FAMILIES",HOUSE PROJECT,MATERIALS,21/01/2022,7948065314,69,WWW.GROUPON.CO.UK
OXFORDSHIRE CC,"CHILDRENS, YOUNG PEOPLE AND FAMILIES",HOUSE PROJECT,MATERIALS,21/01/2022,7948065316,69,WWW.GROUPON.CO.UK
OXFORDSHIRE CC,"CHILDRENS, YOUNG PEOPLE AND FAMILIES","	OCCG GRANT",MATERIALS,21/01/2022,7948065322,14,POUNDLAND LTD 1586
OXFORDSHIRE CC,"CHILDRENS, YOUNG PEOPLE AND FAMILIES","	OCCG GRANT",EDUCATIONAL AND VOCATIONAL TRAINING ,21/01/2022,7948065326,62.55,THEWORKS.CO.UK
OXFORDSHIRE CC,"CHILDRENS, YOUNG PEOPLE AND FAMILIES","	OCCG GRANT",HARDWARE AND CROCKERY,21/01/2022,7948065334,6,B & Q 1062
OXFORDSHIRE CC,"CHILDRENS, YOUNG PEOPLE AND FAMILIES",UASC 16&17,CATERING PROVISIONS,21/01/2022,7948065338,3.5,TESCO STORE 2994
OXFORDSHIRE CC,ENTERPRISEVC,,CAR LEASING - PRIVATE RENTALS,20/01/2022,7944302048,63.07,ENTERPRISE RENT-A-CAR
OXFORDSHIRE CC,ENTERPRISEVC,,CAR LEASING - PRIVATE RENTALS,20/01/2022,7944302050,81.95,ENTERPRISE RENT-A-CAR
OXFORDSHIRE CC,"CHILDRENS, YOUNG PEOPLE AND FAMILIES",UASC 16&17,RESIDENTIAL ACTIVITIES,20/01/2022,7944301386,13.99,THE GYM LIMITED
OXFORDSHIRE CC,"CHILDRENS, YOUNG PEOPLE AND FAMILIES","	MUSIC UNALLOCABLE",MATERIALS,20/01/2022,7944301396,51.5,SP   CHAMBERLAIN MUSIC
OXFORDSHIRE CC,"CHILDRENS, YOUNG PEOPLE AND FAMILIES","	MUSIC UNALLOCABLE",MATERIALS,20/01/2022,7944301400,27.8,64449
OXFORDSHIRE CC,"CHILDRENS, YOUNG PEOPLE AND FAMILIES","	LEAVING CARE CITY 2",CATERING,20/01/2022,7944301404,8.34,MCDONALDS
OXFORDSHIRE CC,"CHILDRENS, YOUNG PEOPLE AND FAMILIES",WITNEY,CATERING PROVISIONS,20/01/2022,7944301410,7.5,SAINSBURYS S/MKTS
OXFORDSHIRE CC,"CHILDRENS, YOUNG PEOPLE AND FAMILIES",HOUSE PROJECT,OTHER TRANSPORT ARRANGEMENTS,20/01/2022,7944301416,5,WESTGATE OXFORD CAR PA
OXFORDSHIRE CC,"CHILDRENS, YOUNG PEOPLE AND FAMILIES",HOUSE PROJECT,HOSPITALITY EXPENSES,20/01/2022,7944301418,8.55,KINGS ARMS
OXFORDSHIRE CC,"CHILDRENS, YOUNG PEOPLE AND FAMILIES",HOUSE PROJECT,CATERING PROVISIONS,20/01/2022,7944301424,23.45,MARKS&SPENCER PLC
OXFORDSHIRE CC,"CHILDRENS, YOUNG PEOPLE AND FAMILIES",PAUSE PROGRAMME,CATERING,20/01/2022,7944301428,11.6,OFF THE HOOK
OXFORDSHIRE CC,"CHILDRENS, YOUNG PEOPLE AND FAMILIES",DIDCOT MOVE-ON HOME,CATERING PROVISIONS,20/01/2022,7944301432,22.37,SAINSBURYS SMKT
OXFORDSHIRE CC,ENTERPRISEVC,,CAR LEASING - PRIVATE RENTALS,20/01/2022,7944302052,127.36,ENTERPRISE RENT-A-CAR
OXFORDSHIRE CC,ENTERPRISEVC,,CAR LEASING - PRIVATE RENTALS,20/01/2022,7944302054,83.5,ENTERPRISE RENT-A-CAR
OXFORDSHIRE CC,ENTERPRISEVC,,CAR LEASING - PRIVATE RENTALS,20/01/2022,7944302056,26.53,ENTERPRISE RENT-A-CAR
OXFORDSHIRE CC,ENTERPRISEVC,,CAR LEASING - PRIVATE RENTALS,20/01/2022,7944302060,73.9,ENTERPRISE RENT-A-CAR
OXFORDSHIRE CC,SOCIAL AND COMMUNITY SERVICES,CSS - OXFORD,SUBSCRIPTIONS,20/01/2022,7944301436,107.15,HOLLYWOOD BOWL
OXFORDSHIRE CC,SOCIAL AND COMMUNITY SERVICES,CSS - OXFORD,MATERIALS,20/01/2022,7944301442,24.6,HOME BARGAINS
OXFORDSHIRE CC,SOCIAL AND COMMUNITY SERVICES,CSS - OXFORD,MATERIALS,20/01/2022,7944301446,198,CURRYS OXFORD
OXFORDSHIRE CC,"CHILDRENS, YOUNG PEOPLE AND FAMILIES",THAME E&A HOME,CATERING PROVISIONS,20/01/2022,7944301454,13,SAINSBURYS S/MKTS
OXFORDSHIRE CC,"CHILDRENS, YOUNG PEOPLE AND FAMILIES",FAMILY SOLUTIONS PLUS NON-STAFF - NORTH,MATERIALS,20/01/2022,7944301456,22.99,ARGOS LTD
OXFORDSHIRE CC,"CHILDRENS, YOUNG PEOPLE AND FAMILIES",FAMILY SOLUTIONS PLUS NON-STAFF - NORTH,PAYMENTS TO TRANSPORT OPERATORS,20/01/2022,7944301458,13.04,THETRAINLINE.COM
OXFORDSHIRE CC,"CHILDRENS, YOUNG PEOPLE AND FAMILIES",FAMILY SOLUTIONS PLUS NON-STAFF - NORTH,PAYMENTS TO TRANSPORT OPERATORS,20/01/2022,7944301462,57.47,TRAINLINE.COM
OXFORDSHIRE CC,ENVIRONMENT AND ECONOMY,ELEC NPR ST LTG,MATERIALS,20/01/2022,7944300822,33.89,AMZNMKTPLACE
OXFORDSHIRE CC,"CHILDRENS, YOUNG PEOPLE AND FAMILIES",THAME E&A HOME,DRUGS AND MEDICAL SUPPLIES,20/01/2022,7944300830,61.45,INCCHOICE
OXFORDSHIRE CC,"CHILDRENS, YOUNG PEOPLE AND FAMILIES",THAME E&A HOME,MATERIALS,20/01/2022,7944300834,19.98,AMZNMKTPLACE
OXFORDSHIRE CC,"CHILDRENS, YOUNG PEOPLE AND FAMILIES","	OCCG GRANT",FIXTURES & FITTINGS,20/01/2022,7944301484,76.1,ASDA STORE 4442
OXFORDSHIRE CC,"CHILDRENS, YOUNG PEOPLE AND FAMILIES",PAUSE PROGRAMME,CATERING,20/01/2022,7944301494,8.8,COSTA COFFEE 43041630
OXFORDSHIRE CC,"CHILDRENS, YOUNG PEOPLE AND FAMILIES",PAUSE PROGRAMME,TELEPHONE - CALLS,20/01/2022,7944301496,10,TESCO STORES 5429
OXFORDSHIRE CC,SOCIAL AND COMMUNITY SERVICES,PA TEAM,LEGAL COSTS,20/01/2022,7944301898,420,WWW.BLASERMILLS.CO.UK
OXFORDSHIRE CC,SOCIAL AND COMMUNITY SERVICES,"	CENTRAL LIBRARY",MATERIALS,20/01/2022,7944301912,24.99,AMZNMKTPLACE
OXFORDSHIRE CC,SOCIAL AND COMMUNITY SERVICES,"	CENTRAL LIBRARY",MATERIALS,20/01/2022,7944301916,24.99,AMZNMKTPLACE
OXFORDSHIRE CC,CORPORATE CORE,ICT OPERATIONS & MAI,MATERIALS,20/01/2022,7944301926,342.51,AMZNMKTPLACE
OXFORDSHIRE CC,"CHILDRENS, YOUNG PEOPLE AND FAMILIES",FAMILY SOLUTIONS PLUS NON-STAFF - NORTH,CATERING,20/01/2022,7944301268,57.64,DOMINO S PIZZA
OXFORDSHIRE CC,"CHILDRENS, YOUNG PEOPLE AND FAMILIES",HOUSE PROJECT,OTHER TRANSPORT ARRANGEMENTS,20/01/2022,7944301276,7,WESTGATE OXFORD CAR PA
OXFORDSHIRE CC,"CHILDRENS, YOUNG PEOPLE AND FAMILIES","	OCCG GRANT",CATERING PROVISIONS,20/01/2022,7944301284,16.22,WM MORRISONS STORE
OXFORDSHIRE CC,"CHILDRENS, YOUNG PEOPLE AND FAMILIES","	LEAVING CARE NORTH",OTHER TRANSPORT ARRANGEMENTS,20/01/2022,7944301290,18.95,TRAINLINE.COM
OXFORDSHIRE CC,"CHILDRENS, YOUNG PEOPLE AND FAMILIES",CHILDREN IN CARE NON-STAFFING - NORTH,OTHER TRANSPORT ARRANGEMENTS,20/01/2022,7944301292,79.53,THETRAINLINE.COM
OXFORDSHIRE CC,"CHILDRENS, YOUNG PEOPLE AND FAMILIES","	LOOKED AFTER NORTH",VEHICLE FUEL,20/01/2022,7944301936,47.22,MFG EYNSHAM
OXFORDSHIRE CC,"CHILDRENS, YOUNG PEOPLE AND FAMILIES","	LOOKED AFTER NORTH",CATERING,20/01/2022,7944301938,7.8,STARBUCKS COFFEE
OXFORDSHIRE CC,CORPORATE CORE,MOTOR FLEET,MOTOR IF FEES,20/01/2022,7944301942,42,SIDNEY H HOOPER & COMP
OXFORDSHIRE CC,"CHILDRENS, YOUNG PEOPLE AND FAMILIES",CHILDREN IN CARE NON-STAFFING - SOUTH,PAYMENT TO GOVERNMENT DEPARTMENTS,20/01/2022,7944301946,34,DVLA DRIVING LICENSE
OXFORDSHIRE CC,"CHILDRENS, YOUNG PEOPLE AND FAMILIES",0-5 STDS & PROGRESS,EDUCATIONAL AND VOCATIONAL TRAINING ,20/01/2022,7944301296,152.64,LEGAL TRAINING CONSULT
OXFORDSHIRE CC,ENVIRONMENT AND ECONOMY,HARD FM,GENERAL MAINTENANCE,20/01/2022,7944301306,94.32,WOLSELEY UK
OXFORDSHIRE CC,"CHILDRENS, YOUNG PEOPLE AND FAMILIES",WITNEY,CATERING,20/01/2022,7944301322,7.9,POSH FISH
OXFORDSHIRE CC,"CHILDRENS, YOUNG PEOPLE AND FAMILIES","	OCCG GRANT",CATERING,20/01/2022,7944301324,10.35,POSH FISH
OXFORDSHIRE CC,"CHILDRENS, YOUNG PEOPLE AND FAMILIES",EYNSHAM,MATERIALS,20/01/2022,7944301990,37.46,AMZNMKTPLACE
OXFORDSHIRE CC,"CHILDRENS, YOUNG PEOPLE AND FAMILIES",EYNSHAM,MATERIALS,20/01/2022,7944301994,22.67,AMZNMKTPLACE
OXFORDSHIRE CC,"CHILDRENS, YOUNG PEOPLE AND FAMILIES",EYNSHAM,MATERIALS,20/01/2022,7944301998,17.98,AMZNMKTPLACE
OXFORDSHIRE CC,"CHILDRENS, YOUNG PEOPLE AND FAMILIES",EYNSHAM,MATERIALS,20/01/2022,7944302000,20.57,AMZNMKTPLACE
OXFORDSHIRE CC,CORPORATE CORE,,STATIONERY,20/01/2022,7944302004,14.64,LYRECO UK LTD
OXFORDSHIRE CC,CORPORATE CORE,,STATIONERY,20/01/2022,7944302006,21,LYRECO UK LTD
OXFORDSHIRE CC,CORPORATE CORE,,STATIONERY,20/01/2022,7944302010,156.57,LYRECO UK LTD
OXFORDSHIRE CC,CORPORATE CORE,,STATIONERY,20/01/2022,7944302014,46.45,LYRECO UK LTD
OXFORDSHIRE CC,"CHILDRENS, YOUNG PEOPLE AND FAMILIES",FAMILY SOLUTIONS PLUS NON-STAFF - NORTH,PAYMENTS TO TRANSPORT OPERATORS,20/01/2022,7944301364,132,WWW.GWR.COM
OXFORDSHIRE CC,SOCIAL AND COMMUNITY SERVICES,CSS - OXFORD,CATERING PROVISIONS,20/01/2022,7944301372,26.6,ALDI STORES 775-142
OXFORDSHIRE CC,SOCIAL AND COMMUNITY SERVICES,CSS - OXFORD,CATERING PROVISIONS,20/01/2022,7944301376,14.27,ALDI STORES 775-142
OXFORDSHIRE CC,"CHILDRENS, YOUNG PEOPLE AND FAMILIES",NRPF & HOMELESSNESS,NON-STAFF SUBSISTENCE AND EXPENSES,20/01/2022,7944301380,502.78,TRAVELODGE
OXFORDSHIRE CC,CORPORATE CORE,,STATIONERY,20/01/2022,7944302016,9.02,LYRECO UK LTD
OXFORDSHIRE CC,ENTERPRISEVC,,CAR LEASING - PRIVATE RENTALS,20/01/2022,7944302020,64.26,ENTERPRISE RENT-A-CAR
OXFORDSHIRE CC,ENTERPRISEVC,,CAR LEASING - PRIVATE RENTALS,20/01/2022,7944302024,26.75,ENTERPRISE RENT-A-CAR
OXFORDSHIRE CC,ENTERPRISEVC,,CAR LEASING - PRIVATE RENTALS,20/01/2022,7944302030,73.9,ENTERPRISE RENT-A-CAR
OXFORDSHIRE CC,ENTERPRISEVC,,CAR LEASING - PRIVATE RENTALS,20/01/2022,7944302034,47.15,ENTERPRISE RENT-A-CAR
OXFORDSHIRE CC,ENTERPRISEVC,,CAR LEASING - PRIVATE RENTALS,20/01/2022,7944302038,46.93,ENTERPRISE RENT-A-CAR
OXFORDSHIRE CC,ENTERPRISEVC,,CAR LEASING - PRIVATE RENTALS,20/01/2022,7944302042,106.08,ENTERPRISE RENT-A-CAR
OXFORDSHIRE CC,ENTERPRISEVC,,CAR LEASING - PRIVATE RENTALS,20/01/2022,7944302044,119.72,ENTERPRISE RENT-A-CAR
OXFORDSHIRE CC,"CHILDRENS, YOUNG PEOPLE AND FAMILIES","	LEAVING CARE NORTH",OTHER TRANSPORT ARRANGEMENTS,20/01/2022,7944301738,28,WWW.THEKEY.CO.UK
OXFORDSHIRE CC,"CHILDRENS, YOUNG PEOPLE AND FAMILIES","	LEAVING CARE NORTH",OTHER TRANSPORT ARRANGEMENTS,20/01/2022,7944301744,4,WESTGATE OXFORD CAR PA
OXFORDSHIRE CC,"CHILDRENS, YOUNG PEOPLE AND FAMILIES","	LEAVING CARE NORTH",DRUGS AND MEDICAL SUPPLIES,20/01/2022,7944301750,55,BOOTS 0330
OXFORDSHIRE CC,"CHILDRENS, YOUNG PEOPLE AND FAMILIES","	PHYSICAL DISABILITY",DISABILITY AIDS AND EQUIPMENT,20/01/2022,7944301754,153.54,EDUSENTIALS LIMITED
OXFORDSHIRE CC,"CHILDRENS, YOUNG PEOPLE AND FAMILIES",NTH EARLY HELP-WITNY,PAYMENTS TO TRANSPORT OPERATORS,20/01/2022,7944301774,104.17,GAR HOTEL RES
OXFORDSHIRE CC,"CHILDRENS, YOUNG PEOPLE AND FAMILIES",NTH EARLY HELP-WITNY,HIRE OF ACCOMMODATION AND FACILITIES,20/01/2022,7944301782,504,HAMPTON BY HILTON OXFO
OXFORDSHIRE CC,"CHILDRENS, YOUNG PEOPLE AND FAMILIES","	LEAVING CARE CITY 2",RESIDENTIAL ACTIVITIES,20/01/2022,7944301120,48,WWW.CONSOL.EU
OXFORDSHIRE CC,"CHILDRENS, YOUNG PEOPLE AND FAMILIES","	LEAVING CARE CITY 2",CLOTHING AND UNIFORMS,20/01/2022,7944301124,41.39,PRETTYLITTLETHING.COM
OXFORDSHIRE CC,"CHILDRENS, YOUNG PEOPLE AND FAMILIES",KINGFISHER,CATERING PROVISIONS,20/01/2022,7944301140,19.5,TESCO GIFT CARD
OXFORDSHIRE CC,"CHILDRENS, YOUNG PEOPLE AND FAMILIES","	PARENT PARTNERSHIP",MATERIALS,20/01/2022,7944301832,17.84,AMZNMKTPLACE
OXFORDSHIRE CC,SOCIAL AND COMMUNITY SERVICES,CSS - BANBURY,POSTAGE AND DELIVERY,20/01/2022,7944301838,25.5,POST OFFICE COUNTER
OXFORDSHIRE CC,"CHILDRENS, YOUNG PEOPLE AND FAMILIES",FSP NON-STAFFING - CENTRAL,CATERING PROVISIONS,20/01/2022,7944301180,60,TESCO GIFT CARD
OXFORDSHIRE CC,"CHILDRENS, YOUNG PEOPLE AND FAMILIES",40 THE MOORS,CATERING,20/01/2022,7944301184,13.78,PEPES
OXFORDSHIRE CC,"CHILDRENS, YOUNG PEOPLE AND FAMILIES",40 THE MOORS,CATERING PROVISIONS,20/01/2022,7944301190,65.99,TESCO STORES 4480
OXFORDSHIRE CC,"CHILDRENS, YOUNG PEOPLE AND FAMILIES","	LEAVING CARE SOUTH",CATERING,20/01/2022,7944301208,4.7,EULAS LTD
OXFORDSHIRE CC,"CHILDRENS, YOUNG PEOPLE AND FAMILIES","	LEAVING CARE SOUTH",CLOTHING AND UNIFORMS,20/01/2022,7944301212,31.5,ASDA STORE 4442
OXFORDSHIRE CC,"CHILDRENS, YOUNG PEOPLE AND FAMILIES",40 THE MOORS,DRUGS AND MEDICAL SUPPLIES,20/01/2022,7944301846,40,BOOTS UK ECOMM
OXFORDSHIRE CC,CORPORATE CORE,"MARKETING, COMMUNICATIONS & ENGAGEMENT","BOOKS, DVDS AND CDS",20/01/2022,7944301848,14.41,GETAUDIOGRAM.COM
OXFORDSHIRE CC,CORPORATE CORE,"MARKETING, COMMUNICATIONS & ENGAGEMENT",MATERIALS,20/01/2022,7944301850,24.98,LINKEDIN-654 7381486
OXFORDSHIRE CC,"CHILDRENS, YOUNG PEOPLE AND FAMILIES",DIDCOT MOVE-ON HOME,DOMESTIC AND CLEANING EQUIPMENT,20/01/2022,7944301860,2,SAINSBURYS S/MKTS
OXFORDSHIRE CC,"CHILDRENS, YOUNG PEOPLE AND FAMILIES",ADMINISTRATION,OTHER TRAINING COURSES AND QUALIFICATION,20/01/2022,7944301216,126,WWW.CORAM.ORG.UK
OXFORDSHIRE CC,"CHILDRENS, YOUNG PEOPLE AND FAMILIES",HOUSE PROJECT,OTHER TRANSPORT ARRANGEMENTS,20/01/2022,7944301222,5,WESTGATE OXFORD CAR PA
OXFORDSHIRE CC,SHARED SERVICES,CSC SUPP & SERVICES,MATERIALS,20/01/2022,7944301226,25.49,AMZNMKTPLACE
OXFORDSHIRE CC,ENVIRONMENT AND ECONOMY,OXFDSHIRE PUBLIC SPACE INNOVATION NETWK,EDUCATIONAL AND VOCATIONAL TRAINING ,20/01/2022,7944301230,-196.88,UOR EPAYMENTS GATEWAY
OXFORDSHIRE CC,"CHILDRENS, YOUNG PEOPLE AND FAMILIES","	LEAVING CARE NORTH",CATERING,20/01/2022,7944301246,4.68,MCDONALDS
OXFORDSHIRE CC,"CHILDRENS, YOUNG PEOPLE AND FAMILIES",EYNSHAM,ENTERTAINMENT EXPENSES,20/01/2022,7944301252,38.97,LASERQUEST
OXFORDSHIRE CC,"CHILDRENS, YOUNG PEOPLE AND FAMILIES","	LEAVING CARE CITY 2",OTHER TRANSPORT ARRANGEMENTS,20/01/2022,7944300980,3,WESTGATE OXFORD CAR PA
OXFORDSHIRE CC,"CHILDRENS, YOUNG PEOPLE AND FAMILIES","	LOOKED AFTER CITY 2",OTHER TRANSPORT ARRANGEMENTS,20/01/2022,7944301622,3.3,OXFORD BUS COMPANY
OXFORDSHIRE CC,"CHILDRENS, YOUNG PEOPLE AND FAMILIES","	LOOKED AFTER CITY 2",CATERING,20/01/2022,7944301626,3.25,COSTA COFFEE HARLESDEN
OXFORDSHIRE CC,"CHILDRENS, YOUNG PEOPLE AND FAMILIES","	LOOKED AFTER CITY 2",OTHER TRANSPORT ARRANGEMENTS,20/01/2022,7944301630,2.3,STGCOACH/CTYLINK
OXFORDSHIRE CC,"CHILDRENS, YOUNG PEOPLE AND FAMILIES","	LOOKED AFTER CITY 2",OTHER TRANSPORT ARRANGEMENTS,20/01/2022,7944301632,1.2,OXFORD BUS COMPANY
OXFORDSHIRE CC,"CHILDRENS, YOUNG PEOPLE AND FAMILIES","	LOOKED AFTER CITY 2",OTHER TRANSPORT ARRANGEMENTS,20/01/2022,7944301636,0.5,OXFORD BUS COMPANY
OXFORDSHIRE CC,"CHILDRENS, YOUNG PEOPLE AND FAMILIES",FAMILY SOLUTIONS PLUS NON-STAFF � SOUTH,MATERIALS,20/01/2022,7944300996,162.95,ARGOS LTD
OXFORDSHIRE CC,"CHILDRENS, YOUNG PEOPLE AND FAMILIES",FAMILY SOLUTIONS PLUS NON-STAFF � SOUTH,MATERIALS,20/01/2022,7944300998,48.52,AMZNMKTPLACE
OXFORDSHIRE CC,"CHILDRENS, YOUNG PEOPLE AND FAMILIES",FAMILY SOLUTIONS PLUS NON-STAFF � SOUTH,PAYMENTS TO TRANSPORT OPERATORS,20/01/2022,7944301000,562.2,BRITISH A
OXFORDSHIRE CC,CORPORATE CORE,REGISTRAR,MATERIALS,20/01/2022,7944301008,12,TIMPSON LTD
OXFORDSHIRE CC,CORPORATE CORE,REGISTRAR,CATERING PROVISIONS,20/01/2022,7944301010,4.47,LEWIS BAKER RETAIL LTD
OXFORDSHIRE CC,ENVIRONMENT AND ECONOMY,"	MUSEUM SERV MANAGER",MATERIALS,20/01/2022,7944301658,19.99,AMZNMKTPLACE AMAZON.CO
OXFORDSHIRE CC,ENVIRONMENT AND ECONOMY,MUSEUMS COLLECTIONS,MATERIALS,20/01/2022,7944301658,19.99,AMZNMKTPLACE AMAZON.CO
OXFORDSHIRE CC,"CHILDRENS, YOUNG PEOPLE AND FAMILIES","	OCCG GRANT",MATERIALS,20/01/2022,7944301666,52.67,AMZNMKTPLACE
OXFORDSHIRE CC,"CHILDRENS, YOUNG PEOPLE AND FAMILIES","	OCCG GRANT",MATERIALS,20/01/2022,7944301668,52.67,AMZNMKTPLACE
OXFORDSHIRE CC,"CHILDRENS, YOUNG PEOPLE AND FAMILIES","	OCCG GRANT",MATERIALS,20/01/2022,7944301672,60.33,AMZNMKTPLACE
OXFORDSHIRE CC,"CHILDRENS, YOUNG PEOPLE AND FAMILIES","	OCCG GRANT",MATERIALS,20/01/2022,7944301674,60.32,AMZNMKTPLACE
OXFORDSHIRE CC,"CHILDRENS, YOUNG PEOPLE AND FAMILIES","	OCCG GRANT",MATERIALS,20/01/2022,7944301678,60.32,AMZNMKTPLACE
OXFORDSHIRE CC,SOCIAL AND COMMUNITY SERVICES,"	TRANSPORT GENERAL",VEHICLE EQUIPMENT AND EXPENSES - OTHER,20/01/2022,7944301026,25.8,AMAZON.CO.UK KG1HC3IX5
OXFORDSHIRE CC,"CHILDRENS, YOUNG PEOPLE AND FAMILIES",FAMILY SOLUTIONS PLUS NON-STAFF - NORTH,PAYMENTS TO TRANSPORT OPERATORS,20/01/2022,7944301030,374.13,TRAINLINE.COM
OXFORDSHIRE CC,SOCIAL AND COMMUNITY SERVICES,CSS - OXFORD,MATERIALS,20/01/2022,7944301036,28.98,AMZNMKTPLACE
OXFORDSHIRE CC,SOCIAL AND COMMUNITY SERVICES,SCHOOLS FM CATERING AREA 2,CATERING,20/01/2022,7944301040,190.03,BOOKER LIMITED OXFORD
OXFORDSHIRE CC,SOCIAL AND COMMUNITY SERVICES,CICC,CATERING PROVISIONS,20/01/2022,7944301044,43.21,WAITROSE 211
OXFORDSHIRE CC,SOCIAL AND COMMUNITY SERVICES,CSS WALLINGFORD,CATERING PROVISIONS,20/01/2022,7944301054,12.5,WAITROSE 675
OXFORDSHIRE CC,SOCIAL AND COMMUNITY SERVICES,CSS WALLINGFORD,MATERIALS,20/01/2022,7944301058,19.97,AMZNMKTPLACE AMAZON.CO
OXFORDSHIRE CC,"CHILDRENS, YOUNG PEOPLE AND FAMILIES","	OCCG GRANT",MATERIALS,20/01/2022,7944301684,60.32,AMZNMKTPLACE
OXFORDSHIRE CC,"CHILDRENS, YOUNG PEOPLE AND FAMILIES",CSS - DIDCOT,CATERING PROVISIONS,20/01/2022,7944301088,15.36,ALDI 99 775
OXFORDSHIRE CC,"CHILDRENS, YOUNG PEOPLE AND FAMILIES",FAMILY SOLUTIONS PLUS NON-STAFF � SOUTH,HIRE OF ACCOMMODATION AND FACILITIES,20/01/2022,7944301092,54,PREMIER INN
OXFORDSHIRE CC,"CHILDRENS, YOUNG PEOPLE AND FAMILIES",WITNEY,CATERING PROVISIONS,20/01/2022,7944300858,27.79,POUNDSTRETCHER 700
OXFORDSHIRE CC,SOCIAL AND COMMUNITY SERVICES,CSS - ABINGDON,MATERIALS,20/01/2022,7944300870,5,POUNDLAND LTD 1366
OXFORDSHIRE CC,ENVIRONMENT AND ECONOMY,HARD FM,HARDWARE AND CROCKERY,20/01/2022,7944300898,73.2,CITY PLUMBING
OXFORDSHIRE CC,ENVIRONMENT AND ECONOMY,HARD FM,HARDWARE AND CROCKERY,20/01/2022,7944300904,44.99,SCREWFIX DIRECT
OXFORDSHIRE CC,ENVIRONMENT AND ECONOMY,HARD FM,PHOTOCOPYING,20/01/2022,7944300906,55.45,WWW.KEYSIGNSUK.CO.UK
OXFORDSHIRE CC,"CHILDRENS, YOUNG PEOPLE AND FAMILIES",FAMILY SOLUTIONS PLUS NON-STAFF � SOUTH,PAYMENTS TO TRANSPORT OPERATORS,20/01/2022,7944300920,-51.2,TRAINLINE.COM
OXFORDSHIRE CC,CORPORATE CORE,LIBRARY COLLECTIONS,"BOOKS, DVDS AND CDS",20/01/2022,7944301578,284.4,WF EDUCATION GROUP LTD
OXFORDSHIRE CC,CORPORATE CORE,OPERATIONS,EQUIPMENT,20/01/2022,7944301580,29.89,AMZNMKTPLACE
OXFORDSHIRE CC,CORPORATE CORE,OPERATIONS,EQUIPMENT,20/01/2022,7944301582,16.99,AMAZON.CO.UK O86MU0EC5
OXFORDSHIRE CC,CORPORATE CORE,OPERATIONS,EQUIPMENT,20/01/2022,7944301584,9.45,AMZNMKTPLACE
OXFORDSHIRE CC,"CHILDRENS, YOUNG PEOPLE AND FAMILIES",FAMILY SOLUTIONS PLUS NON-STAFF � SOUTH,INSURANCE COSTS,20/01/2022,7944300958,15.3,MONEYSUPERMARKET GROUP
OXFORDSHIRE CC,"CHILDRENS, YOUNG PEOPLE AND FAMILIES",FAMILY SOLUTIONS PLUS NON-STAFF � SOUTH,OTHER TRANSPORT ARRANGEMENTS,20/01/2022,7944300960,51.39,COMPARE YOUR PARKING
OXFORDSHIRE CC,"CHILDRENS, YOUNG PEOPLE AND FAMILIES",THAME E&A HOME,MATERIALS,20/01/2022,7944300964,58.99,NEXT DIRECTORY
OXFORDSHIRE CC,"CHILDRENS, YOUNG PEOPLE AND FAMILIES","	LEAVING CARE SOUTH",OTHER PREMISES RELATED COSTS,19/01/2022,7940995380,640,SOHA.CO.UK
OXFORDSHIRE CC,"CHILDRENS, YOUNG PEOPLE AND FAMILIES","	LEAVING CARE SOUTH",OTHER EXPENSES,19/01/2022,7940995386,309.6,TELEPHONE PAYMENT
OXFORDSHIRE CC,"CHILDRENS, YOUNG PEOPLE AND FAMILIES","	LEAVING CARE SOUTH",OTHER TRANSPORT ARRANGEMENTS,19/01/2022,7940995388,-72.87,ROBINSONS RELOCATI
OXFORDSHIRE CC,"CHILDRENS, YOUNG PEOPLE AND FAMILIES",EYNSHAM,CATERING PROVISIONS,19/01/2022,7940995394,138.61,TESCO STORES 2008
OXFORDSHIRE CC,SOCIAL AND COMMUNITY SERVICES,"	SHARED LIVES",OTHER TRAINING COURSES AND QUALIFICATION,19/01/2022,7940995400,11.37,EB  LETS TALK EATING A
OXFORDSHIRE CC,"CHILDRENS, YOUNG PEOPLE AND FAMILIES",THAME E&A HOME,CATERING,19/01/2022,7940995410,18.46,SLUG AND LETTUCE
OXFORDSHIRE CC,"CHILDRENS, YOUNG PEOPLE AND FAMILIES","	LEAVING CARE SOUTH",MATERIALS,19/01/2022,7940994236,1.29,CARD FACTORY
OXFORDSHIRE CC,"CHILDRENS, YOUNG PEOPLE AND FAMILIES","	MARLBOROUGH",MATERIALS,19/01/2022,7940994242,77,WWW.FIRSTNEWS.CO.UK
OXFORDSHIRE CC,"CHILDRENS, YOUNG PEOPLE AND FAMILIES","	LEAVING CARE NORTH",CATERING PROVISIONS,19/01/2022,7940994252,4.8,WOOLLEY EDGE S/B
OXFORDSHIRE CC,"CHILDRENS, YOUNG PEOPLE AND FAMILIES","	LEAVING CARE NORTH",OTHER TRANSPORT ARRANGEMENTS,19/01/2022,7940994258,4,EURO CAR PARKS LIMITED
OXFORDSHIRE CC,CORPORATE CORE,WANTAGE LIBRARY,CLEANING MATERIALS,19/01/2022,7940994268,3.5,WAITROSE 153
OXFORDSHIRE CC,"CHILDRENS, YOUNG PEOPLE AND FAMILIES",CHILDREN IN CARE NON-STAFFING - SOUTH,PAYMENT TO GOVERNMENT DEPARTMENTS,19/01/2022,7940995442,34,DVLA DRIVING LICENSE
OXFORDSHIRE CC,"CHILDRENS, YOUNG PEOPLE AND FAMILIES",EDT,CATERING PROVISIONS,19/01/2022,7940995450,13.8,OXFORD PEARTREE STARBU
OXFORDSHIRE CC,"CHILDRENS, YOUNG PEOPLE AND FAMILIES",EDT,CATERING PROVISIONS,19/01/2022,7940995456,17.55,OXFORD PEARTREE STARBU
OXFORDSHIRE CC,"CHILDRENS, YOUNG PEOPLE AND FAMILIES",EDT,CATERING PROVISIONS,19/01/2022,7940995462,0.65,WELCOME B/WAITROSE PEA
OXFORDSHIRE CC,"CHILDRENS, YOUNG PEOPLE AND FAMILIES",FAMILY SOLUTIONS PLUS NON-STAFF � SOUTH,OTHER TRANSPORT ARRANGEMENTS,19/01/2022,7940993924,5,OXFORDBUS.CO.UK
OXFORDSHIRE CC,"CHILDRENS, YOUNG PEOPLE AND FAMILIES",FAMILY SOLUTIONS PLUS NON-STAFF � SOUTH,OTHER TRANSPORT ARRANGEMENTS,19/01/2022,7940993932,5,OXFORDBUS.CO.UK
OXFORDSHIRE CC,SOCIAL AND COMMUNITY SERVICES,CSS BICESTER,CATERING PROVISIONS,19/01/2022,7940993940,107.57,SAINSBURYS.CO.UK
OXFORDSHIRE CC,SOCIAL AND COMMUNITY SERVICES,CSS - OXFORD,MATERIALS,19/01/2022,7940993954,36.97,AMZNMKTPLACE
OXFORDSHIRE CC,SOCIAL AND COMMUNITY SERVICES,CSS WITNEY,CATERING PROVISIONS,19/01/2022,7940995124,69.39,SAINSBURYS.CO.UK
OXFORDSHIRE CC,"CHILDRENS, YOUNG PEOPLE AND FAMILIES",NTH EARLY HELP-WITNY,HIRE OF ACCOMMODATION AND FACILITIES,19/01/2022,7940995146,50.98,TRAVELODGE
OXFORDSHIRE CC,"CHILDRENS, YOUNG PEOPLE AND FAMILIES","	SM QUALITY ASSURANCE",PAYMENTS TO TRANSPORT OPERATORS,19/01/2022,7940993962,25.17,THETRAINLINE.COM
OXFORDSHIRE CC,SOCIAL AND COMMUNITY SERVICES,SCHOOLS FM CATERING AREA 2,CATERING PROVISIONS,19/01/2022,7940993988,13.9,CO-OPERATIVE FOOD
OXFORDSHIRE CC,SOCIAL AND COMMUNITY SERVICES,SCHOOLS FM CATERING AREA 2,MATERIALS,19/01/2022,7940993994,129.94,AMZNMKTPLACE
OXFORDSHIRE CC,SOCIAL AND COMMUNITY SERVICES,CICC,PAYMENTS TO TRANSPORT OPERATORS,19/01/2022,7940994004,9.17,TRAINLINE.COM
OXFORDSHIRE CC,SOCIAL AND COMMUNITY SERVICES,CICC,PAYMENTS TO TRANSPORT OPERATORS,19/01/2022,7940994012,9.17,TRAINLINE.COM
OXFORDSHIRE CC,SOCIAL AND COMMUNITY SERVICES,CSS - BANBURY,CATERING PROVISIONS,19/01/2022,7940994018,52.18,SAINSBURYS.CO.UK
OXFORDSHIRE CC,"CHILDRENS, YOUNG PEOPLE AND FAMILIES","	MALTFIELD HOUSE",CATERING PROVISIONS,19/01/2022,7940995226,15.75,SAINSBURYS S/MKTS
OXFORDSHIRE CC,"CHILDRENS, YOUNG PEOPLE AND FAMILIES","	MALTFIELD HOUSE",CATERING PROVISIONS,19/01/2022,7940995234,24.43,POUNDSTRETCHER 700
OXFORDSHIRE CC,"CHILDRENS, YOUNG PEOPLE AND FAMILIES","	LEAVING CARE CITY 2",OTHER TRANSPORT ARRANGEMENTS,19/01/2022,7940994072,2.5,UNION STREET CAR PARK
OXFORDSHIRE CC,"CHILDRENS, YOUNG PEOPLE AND FAMILIES","	LEAVING CARE CITY 2",BIRTHDAY ALLOWANCE,19/01/2022,7940994080,33.7,NANDOS OXFORD
OXFORDSHIRE CC,"CHILDRENS, YOUNG PEOPLE AND FAMILIES",KINGFISHER,CATERING PROVISIONS,19/01/2022,7940994084,19.5,TESCO GIFT CARD
OXFORDSHIRE CC,"CHILDRENS, YOUNG PEOPLE AND FAMILIES",KINGFISHER,CATERING PROVISIONS,19/01/2022,7940994092,19.5,TESCO GIFT CARD
OXFORDSHIRE CC,"CHILDRENS, YOUNG PEOPLE AND FAMILIES",DIDCOT MOVE-ON HOME,DOMESTIC AND CLEANING EQUIPMENT,19/01/2022,7940995310,2.7,SAINSBURYS S/MKTS
OXFORDSHIRE CC,"CHILDRENS, YOUNG PEOPLE AND FAMILIES",DIDCOT MOVE-ON HOME,CATERING PROVISIONS,19/01/2022,7940995316,6.12,SAINSBURYS S/MKTS
OXFORDSHIRE CC,"CHILDRENS, YOUNG PEOPLE AND FAMILIES",40 THE MOORS,CATERING,19/01/2022,7940994152,39.96,DOMINO S PIZZA
OXFORDSHIRE CC,CORPORATE CORE,INCOME TEAM,PAYMENT TO GOVERNMENT DEPARTMENTS,19/01/2022,7940994166,11,OXFORDSHIRE CC WEB1
OXFORDSHIRE CC,"CHILDRENS, YOUNG PEOPLE AND FAMILIES",40 THE MOORS,CATERING PROVISIONS,19/01/2022,7940994174,251.52,SAINSBURYS.CO.UK
OXFORDSHIRE CC,"CHILDRENS, YOUNG PEOPLE AND FAMILIES",40 THE MOORS,CATERING PROVISIONS,19/01/2022,7940994182,6.2,TESCO STORE 2788
OXFORDSHIRE CC,"CHILDRENS, YOUNG PEOPLE AND FAMILIES",40 THE MOORS,CLOTHING AND UNIFORMS,19/01/2022,7940994186,119.97,SP   MERCIERUK
OXFORDSHIRE CC,SOCIAL AND COMMUNITY SERVICES,CSS - ABINGDON,POSTAGE AND DELIVERY,19/01/2022,7940993682,108.72,POST OFFICE COUNTER
OXFORDSHIRE CC,"CHILDRENS, YOUNG PEOPLE AND FAMILIES",KINGFISHER,HIRE OF ACCOMMODATION AND FACILITIES,19/01/2022,7940993704,175.5,TREES HOTEL LTD
OXFORDSHIRE CC,"CHILDRENS, YOUNG PEOPLE AND FAMILIES","	LOOKED AFTER CITY 1",DRUGS AND MEDICAL SUPPLIES,19/01/2022,7940993730,20.33,AMZNMKTPLACE
OXFORDSHIRE CC,ENVIRONMENT AND ECONOMY,HARD FM,HARDWARE AND CROCKERY,19/01/2022,7940993738,10.99,SCREWFIX DIRECT
OXFORDSHIRE CC,ENVIRONMENT AND ECONOMY,HARD FM,HARDWARE AND CROCKERY,19/01/2022,7940993746,21.98,SCREWFIX DIRECT
OXFORDSHIRE CC,ENVIRONMENT AND ECONOMY,HARD FM,MATERIALS,19/01/2022,7940993750,14.49,HALFORDS 0480
OXFORDSHIRE CC,ENVIRONMENT AND ECONOMY,HARD FM,HARDWARE AND CROCKERY,19/01/2022,7940993756,53.47,SCREWFIX DIR LTD
OXFORDSHIRE CC,ENVIRONMENT AND ECONOMY,MEMBERS SERVICES,CATERING PROVISIONS,19/01/2022,7940994872,47.62,MARKS&SPENCER PLC
OXFORDSHIRE CC,"CHILDRENS, YOUNG PEOPLE AND FAMILIES","	LOOKED AFTER CITY 2",PAYMENTS TO TRANSPORT OPERATORS,19/01/2022,7940994898,22.01,THETRAINLINE.COM
OXFORDSHIRE CC,ENVIRONMENT AND ECONOMY,HARD FM,HARDWARE AND CROCKERY,19/01/2022,7940993766,119.99,SCREWFIX DIRECT
OXFORDSHIRE CC,ENVIRONMENT AND ECONOMY,HARD FM,HARDWARE AND CROCKERY,19/01/2022,7940993774,37.3,WICKES OXFORD
OXFORDSHIRE CC,"CHILDRENS, YOUNG PEOPLE AND FAMILIES",EET SERVICE,EDUCATIONAL AND VOCATIONAL TRAINING ,19/01/2022,7940994944,29,GLOBAL EDULINK
OXFORDSHIRE CC,"CHILDRENS, YOUNG PEOPLE AND FAMILIES","	RIVERSIDE CENTRE",VEHICLE FUEL,19/01/2022,7940994950,82.49,SAINSBURYS PETROL
OXFORDSHIRE CC,ENVIRONMENT AND ECONOMY,"	MUSEUM SERV MANAGER",MATERIALS,19/01/2022,7940994990,79.99,AMZNMKTPLACE AMAZON.CO
OXFORDSHIRE CC,"CHILDRENS, YOUNG PEOPLE AND FAMILIES","	OCCG GRANT",MATERIALS,19/01/2022,7940994998,137.9,AMZNMKTPLACE AMAZON.CO
OXFORDSHIRE CC,SOCIAL AND COMMUNITY SERVICES,"	CENTRAL LIBRARY",MATERIALS,19/01/2022,7940995008,7.6,EXTRA ELECTRICAL HARD
OXFORDSHIRE CC,ENVIRONMENT AND ECONOMY,LOCALITIES,MATERIALS,19/01/2022,7940993858,29.61,AMZNMKTPLACE AMAZON.CO
OXFORDSHIRE CC,ENTERPRISEVC,BUSINESS SYST STAFF,PAYMENT TO GOVERNMENT DEPARTMENTS,19/01/2022,7940993872,7.5,PAYPAL  HOUSE LORDS
OXFORDSHIRE CC,"CHILDRENS, YOUNG PEOPLE AND FAMILIES",EDT,HIRE OF ACCOMMODATION AND FACILITIES,19/01/2022,7940995092,178,HAMPTON BY HILTON OXFO
OXFORDSHIRE CC,"CHILDRENS, YOUNG PEOPLE AND FAMILIES",CSC COVID-19,ENTERTAINMENT EXPENSES,19/01/2022,7940995104,132,SQ  ESCAPE HUNT OXFORD
OXFORDSHIRE CC,"CHILDRENS, YOUNG PEOPLE AND FAMILIES",HOUSE PROJECT,MATERIALS,19/01/2022,7940994546,3.5,POUNDLAND LTD 1586
OXFORDSHIRE CC,"CHILDRENS, YOUNG PEOPLE AND FAMILIES",WITNEY,CATERING PROVISIONS,19/01/2022,7940994572,7.45,SAINSBURYS S/MKTS
OXFORDSHIRE CC,"CHILDRENS, YOUNG PEOPLE AND FAMILIES",FAMILY SOLUTIONS PLUS NON-STAFF - NORTH,TELEPHONE - EQUIPMENT,19/01/2022,7940994580,17.99,CURRYS RETAIL ONLINE
OXFORDSHIRE CC,ENTERPRISEVC,,CAR LEASING - PRIVATE RENTALS,19/01/2022,7940995684,"2,232.00",ENTERPRISE RENT-A-CAR
OXFORDSHIRE CC,ENTERPRISEVC,,CAR LEASING - PRIVATE RENTALS,19/01/2022,7940995690,126.62,ENTERPRISE RENT-A-CAR
OXFORDSHIRE CC,ENTERPRISEVC,,CAR LEASING - PRIVATE RENTALS,19/01/2022,7940995696,290.9,ENTERPRISE RENT-A-CAR
OXFORDSHIRE CC,ENTERPRISEVC,,CAR LEASING - PRIVATE RENTALS,19/01/2022,7940995704,290.9,ENTERPRISE RENT-A-CAR
OXFORDSHIRE CC,ENTERPRISEVC,,CAR LEASING - PRIVATE RENTALS,19/01/2022,7940995710,402.5,ENTERPRISE RENT-A-CAR
OXFORDSHIRE CC,ENTERPRISEVC,,CAR LEASING - PRIVATE RENTALS,19/01/2022,7940995712,744,ENTERPRISE RENT-A-CAR
OXFORDSHIRE CC,ENTERPRISEVC,,CAR LEASING - PRIVATE RENTALS,19/01/2022,7940995718,745.49,ENTERPRISE RENT-A-CAR
OXFORDSHIRE CC,CORPORATE CORE,CATERING MANAGEMENT SOFT FM,CATERING,19/01/2022,7940995726,68.81,BRAKES (STORED CARDS)
OXFORDSHIRE CC,CORPORATE CORE,CATERING MANAGEMENT SOFT FM,CATERING,19/01/2022,7940995736,5.68,BRAKES (STORED CARDS)
OXFORDSHIRE CC,"CHILDRENS, YOUNG PEOPLE AND FAMILIES",PAUSE PROGRAMME,CATERING PROVISIONS,19/01/2022,7940994616,5.44,ALDI 99 775
OXFORDSHIRE CC,"CHILDRENS, YOUNG PEOPLE AND FAMILIES",CSS WALLINGFORD,MANAGEMENT CONSULTANT FEES,19/01/2022,7940993568,159,TVLICENSING.CO.UK
OXFORDSHIRE CC,SOCIAL AND COMMUNITY SERVICES,CSS WITNEY,MATERIALS,19/01/2022,7940993574,8.7,AMZNMKTPLACE AMAZON.CO
OXFORDSHIRE CC,"CHILDRENS, YOUNG PEOPLE AND FAMILIES","	OCCG GRANT",BIRTHDAY ALLOWANCE,19/01/2022,7940994292,4,POUNDLAND LTD 1586
OXFORDSHIRE CC,"CHILDRENS, YOUNG PEOPLE AND FAMILIES","	OCCG GRANT",BIRTHDAY ALLOWANCE,19/01/2022,7940994300,5.5,SAINSBURYS S/MKTS
OXFORDSHIRE CC,"CHILDRENS, YOUNG PEOPLE AND FAMILIES","	OCCG GRANT",BIRTHDAY ALLOWANCE,19/01/2022,7940994306,10,SPORTSDIRECT 218
OXFORDSHIRE CC,"CHILDRENS, YOUNG PEOPLE AND FAMILIES","	OCCG GRANT",BIRTHDAY ALLOWANCE,19/01/2022,7940994314,10,SPORTSDIRECT 218
OXFORDSHIRE CC,"CHILDRENS, YOUNG PEOPLE AND FAMILIES",UASC 16&17,CATERING PROVISIONS,19/01/2022,7940994324,22.81,TESCO STORE 2994
OXFORDSHIRE CC,"CHILDRENS, YOUNG PEOPLE AND FAMILIES",VULNERABLE LEARNERS,"BOOKS, DVDS AND CDS",19/01/2022,7940994344,33.06,AMZNMKTPLACE AMAZON.CO
OXFORDSHIRE CC,"CHILDRENS, YOUNG PEOPLE AND FAMILIES",UASC 16&17,DRUGS AND MEDICAL SUPPLIES,19/01/2022,7940994352,3.18,SAVERS HEALTH & BEAUTY
OXFORDSHIRE CC,"CHILDRENS, YOUNG PEOPLE AND FAMILIES",UASC 16&17,STATIONERY,19/01/2022,7940994356,1,RYMAN
OXFORDSHIRE CC,"CHILDRENS, YOUNG PEOPLE AND FAMILIES",EYNSHAM,MATERIALS,19/01/2022,7940995528,92,ARGOS LTD
OXFORDSHIRE CC,"CHILDRENS, YOUNG PEOPLE AND FAMILIES",EYNSHAM,TELEPHONE - EQUIPMENT,19/01/2022,7940995536,118.99,AMZNMKTPLACE
OXFORDSHIRE CC,"CHILDRENS, YOUNG PEOPLE AND FAMILIES",EYNSHAM,MATERIALS,19/01/2022,7940995542,-13,ARGOS LTD
OXFORDSHIRE CC,CORPORATE CORE,,STATIONERY,19/01/2022,7940995550,14.26,LYRECO UK LTD
OXFORDSHIRE CC,ENTERPRISEVC,,CAR LEASING - PRIVATE RENTALS,19/01/2022,7940995560,565.75,ENTERPRISE RENT-A-CAR
OXFORDSHIRE CC,ENTERPRISEVC,,CAR LEASING - PRIVATE RENTALS,19/01/2022,7940995564,290.9,ENTERPRISE RENT-A-CAR
OXFORDSHIRE CC,ENTERPRISEVC,,CAR LEASING - PRIVATE RENTALS,19/01/2022,7940995568,"1,573.20",ENTERPRISE RENT-A-CAR
OXFORDSHIRE CC,ENTERPRISEVC,,CAR LEASING - PRIVATE RENTALS,19/01/2022,7940995572,402.5,ENTERPRISE RENT-A-CAR
OXFORDSHIRE CC,ENTERPRISEVC,,CAR LEASING - PRIVATE RENTALS,19/01/2022,7940995576,402.5,ENTERPRISE RENT-A-CAR
OXFORDSHIRE CC,CORPORATE CORE,REGISTRAR,MATERIALS,19/01/2022,7940994394,30.47,AMAZON.CO.UK 9V2QA3FA5
OXFORDSHIRE CC,"CHILDRENS, YOUNG PEOPLE AND FAMILIES",UASC 16&17,RESIDENTIAL ACTIVITIES,19/01/2022,7940994408,9.99,AMZNMKTPLACE
OXFORDSHIRE CC,"CHILDRENS, YOUNG PEOPLE AND FAMILIES",UASC 16&17,MATERIALS,19/01/2022,7940994408,32.23,AMZNMKTPLACE
OXFORDSHIRE CC,"CHILDRENS, YOUNG PEOPLE AND FAMILIES",PAUSE PROGRAMME,CATERING PROVISIONS,19/01/2022,7940994414,20,TESCO STORE 2994
OXFORDSHIRE CC,"CHILDRENS, YOUNG PEOPLE AND FAMILIES","	LAC PUPIL PREMIUM",PAYMENTS TO VOLUNTARY BODIES,19/01/2022,7940994420,63,REFUGEE EDUCATION UK
OXFORDSHIRE CC,"CHILDRENS, YOUNG PEOPLE AND FAMILIES",UASC 16&17,TELEPHONE - EQUIPMENT,19/01/2022,7940994428,10,MIP TESCO MOBILE TOPUP
OXFORDSHIRE CC,ENTERPRISEVC,,CAR LEASING - PRIVATE RENTALS,19/01/2022,7940995584,402.5,ENTERPRISE RENT-A-CAR
OXFORDSHIRE CC,ENTERPRISEVC,,CAR LEASING - PRIVATE RENTALS,19/01/2022,7940995588,402.5,ENTERPRISE RENT-A-CAR
OXFORDSHIRE CC,ENTERPRISEVC,,CAR LEASING - PRIVATE RENTALS,19/01/2022,7940995592,402.5,ENTERPRISE RENT-A-CAR
OXFORDSHIRE CC,ENTERPRISEVC,,CAR LEASING - PRIVATE RENTALS,19/01/2022,7940995598,402.5,ENTERPRISE RENT-A-CAR
OXFORDSHIRE CC,ENTERPRISEVC,,CAR LEASING - PRIVATE RENTALS,19/01/2022,7940995604,290.9,ENTERPRISE RENT-A-CAR
OXFORDSHIRE CC,ENTERPRISEVC,,CAR LEASING - PRIVATE RENTALS,19/01/2022,7940995608,290.9,ENTERPRISE RENT-A-CAR
OXFORDSHIRE CC,ENTERPRISEVC,,CAR LEASING - PRIVATE RENTALS,19/01/2022,7940995614,290.9,ENTERPRISE RENT-A-CAR
OXFORDSHIRE CC,ENTERPRISEVC,,CAR LEASING - PRIVATE RENTALS,19/01/2022,7940995618,402.5,ENTERPRISE RENT-A-CAR
OXFORDSHIRE CC,ENTERPRISEVC,,CAR LEASING - PRIVATE RENTALS,19/01/2022,7940995624,770.56,ENTERPRISE RENT-A-CAR
OXFORDSHIRE CC,ENTERPRISEVC,,CAR LEASING - PRIVATE RENTALS,19/01/2022,7940995632,290.9,ENTERPRISE RENT-A-CAR
OXFORDSHIRE CC,"CHILDRENS, YOUNG PEOPLE AND FAMILIES",UASC 16&17,OTHER TRANSPORT ARRANGEMENTS,19/01/2022,7940994492,21.3,OXFORD BUS COMPANY
OXFORDSHIRE CC,"CHILDRENS, YOUNG PEOPLE AND FAMILIES",UASC 16&17,MATERIALS,19/01/2022,7940994498,29.99,AMZNMKTPLACE
OXFORDSHIRE CC,ENTERPRISEVC,,CAR LEASING - PRIVATE RENTALS,19/01/2022,7940995636,402.5,ENTERPRISE RENT-A-CAR
OXFORDSHIRE CC,ENTERPRISEVC,,CAR LEASING - PRIVATE RENTALS,19/01/2022,7940995642,290.9,ENTERPRISE RENT-A-CAR
OXFORDSHIRE CC,ENTERPRISEVC,,CAR LEASING - PRIVATE RENTALS,19/01/2022,7940995646,"1,025.70",ENTERPRISE RENT-A-CAR
OXFORDSHIRE CC,ENTERPRISEVC,,CAR LEASING - PRIVATE RENTALS,19/01/2022,7940995650,402.5,ENTERPRISE RENT-A-CAR
OXFORDSHIRE CC,ENTERPRISEVC,,CAR LEASING - PRIVATE RENTALS,19/01/2022,7940995656,542,ENTERPRISE RENT-A-CAR
OXFORDSHIRE CC,ENTERPRISEVC,,CAR LEASING - PRIVATE RENTALS,19/01/2022,7940995660,802.45,ENTERPRISE RENT-A-CAR
OXFORDSHIRE CC,ENTERPRISEVC,,CAR LEASING - PRIVATE RENTALS,19/01/2022,7940995668,402.5,ENTERPRISE RENT-A-CAR
OXFORDSHIRE CC,ENTERPRISEVC,,CAR LEASING - PRIVATE RENTALS,19/01/2022,7940995672,290.9,ENTERPRISE RENT-A-CAR
OXFORDSHIRE CC,ENTERPRISEVC,,CAR LEASING - PRIVATE RENTALS,19/01/2022,7940995676,402.5,ENTERPRISE RENT-A-CAR
OXFORDSHIRE CC,ENTERPRISEVC,,CAR LEASING - PRIVATE RENTALS,19/01/2022,7940995678,569.9,ENTERPRISE RENT-A-CAR
OXFORDSHIRE CC,"CHILDRENS, YOUNG PEOPLE AND FAMILIES","	LEAVING CARE CITY 2",PAYMENTS TO TRANSPORT OPERATORS,19/01/2022,7940994522,12.9,OXFORD PARKWAY
OXFORDSHIRE CC,"CHILDRENS, YOUNG PEOPLE AND FAMILIES","	LEAVING CARE CITY 2",OTHER TRANSPORT ARRANGEMENTS,19/01/2022,7940994528,4.3,STGCOACH/CTYLINK
OXFORDSHIRE CC,ENVIRONMENT AND ECONOMY,"	NATURAL ENVIRONMENT",MATERIALS,18/01/2022,7938266862,117.6,HEATHWOOD NURSERIES LI
OXFORDSHIRE CC,CORPORATE CORE,"	LEGAL SERVICES",LEGAL COSTS,18/01/2022,7938266884,11,OXFORDSHIRE CC MOTO1
OXFORDSHIRE CC,"CHILDRENS, YOUNG PEOPLE AND FAMILIES",THAME E&A HOME,MATERIALS,18/01/2022,7938266310,13.56,AMZNMKTPLACE
OXFORDSHIRE CC,SOCIAL AND COMMUNITY SERVICES,CSS WITNEY,MATERIALS,18/01/2022,7938266316,3.1,AMZNMKTPLACE AMAZON.CO
OXFORDSHIRE CC,SOCIAL AND COMMUNITY SERVICES,CSS - ABINGDON,VEHICLE FUEL,18/01/2022,7938266346,22.99,ESSO MARCHAM ROAD SERV
OXFORDSHIRE CC,"CHILDRENS, YOUNG PEOPLE AND FAMILIES",FAMILY SOLUTIONS PLUS NON-STAFF - NORTH,HIRE OF ACCOMMODATION AND FACILITIES,18/01/2022,7938266924,10.5,TRAVELODGE
OXFORDSHIRE CC,"CHILDRENS, YOUNG PEOPLE AND FAMILIES",FAMILY SOLUTIONS PLUS NON-STAFF - NORTH,HIRE OF ACCOMMODATION AND FACILITIES,18/01/2022,7938266928,48.49,TRAVELODGE
OXFORDSHIRE CC,"CHILDRENS, YOUNG PEOPLE AND FAMILIES",FAMILY SOLUTIONS PLUS NON-STAFF - NORTH,HIRE OF ACCOMMODATION AND FACILITIES,18/01/2022,7938266930,48.49,TRAVELODGE
OXFORDSHIRE CC,"CHILDRENS, YOUNG PEOPLE AND FAMILIES",FAMILY SOLUTIONS PLUS NON-STAFF - NORTH,HIRE OF ACCOMMODATION AND FACILITIES,18/01/2022,7938266932,34.49,TRAVELODGE
OXFORDSHIRE CC,"CHILDRENS, YOUNG PEOPLE AND FAMILIES",UASC 16&17,CATERING PROVISIONS,18/01/2022,7938266936,7.8,TESCO STORES 2008
OXFORDSHIRE CC,"CHILDRENS, YOUNG PEOPLE AND FAMILIES","	LEAVING CARE NORTH",MATERIALS,18/01/2022,7938266938,37.92,AMZNMKTPLACE
OXFORDSHIRE CC,ENVIRONMENT AND ECONOMY,HARD FM,MATERIALS,18/01/2022,7938266368,9.58,HALFORDS 0854
OXFORDSHIRE CC,ENVIRONMENT AND ECONOMY,HARD FM,GENERAL MAINTENANCE,18/01/2022,7938266372,83.81,HEATING CONTROLS LTD
OXFORDSHIRE CC,"CHILDRENS, YOUNG PEOPLE AND FAMILIES","	LEAVING CARE NORTH",MATERIALS,18/01/2022,7938266940,32.29,AMAZON.CO.UK II6BF1IL5
OXFORDSHIRE CC,SOCIAL AND COMMUNITY SERVICES,CSS WANTAGE,ENTERTAINMENT EXPENSES,18/01/2022,7938266960,25.25,WWW.BETTER.ORG.UK
OXFORDSHIRE CC,"CHILDRENS, YOUNG PEOPLE AND FAMILIES",S&A INTERVENTION GRT,PHOTOCOPYING,18/01/2022,7938266976,166.8,SHUTTERSTOCK IRELAND L
OXFORDSHIRE CC,CORPORATE CORE,,STATIONERY,18/01/2022,7938267216,86.89,LYRECO UK LTD
OXFORDSHIRE CC,CORPORATE CORE,,STATIONERY,18/01/2022,7938267218,2.62,LYRECO UK LTD
OXFORDSHIRE CC,CORPORATE CORE,,STATIONERY,18/01/2022,7938267222,31.01,LYRECO UK LTD
OXFORDSHIRE CC,"CHILDRENS, YOUNG PEOPLE AND FAMILIES",PAUSE PROGRAMME,CATERING PROVISIONS,18/01/2022,7938266650,14.73,TESCO STORE 2994
OXFORDSHIRE CC,"CHILDRENS, YOUNG PEOPLE AND FAMILIES",UASC 16&17,OTHER TRANSPORT ARRANGEMENTS,18/01/2022,7938266692,3.8,STGCOACH/CTYLINK
OXFORDSHIRE CC,"CHILDRENS, YOUNG PEOPLE AND FAMILIES",UASC 16&17,CATERING PROVISIONS,18/01/2022,7938266696,14,TESCO STORES 6292
OXFORDSHIRE CC,"CHILDRENS, YOUNG PEOPLE AND FAMILIES",UASC 16&17,RESIDENTIAL ACTIVITIES,18/01/2022,7938266700,8.5,ZTL JUNKYARD GOLF CLUB
OXFORDSHIRE CC,"CHILDRENS, YOUNG PEOPLE AND FAMILIES",FSP NON-STAFFING - CENTRAL,CATERING PROVISIONS,18/01/2022,7938266702,18.55,LIDL GB WITNEY
OXFORDSHIRE CC,"CHILDRENS, YOUNG PEOPLE AND FAMILIES",FAMILY SOLUTIONS PLUS NON-STAFF - NORTH,CATERING PROVISIONS,18/01/2022,7938266706,4.34,LIDL GB WITNEY
OXFORDSHIRE CC,SOCIAL AND COMMUNITY SERVICES,CSS - OXFORD,PAYMENTS TO VOLUNTARY BODIES,18/01/2022,7938266712,6.5,KATHARINE HOUSE HOSPIC
OXFORDSHIRE CC,ENVIRONMENT AND ECONOMY,"	KNIGHTS COURT",CATERING PROVISIONS,18/01/2022,7938266716,1.49,COWLEY CONVENIENCE STO
OXFORDSHIRE CC,"CHILDRENS, YOUNG PEOPLE AND FAMILIES","	LEAVING CARE CITY 2",CATERING,18/01/2022,7938266724,9.1,COSTA COFFEE 43043010
OXFORDSHIRE CC,"CHILDRENS, YOUNG PEOPLE AND FAMILIES",FAMILY SOLUTIONS PLUS NON-STAFF � SOUTH,PAYMENTS TO TRANSPORT OPERATORS,18/01/2022,7938266728,42.95,THETRAINLINE.COM
OXFORDSHIRE CC,"CHILDRENS, YOUNG PEOPLE AND FAMILIES",THAME E&A HOME,CATERING PROVISIONS,18/01/2022,7938266508,164.51,TESCO STORES 2038
OXFORDSHIRE CC,ENVIRONMENT AND ECONOMY,WASTE REDUCTION GEN,"PUBLICITY, PROMOTIONS AND ADVERTISEMENT",18/01/2022,7938266512,49.99,FACEBK 35MQ3DB8M2
OXFORDSHIRE CC,SOCIAL AND COMMUNITY SERVICES,ADULTS AT RISK,HIRE OF ACCOMMODATION AND FACILITIES,18/01/2022,7938267096,455,ASHLEA GUEST HOUSE
OXFORDSHIRE CC,"CHILDRENS, YOUNG PEOPLE AND FAMILIES",BULLINGDON PRISON,PRINTING,18/01/2022,7938267104,0.55,OCC LIBRARY SERVICES
OXFORDSHIRE CC,"CHILDRENS, YOUNG PEOPLE AND FAMILIES",BULLINGDON PRISON,"SUPPLIES, STATIONERY AND MATERIALS",18/01/2022,7938267108,5,BICESTER SHOE REPAIRS
OXFORDSHIRE CC,"CHILDRENS, YOUNG PEOPLE AND FAMILIES","	LEAVING CARE SOUTH",FURNITURE,18/01/2022,7938267118,379.98,SP   DAALS
OXFORDSHIRE CC,"CHILDRENS, YOUNG PEOPLE AND FAMILIES",EYNSHAM,CATERING PROVISIONS,18/01/2022,7938267130,6.5,MAYFIELDEGGS
OXFORDSHIRE CC,"CHILDRENS, YOUNG PEOPLE AND FAMILIES",KINGFISHER,CATERING PROVISIONS,18/01/2022,7938266534,35.28,MOONPIG
OXFORDSHIRE CC,"CHILDRENS, YOUNG PEOPLE AND FAMILIES",40 THE MOORS,CATERING,18/01/2022,7938266546,11.65,COSTA COFFEE
OXFORDSHIRE CC,"CHILDRENS, YOUNG PEOPLE AND FAMILIES",40 THE MOORS,OTHER TRANSPORT ARRANGEMENTS,18/01/2022,7938266550,4,WESTGATE OXFORD CAR PA
OXFORDSHIRE CC,"CHILDRENS, YOUNG PEOPLE AND FAMILIES",40 THE MOORS,CATERING,18/01/2022,7938266554,43.3,TIFFINS
OXFORDSHIRE CC,"CHILDRENS, YOUNG PEOPLE AND FAMILIES",FSP NON-STAFFING - CENTRAL,ENTERTAINMENT EXPENSES,18/01/2022,7938266566,59.7,THE PARTYMAN COMPANY L
OXFORDSHIRE CC,"CHILDRENS, YOUNG PEOPLE AND FAMILIES",EDT,CATERING PROVISIONS,18/01/2022,7938267144,2,SELECTA U.K. LIMITED
OXFORDSHIRE CC,"CHILDRENS, YOUNG PEOPLE AND FAMILIES",EDT,CATERING PROVISIONS,18/01/2022,7938267146,1.1,SELECTA U.K. LIMITED
OXFORDSHIRE CC,"CHILDRENS, YOUNG PEOPLE AND FAMILIES",EDT,CATERING PROVISIONS,18/01/2022,7938267148,1.7,SELECTA U.K. LIMITED
OXFORDSHIRE CC,"CHILDRENS, YOUNG PEOPLE AND FAMILIES",EDT,CATERING PROVISIONS,18/01/2022,7938267152,1,SELECTA U.K. LIMITED
OXFORDSHIRE CC,"CHILDRENS, YOUNG PEOPLE AND FAMILIES",EDT,CATERING PROVISIONS,18/01/2022,7938267156,1,SELECTA U.K. LIMITED
OXFORDSHIRE CC,"CHILDRENS, YOUNG PEOPLE AND FAMILIES",EDT,CATERING PROVISIONS,18/01/2022,7938267158,1,SELECTA U.K. LIMITED
OXFORDSHIRE CC,"CHILDRENS, YOUNG PEOPLE AND FAMILIES",EDT,HIRE OF ACCOMMODATION AND FACILITIES,18/01/2022,7938267162,47.16,TRAVELODGE
OXFORDSHIRE CC,"CHILDRENS, YOUNG PEOPLE AND FAMILIES",EDT,OTHER TRANSPORT ARRANGEMENTS,18/01/2022,7938267164,4.4,APCOA CONNECT TRAVELOD
OXFORDSHIRE CC,"CHILDRENS, YOUNG PEOPLE AND FAMILIES",40 THE MOORS,MATERIALS,18/01/2022,7938266572,17.37,ROBERT DYAS HOLDNG LTD
OXFORDSHIRE CC,"CHILDRENS, YOUNG PEOPLE AND FAMILIES",40 THE MOORS,CATERING PROVISIONS,18/01/2022,7938266576,5.14,BONN SQUARE NEWS
OXFORDSHIRE CC,CORPORATE CORE,,STATIONERY,18/01/2022,7938267206,8.5,LYRECO UK LTD
OXFORDSHIRE CC,CORPORATE CORE,,STATIONERY,18/01/2022,7938267208,36.84,LYRECO UK LTD
OXFORDSHIRE CC,CORPORATE CORE,,STATIONERY,18/01/2022,7938267212,7.45,LYRECO UK LTD
OXFORDSHIRE CC,"CHILDRENS, YOUNG PEOPLE AND FAMILIES","	OCCG GRANT",MATERIALS,18/01/2022,7938266618,384.5,AMZNMKTPLACE AMAZON.CO
OXFORDSHIRE CC,"CHILDRENS, YOUNG PEOPLE AND FAMILIES","	OCCG GRANT",CATERING PROVISIONS,18/01/2022,7938266624,2.45,TESCO-STORES-5812
OXFORDSHIRE CC,"CHILDRENS, YOUNG PEOPLE AND FAMILIES",0-5 STDS & PROGRESS,"BOOKS, DVDS AND CDS",18/01/2022,7938266630,164.24,BLACKWELL'S
OXFORDSHIRE CC,"CHILDRENS, YOUNG PEOPLE AND FAMILIES",S&A INTERVENTION GRT,PHOTOCOPYING,18/01/2022,7938266980,166.8,SHUTTERSTOCK IRELAND L
OXFORDSHIRE CC,SOCIAL AND COMMUNITY SERVICES,LIVE WELL STAFFING,POSTAGE AND DELIVERY,18/01/2022,7938266426,-11.05,ROYAL MAIL GROUP LTD
OXFORDSHIRE CC,SOCIAL AND COMMUNITY SERVICES,SCHOOLS FM CATERING AREA 2,MATERIALS,18/01/2022,7938266466,9.16,AMZNMKTPLACE
OXFORDSHIRE CC,SOCIAL AND COMMUNITY SERVICES,SCHOOLS FM CATERING AREA 2,CATERING,18/01/2022,7938266470,53.33,BOOKER LIMITED OXFORD
OXFORDSHIRE CC,"CHILDRENS, YOUNG PEOPLE AND FAMILIES",40 THE MOORS,CATERING PROVISIONS,17/01/2022,7933628160,54.67,SAINSBURY'S S/MKT
OXFORDSHIRE CC,"CHILDRENS, YOUNG PEOPLE AND FAMILIES",40 THE MOORS,CATERING PROVISIONS,17/01/2022,7933628158,3.5,SAINSBURY'S S/MKT
OXFORDSHIRE CC,"CHILDRENS, YOUNG PEOPLE AND FAMILIES",40 THE MOORS,CATERING,17/01/2022,7933628162,4.39,MCDONALDS
OXFORDSHIRE CC,"CHILDRENS, YOUNG PEOPLE AND FAMILIES",FSP NON-STAFFING - CENTRAL,MATERIALS,17/01/2022,7933628164,13.51,AMZNMKTPLACE
OXFORDSHIRE CC,"CHILDRENS, YOUNG PEOPLE AND FAMILIES",FSP NON-STAFFING - CENTRAL,PROFESSIONAL SUBSCRIPTIONS,17/01/2022,7933628166,192.5,UKCF ACADEMY
OXFORDSHIRE CC,"CHILDRENS, YOUNG PEOPLE AND FAMILIES",CNTL EARLY HELP-BRTN,PAYMENTS TO VOLUNTARY BODIES,17/01/2022,7933628168,83,FAMILY LINKS
OXFORDSHIRE CC,"CHILDRENS, YOUNG PEOPLE AND FAMILIES",40 THE MOORS,"BOOKS, DVDS AND CDS",17/01/2022,7933628172,10.39,BLACKWELL'S
OXFORDSHIRE CC,"CHILDRENS, YOUNG PEOPLE AND FAMILIES",40 THE MOORS,"BOOKS, DVDS AND CDS",17/01/2022,7933628174,8.4,BLACKWELL'S
OXFORDSHIRE CC,"CHILDRENS, YOUNG PEOPLE AND FAMILIES",40 THE MOORS,CATERING,17/01/2022,7933628176,47.87,OXY ORIENTAL
OXFORDSHIRE CC,"CHILDRENS, YOUNG PEOPLE AND FAMILIES",THAME E&A HOME,ENTERTAINMENT EXPENSES,17/01/2022,7933628270,12,WWW.BETTER.ORG.UK
OXFORDSHIRE CC,"CHILDRENS, YOUNG PEOPLE AND FAMILIES",THAME E&A HOME,CATERING,17/01/2022,7933628274,10.08,MCDONALDS
OXFORDSHIRE CC,"CHILDRENS, YOUNG PEOPLE AND FAMILIES","	OCCG GRANT",CATERING,17/01/2022,7933628276,5.1,COSTA COFFEE 43039930
OXFORDSHIRE CC,SOCIAL AND COMMUNITY SERVICES,SCHOOLS FM CATERING AREA 4,CATERING PROVISIONS,17/01/2022,7933628096,64.2,SAINSBURYS SMKT
OXFORDSHIRE CC,SOCIAL AND COMMUNITY SERVICES,LIVE WELL STAFFING,POSTAGE AND DELIVERY,17/01/2022,7933628098,11.65,ROYAL MAIL GROUP LTD
OXFORDSHIRE CC,"CHILDRENS, YOUNG PEOPLE AND FAMILIES",40 THE MOORS,OTHER TRANSPORT ARRANGEMENTS,17/01/2022,7933628178,2.99,ZIGZAG GLOBAL
OXFORDSHIRE CC,"CHILDRENS, YOUNG PEOPLE AND FAMILIES",40 THE MOORS,CATERING PROVISIONS,17/01/2022,7933628180,7.59,TESCO STORE 2788
OXFORDSHIRE CC,"CHILDRENS, YOUNG PEOPLE AND FAMILIES",40 THE MOORS,MATERIALS,17/01/2022,7933628182,50.99,AMZNMKTPLACE
OXFORDSHIRE CC,CORPORATE CORE,RESOURCING,PAYMENT TO GOVERNMENT DEPARTMENTS,17/01/2022,7933628190,"-1,500.00",C2E747500164R UKVI
OXFORDSHIRE CC,ENVIRONMENT AND ECONOMY,"	SAMUELSON HOUSE",CATERING PROVISIONS,17/01/2022,7933628282,5.75,WM MORRISONS STORE
OXFORDSHIRE CC,"CHILDRENS, YOUNG PEOPLE AND FAMILIES",FIELDWORK UASC,OTHER TRANSPORT ARRANGEMENTS,17/01/2022,7933628280,15,TFL BUSINESS BOPS WEB
OXFORDSHIRE CC,ENVIRONMENT AND ECONOMY,LIBRARY PROJECTS,MATERIALS,17/01/2022,7933628294,39.99,AMZNMKTPLACE
OXFORDSHIRE CC,"CHILDRENS, YOUNG PEOPLE AND FAMILIES",PAUSE PROGRAMME,CATERING PROVISIONS,17/01/2022,7933628304,4.75,SAINSBURY'S S/MKT
OXFORDSHIRE CC,SOCIAL AND COMMUNITY SERVICES,"	MUSEUMS COLLECTIONS",OTHER SERVICES,17/01/2022,7933628526,54.92,SCREWFIX DIRECT
OXFORDSHIRE CC,"CHILDRENS, YOUNG PEOPLE AND FAMILIES",PAUSE PROGRAMME,MATERIALS,17/01/2022,7933628306,59.99,ARGOS KIDLINGTON INSID
OXFORDSHIRE CC,"CHILDRENS, YOUNG PEOPLE AND FAMILIES","	RIVERSIDE CENTRE",CATERING,17/01/2022,7933628308,17.75,SUBWAY 65438 BRACKNELL
OXFORDSHIRE CC,"CHILDRENS, YOUNG PEOPLE AND FAMILIES","	RIVERSIDE CENTRE",CATERING PROVISIONS,17/01/2022,7933628312,53.29,TESCO STORE 2132
OXFORDSHIRE CC,"CHILDRENS, YOUNG PEOPLE AND FAMILIES",UASC POST 18,MATERIALS,17/01/2022,7933628318,427.98,CURRYS OXFORD
OXFORDSHIRE CC,"CHILDRENS, YOUNG PEOPLE AND FAMILIES",UASC POST 18,MATERIALS,17/01/2022,7933628320,400,CURRYS OXFORD
OXFORDSHIRE CC,"CHILDRENS, YOUNG PEOPLE AND FAMILIES",UASC POST 18,CATERING PROVISIONS,17/01/2022,7933628322,132,SAINSBURY'S S/MKT
OXFORDSHIRE CC,"CHILDRENS, YOUNG PEOPLE AND FAMILIES",THAME E&A HOME,MATERIALS,17/01/2022,7933628324,31.97,AMAZON.CO.UK H471A5ZN5
OXFORDSHIRE CC,"CHILDRENS, YOUNG PEOPLE AND FAMILIES",THAME E&A HOME,MATERIALS,17/01/2022,7933628326,8.75,AMZNMKTPLACE AMAZON.CO
OXFORDSHIRE CC,"CHILDRENS, YOUNG PEOPLE AND FAMILIES",DIDCOT MOVE-ON HOME,MATERIALS,17/01/2022,7933628422,69.9,BROLLY SHEETS UK L
OXFORDSHIRE CC,"CHILDRENS, YOUNG PEOPLE AND FAMILIES",DIDCOT MOVE-ON HOME,CATERING PROVISIONS,17/01/2022,7933628424,21.7,SAINSBURYS SMKT
OXFORDSHIRE CC,"CHILDRENS, YOUNG PEOPLE AND FAMILIES","	OCCG GRANT",CATERING PROVISIONS,17/01/2022,7933628426,6.33,SAINSBURYS S/MKTS
OXFORDSHIRE CC,"CHILDRENS, YOUNG PEOPLE AND FAMILIES",CHILDREN IN CARE NON-STAFFING - SOUTH,PAYMENT TO GOVERNMENT DEPARTMENTS,17/01/2022,7933628642,45.25,GEN REGISTER OFFICE
OXFORDSHIRE CC,"CHILDRENS, YOUNG PEOPLE AND FAMILIES",40 THE MOORS,MATERIALS,17/01/2022,7933628644,75,WWW.GAME.CO.UK
OXFORDSHIRE CC,"CHILDRENS, YOUNG PEOPLE AND FAMILIES",UASC POST 18,HOSPITALITY EXPENSES,17/01/2022,7933628650,8.2,ASDA STORE 4442
OXFORDSHIRE CC,"CHILDRENS, YOUNG PEOPLE AND FAMILIES",DIDCOT MOVE-ON HOME,DOMESTIC SUPPLIES,17/01/2022,7933628652,4.5,WILKO RETAIL LIMITED
OXFORDSHIRE CC,"CHILDRENS, YOUNG PEOPLE AND FAMILIES",DIDCOT MOVE-ON HOME,DOMESTIC SUPPLIES,17/01/2022,7933628654,23.4,SAINSBURYS S/MKTS
OXFORDSHIRE CC,CORPORATE CORE,OPERATIONS,MATERIALS,17/01/2022,7933628440,5.32,AMZNMKTPLACE AMAZON.CO
OXFORDSHIRE CC,"CHILDRENS, YOUNG PEOPLE AND FAMILIES",STH EARLY HELP-DDCOT,HIRE OF ACCOMMODATION AND FACILITIES,17/01/2022,7933628552,155,OXFORD SPIRES
OXFORDSHIRE CC,"CHILDRENS, YOUNG PEOPLE AND FAMILIES",STH EARLY HELP-DDCOT,HIRE OF ACCOMMODATION AND FACILITIES,17/01/2022,7933628558,155,OXFORD SPIRES
OXFORDSHIRE CC,"CHILDRENS, YOUNG PEOPLE AND FAMILIES",STH EARLY HELP-DDCOT,HIRE OF ACCOMMODATION AND FACILITIES,17/01/2022,7933628560,155,OXFORD SPIRES
OXFORDSHIRE CC,"CHILDRENS, YOUNG PEOPLE AND FAMILIES","	LOOKED AFTER CITY 2",CATERING,17/01/2022,7933628562,10.85,BICESTER RESTAURANT
OXFORDSHIRE CC,"CHILDRENS, YOUNG PEOPLE AND FAMILIES","	LEAVING CARE NORTH",CATERING,17/01/2022,7933628564,3.6,COSTA TEMPLAR SQUARE O
OXFORDSHIRE CC,"CHILDRENS, YOUNG PEOPLE AND FAMILIES","	LEAVING CARE NORTH",TELEPHONE - EQUIPMENT,17/01/2022,7933628566,29,O2 COWLEY
OXFORDSHIRE CC,SOCIAL AND COMMUNITY SERVICES,CSS WITNEY,MATERIALS,17/01/2022,7933628572,45.98,AMZNMKTPLACE
OXFORDSHIRE CC,"CHILDRENS, YOUNG PEOPLE AND FAMILIES",DIDCOT MOVE-ON HOME,DOMESTIC SUPPLIES,17/01/2022,7933628656,7.5,SAINSBURYS S/MKTS
OXFORDSHIRE CC,"CHILDRENS, YOUNG PEOPLE AND FAMILIES",CNTL EARLY HELP-BRTN,OTHER TRANSPORT ARRANGEMENTS,17/01/2022,7933628668,14.4,SUMUP   MR EMMANUEL MA
OXFORDSHIRE CC,"CHILDRENS, YOUNG PEOPLE AND FAMILIES",DIDCOT MOVE-ON HOME,CATERING PROVISIONS,17/01/2022,7933628658,4.1,SAINSBURYS S/MKTS
OXFORDSHIRE CC,"CHILDRENS, YOUNG PEOPLE AND FAMILIES",DIDCOT MOVE-ON HOME,CATERING PROVISIONS,17/01/2022,7933628660,9.89,SAINSBURYS S/MKTS
OXFORDSHIRE CC,"CHILDRENS, YOUNG PEOPLE AND FAMILIES",BULLINGDON PRISON,FURNITURE,17/01/2022,7933628676,26,AMAZON.CO.UK 098BO3QT5
OXFORDSHIRE CC,SOCIAL AND COMMUNITY SERVICES,CSS WITNEY,MATERIALS,17/01/2022,7933628574,18.98,AMZNMKTPLACE
OXFORDSHIRE CC,SOCIAL AND COMMUNITY SERVICES,ABINGDON LIBRARY,EQUIPMENT,17/01/2022,7933628682,36.99,AMZNMKTPLACE AMAZON.CO
OXFORDSHIRE CC,"CHILDRENS, YOUNG PEOPLE AND FAMILIES",CNTL ERLY HELP-BBLEY,PAYMENTS TO TRANSPORT OPERATORS,17/01/2022,7933628684,25.15,WWW.GWR.COM
OXFORDSHIRE CC,"CHILDRENS, YOUNG PEOPLE AND FAMILIES",EYNSHAM,OTHER COMMUNICATIONS,17/01/2022,7933628790,9.99,NETFLIX.COM
OXFORDSHIRE CC,CORPORATE CORE,,STATIONERY,17/01/2022,7933628792,45.35,LYRECO UK LTD
OXFORDSHIRE CC,CORPORATE CORE,,STATIONERY,17/01/2022,7933628794,81.97,LYRECO UK LTD
OXFORDSHIRE CC,CORPORATE CORE,,STATIONERY,17/01/2022,7933628796,9.02,LYRECO UK LTD
OXFORDSHIRE CC,ENVIRONMENT AND ECONOMY,ELEC NPR ST LTG,MATERIALS,17/01/2022,7933628002,29.9,AMZNMKTPLACE AMAZON.CO
OXFORDSHIRE CC,"CHILDRENS, YOUNG PEOPLE AND FAMILIES",CSS WALLINGFORD,CATERING PROVISIONS,17/01/2022,7933628000,7.6,WAITROSE 675
OXFORDSHIRE CC,"CHILDRENS, YOUNG PEOPLE AND FAMILIES",WITNEY,CATERING PROVISIONS,17/01/2022,7933628014,80.84,ASDA STORES 4920
OXFORDSHIRE CC,"CHILDRENS, YOUNG PEOPLE AND FAMILIES",WITNEY,CATERING,17/01/2022,7933628016,9.4,BURGER KING
OXFORDSHIRE CC,"CHILDRENS, YOUNG PEOPLE AND FAMILIES","	LEAVING CARE CITY 2",MATERIALS,17/01/2022,7933628104,10.98,AMAZON.CO.UK JE7HW0JV5
OXFORDSHIRE CC,"CHILDRENS, YOUNG PEOPLE AND FAMILIES",FAMILY SOLUTIONS PLUS NON-STAFF - NORTH,PAYMENTS TO TRANSPORT OPERATORS,17/01/2022,7933628108,5.81,THETRAINLINE.COM
OXFORDSHIRE CC,"CHILDRENS, YOUNG PEOPLE AND FAMILIES",CSS WANTAGE,MATERIALS,17/01/2022,7933628024,15.25,SAINSBURYS S/MKTS
OXFORDSHIRE CC,"CHILDRENS, YOUNG PEOPLE AND FAMILIES","	LOOKED AFTER CITY 1",RESIDENTIAL ACTIVITIES,17/01/2022,7933628030,29.97,DOMINO S PIZZA
OXFORDSHIRE CC,ENVIRONMENT AND ECONOMY,HARD FM,HARDWARE AND CROCKERY,17/01/2022,7933628032,22.79,B AND Q
OXFORDSHIRE CC,ENVIRONMENT AND ECONOMY,HARD FM,HARDWARE AND CROCKERY,17/01/2022,7933628034,-55.36,B AND Q
OXFORDSHIRE CC,ENVIRONMENT AND ECONOMY,HARD FM,HARDWARE AND CROCKERY,17/01/2022,7933628036,73,WICKES OXFORD
OXFORDSHIRE CC,ENVIRONMENT AND ECONOMY,HARD FM,HARDWARE AND CROCKERY,17/01/2022,7933628038,267.95,CITY PLUMBING
OXFORDSHIRE CC,"CHILDRENS, YOUNG PEOPLE AND FAMILIES",FAMILY SOLUTIONS PLUS NON-STAFF - NORTH,MATERIALS,17/01/2022,7933628110,140,WWW.VOUCHEREXPRESS.CO.
OXFORDSHIRE CC,SOCIAL AND COMMUNITY SERVICES,CSS - BANBURY,MATERIALS,17/01/2022,7933628122,65.01,AMZNMKTPLACE
OXFORDSHIRE CC,SOCIAL AND COMMUNITY SERVICES,CSS - BANBURY,MATERIALS,17/01/2022,7933628124,29.75,AMZNMKTPLACE
OXFORDSHIRE CC,SOCIAL AND COMMUNITY SERVICES,"	HISTORY SERVICE","BOOKS, DVDS AND CDS",17/01/2022,7933628126,62.4,NEWSQUEST MEDIA GROUP
OXFORDSHIRE CC,SOCIAL AND COMMUNITY SERVICES,CSS WALLINGFORD,CATERING PROVISIONS,17/01/2022,7933628128,1.75,WAITROSE 675
OXFORDSHIRE CC,SHARED SERVICES,CSC SUPP & SERVICES,PURCHASE OF IT EQUIPMENT,17/01/2022,7933628212,20.02,AMZNMKTPLACE AMAZON.CO
OXFORDSHIRE CC,SHARED SERVICES,CSC SUPP & SERVICES,STATIONERY,17/01/2022,7933628214,16.57,AMZNMKTPLACE AMAZON.CO
OXFORDSHIRE CC,ENVIRONMENT AND ECONOMY,HARD FM,HARDWARE AND CROCKERY,17/01/2022,7933628042,9,WICKES OXFORD
OXFORDSHIRE CC,ENVIRONMENT AND ECONOMY,HARD FM,GENERAL MAINTENANCE,17/01/2022,7933628040,273.6,HEATING CONTROLS LTD
OXFORDSHIRE CC,ENVIRONMENT AND ECONOMY,HARD FM,HARDWARE AND CROCKERY,17/01/2022,7933628044,12.84,TRAVIS PERKINS
OXFORDSHIRE CC,ENVIRONMENT AND ECONOMY,HARD FM,HARDWARE AND CROCKERY,17/01/2022,7933628046,12.84,TRAVIS PERKINS
OXFORDSHIRE CC,"CHILDRENS, YOUNG PEOPLE AND FAMILIES",THAME E&A HOME,CATERING PROVISIONS,17/01/2022,7933628134,93.21,TESCO STORES 2038
OXFORDSHIRE CC,SOCIAL AND COMMUNITY SERVICES,CSS - OXFORD,CATERING PROVISIONS,17/01/2022,7933628136,41.33,ALDI STORES 775-142
OXFORDSHIRE CC,SOCIAL AND COMMUNITY SERVICES,CSS - OXFORD,CATERING PROVISIONS,17/01/2022,7933628138,1.15,ALDI STORES 775-142
OXFORDSHIRE CC,"CHILDRENS, YOUNG PEOPLE AND FAMILIES","	LOOKED AFTER CITY 2",PAYMENTS TO TRANSPORT OPERATORS,17/01/2022,7933628236,106.5,GWR OXFORD TO
OXFORDSHIRE CC,"CHILDRENS, YOUNG PEOPLE AND FAMILIES","	LOOKED AFTER CITY 2",OTHER TRANSPORT ARRANGEMENTS,17/01/2022,7933628238,2.3,STGCOACH/CTYLINK
OXFORDSHIRE CC,"CHILDRENS, YOUNG PEOPLE AND FAMILIES",EYNSHAM,ENTERTAINMENT EXPENSES,17/01/2022,7933628240,2.4,FREEDOG SWINDON LIMITE
OXFORDSHIRE CC,"CHILDRENS, YOUNG PEOPLE AND FAMILIES",EYNSHAM,ENTERTAINMENT EXPENSES,17/01/2022,7933628242,3.2,FREEDOG SWINDON LIMITE
OXFORDSHIRE CC,"CHILDRENS, YOUNG PEOPLE AND FAMILIES",DIDCOT MOVE-ON HOME,CATERING PROVISIONS,17/01/2022,7933628336,27.68,SAINSBURYS SMKT
OXFORDSHIRE CC,"CHILDRENS, YOUNG PEOPLE AND FAMILIES",DIDCOT MOVE-ON HOME,CATERING PROVISIONS,17/01/2022,7933628338,5.65,SAINSBURYS SMKT
OXFORDSHIRE CC,"CHILDRENS, YOUNG PEOPLE AND FAMILIES",WITNEY,CATERING PROVISIONS,17/01/2022,7933628340,3.95,SAINSBURY'S DIDCOT
OXFORDSHIRE CC,"CHILDRENS, YOUNG PEOPLE AND FAMILIES",FAMILY SOLUTIONS PLUS NON-STAFF - NORTH,FURNITURE,17/01/2022,7933628348,304.15,DUNELM
OXFORDSHIRE CC,"CHILDRENS, YOUNG PEOPLE AND FAMILIES",UASC 16&17,RESIDENTIAL ACTIVITIES,17/01/2022,7933628352,7.9,OXFORD ICE RINK
OXFORDSHIRE CC,ENVIRONMENT AND ECONOMY,BANBURY LIBRARY,MATERIALS,17/01/2022,7933628354,9.99,AMZNMKTPLACE
OXFORDSHIRE CC,SOCIAL AND COMMUNITY SERVICES,SCHOOLS FM CATERING AREA 1,MATERIALS,17/01/2022,7933628356,20.99,AMZNMKTPLACE AMAZON.CO
OXFORDSHIRE CC,SOCIAL AND COMMUNITY SERVICES,SCHOOLS FM CATERING AREA 1,MATERIALS,17/01/2022,7933628358,29.73,AMZNMKTPLACE
OXFORDSHIRE CC,SOCIAL AND COMMUNITY SERVICES,CSS - OXFORD,MATERIALS,17/01/2022,7933628464,27.21,AMZNMKTPLACE
OXFORDSHIRE CC,"CHILDRENS, YOUNG PEOPLE AND FAMILIES",THAME E&A HOME,MATERIALS,17/01/2022,7933628150,273.52,AMZNMKTPLACE
OXFORDSHIRE CC,"CHILDRENS, YOUNG PEOPLE AND FAMILIES",FAMILY SOLUTIONS PLUS NON-STAFF - NORTH,MATERIALS,17/01/2022,7933628252,8.37,AMZNMKTPLACE
OXFORDSHIRE CC,"CHILDRENS, YOUNG PEOPLE AND FAMILIES",THAME E&A HOME,DRUGS AND MEDICAL SUPPLIES,17/01/2022,7933628260,3.3,BOOTS THE CHEMIST
OXFORDSHIRE CC,"CHILDRENS, YOUNG PEOPLE AND FAMILIES",THAME E&A HOME,MATERIALS,17/01/2022,7933628262,17.99,SPORTSDIRECT 218
OXFORDSHIRE CC,"CHILDRENS, YOUNG PEOPLE AND FAMILIES",THAME E&A HOME,OTHER TRANSPORT ARRANGEMENTS,17/01/2022,7933628264,4,WESTGATE OXFORD CAR PA
OXFORDSHIRE CC,"CHILDRENS, YOUNG PEOPLE AND FAMILIES",THAME E&A HOME,CATERING PROVISIONS,17/01/2022,7933628266,4.2,MARKS & SPENCER PLC SA
OXFORDSHIRE CC,"CHILDRENS, YOUNG PEOPLE AND FAMILIES",THAME E&A HOME,MATERIALS,17/01/2022,7933628268,11,SPORTSDIRECT 218
OXFORDSHIRE CC,"CHILDRENS, YOUNG PEOPLE AND FAMILIES",HOUSE PROJECT,MATERIALS,17/01/2022,7933628374,9.31,HOME BARGAINS
OXFORDSHIRE CC,"CHILDRENS, YOUNG PEOPLE AND FAMILIES","	LEAVING CARE CITY 2",OTHER TRANSPORT ARRANGEMENTS,17/01/2022,7933628360,4.3,STGCOACH/CTYLINK
OXFORDSHIRE CC,"CHILDRENS, YOUNG PEOPLE AND FAMILIES","	LEAVING CARE CITY 2",CATERING PROVISIONS,17/01/2022,7933628362,30,TESCO STORES 6292
OXFORDSHIRE CC,"CHILDRENS, YOUNG PEOPLE AND FAMILIES",THAME E&A HOME,CATERING,17/01/2022,7933628364,17.56,BURGER KING
OXFORDSHIRE CC,"CHILDRENS, YOUNG PEOPLE AND FAMILIES",THAME E&A HOME,MATERIALS,17/01/2022,7933628366,8.99,AMZNMKTPLACE AMAZON.CO
OXFORDSHIRE CC,"CHILDRENS, YOUNG PEOPLE AND FAMILIES",HOUSE PROJECT,HOSPITALITY EXPENSES,17/01/2022,7933628368,4.95,VICTORIA ARMS
OXFORDSHIRE CC,"CHILDRENS, YOUNG PEOPLE AND FAMILIES",HOUSE PROJECT,HOSPITALITY EXPENSES,17/01/2022,7933628372,4.7,VICTORIA ARMS
OXFORDSHIRE CC,"CHILDRENS, YOUNG PEOPLE AND FAMILIES",UASC 16&17,OTHER EXPENSES,17/01/2022,7933628378,10,TESCO STORE 2994
OXFORDSHIRE CC,"CHILDRENS, YOUNG PEOPLE AND FAMILIES",UASC 16&17,OTHER EXPENSES,17/01/2022,7933628380,21.99,TESCO STORE 2994
OXFORDSHIRE CC,SOCIAL AND COMMUNITY SERVICES,"	MUSEUMS COLLECTIONS",CATERING PROVISIONS,17/01/2022,7933628472,3.24,MILK AND MORE (RECUR
OXFORDSHIRE CC,"CHILDRENS, YOUNG PEOPLE AND FAMILIES","	LOOKED AFTER CITY 2",OTHER TRANSPORT ARRANGEMENTS,17/01/2022,7933628474,3.3,OXFORD BUS COMPANY
OXFORDSHIRE CC,"CHILDRENS, YOUNG PEOPLE AND FAMILIES","	LOOKED AFTER CITY 2",OTHER TRANSPORT ARRANGEMENTS,17/01/2022,7933628476,3.3,OXFORD BUS COMPANY
OXFORDSHIRE CC,ENVIRONMENT AND ECONOMY,"	FLEET OPERATIONS",CATERING PROVISIONS,17/01/2022,7933628586,13.44,MILK AND MORE (RECUR
OXFORDSHIRE CC,"CHILDRENS, YOUNG PEOPLE AND FAMILIES","	MALTFIELD HOUSE",CATERING PROVISIONS,17/01/2022,7933628596,14.92,SAINSBURYS S/MKTS
OXFORDSHIRE CC,"CHILDRENS, YOUNG PEOPLE AND FAMILIES","	MALTFIELD HOUSE",VEHICLE FUEL,17/01/2022,7933628598,3.98,SHELL WITNEY
OXFORDSHIRE CC,"CHILDRENS, YOUNG PEOPLE AND FAMILIES","	LEAVING CARE NORTH",VEHICLE FUEL,17/01/2022,7933628382,30.01,SHELL BEACONSFIELD
OXFORDSHIRE CC,"CHILDRENS, YOUNG PEOPLE AND FAMILIES","	LOOKED AFTER CITY 1",CATERING,17/01/2022,7933628390,6.2,COSTA COFFEE 43048140
OXFORDSHIRE CC,"CHILDRENS, YOUNG PEOPLE AND FAMILIES","	LEAVING CARE CITY 2",CATERING,17/01/2022,7933628392,3.5,COSTA TEMPLAR SQUARE O
OXFORDSHIRE CC,ENVIRONMENT AND ECONOMY,LEARNING & ACCESS,"SUPPLIES, STATIONERY AND MATERIALS",17/01/2022,7933628516,41.93,GLS EDUCATIONAL SU
OXFORDSHIRE CC,"CHILDRENS, YOUNG PEOPLE AND FAMILIES",EYNSHAM,CATERING PROVISIONS,17/01/2022,7933628714,6.85,CO-OPERATIVE FOOD
OXFORDSHIRE CC,"CHILDRENS, YOUNG PEOPLE AND FAMILIES",EYNSHAM,CATERING PROVISIONS,17/01/2022,7933628716,10.2,CO-OPERATIVE FOOD
OXFORDSHIRE CC,"CHILDRENS, YOUNG PEOPLE AND FAMILIES",EYNSHAM,TELEPHONE - EQUIPMENT,17/01/2022,7933628710,10,VESTA VODAFONE TOPUP
OXFORDSHIRE CC,"CHILDRENS, YOUNG PEOPLE AND FAMILIES",EYNSHAM,MATERIALS,17/01/2022,7933628718,84.98,AMAZON.CO.UK 7K73U12N5
OXFORDSHIRE CC,SOCIAL AND COMMUNITY SERVICES,"	SHARED LIVES",CATERING PROVISIONS,17/01/2022,7933628724,18.99,WAITROSE 211
OXFORDSHIRE CC,"CHILDRENS, YOUNG PEOPLE AND FAMILIES",EYNSHAM,CATERING PROVISIONS,17/01/2022,7933628712,240.55,TESCO STORES 2008
OXFORDSHIRE CC,"CHILDRENS, YOUNG PEOPLE AND FAMILIES",40 THE MOORS,HIRE OF ACCOMMODATION AND FACILITIES,17/01/2022,7933628634,445,SANDGATE WORCESTER LTD
OXFORDSHIRE CC,"CHILDRENS, YOUNG PEOPLE AND FAMILIES",40 THE MOORS,CATERING,17/01/2022,7933628636,8.5,WORCESTER KEBAB HOUSE
OXFORDSHIRE CC,"CHILDRENS, YOUNG PEOPLE AND FAMILIES",40 THE MOORS,CATERING,17/01/2022,7933628638,3.9,WORCESTER KEBAB HOUSE
OXFORDSHIRE CC,"CHILDRENS, YOUNG PEOPLE AND FAMILIES",40 THE MOORS,HIRE OF ACCOMMODATION AND FACILITIES,17/01/2022,7933628640,170,SANDGATE WORCESTER LTD
OXFORDSHIRE CC,"CHILDRENS, YOUNG PEOPLE AND FAMILIES",THAME E&A HOME,HIRE OF ACCOMMODATION AND FACILITIES,17/01/2022,7933628736,178,SANDGATE WORCESTER LTD
OXFORDSHIRE CC,"CHILDRENS, YOUNG PEOPLE AND FAMILIES",THAME E&A HOME,CATERING,17/01/2022,7933628738,11.3,ZTL WORCESTER KEBAB HO
OXFORDSHIRE CC,"CHILDRENS, YOUNG PEOPLE AND FAMILIES",CNTL ERLY HELP-BBLEY,ENTERTAINMENT EXPENSES,17/01/2022,7933628748,6.8,COTSWOLD WILDLIFE PARK
OXFORDSHIRE CC,"CHILDRENS, YOUNG PEOPLE AND FAMILIES",CNTL ERLY HELP-BBLEY,ENTERTAINMENT EXPENSES,17/01/2022,7933628746,47,COTSWOLD WILDLIFE PARK
OXFORDSHIRE CC,"CHILDRENS, YOUNG PEOPLE AND FAMILIES",CNTL ERLY HELP-BBLEY,ENTERTAINMENT EXPENSES,17/01/2022,7933628750,32.15,COTSWOLD WILDLIFE PARK
OXFORDSHIRE CC,"CHILDRENS, YOUNG PEOPLE AND FAMILIES",CNTL ERLY HELP-BBLEY,CATERING PROVISIONS,17/01/2022,7933628752,14.03,TESCO STORE 2994
OXFORDSHIRE CC,"CHILDRENS, YOUNG PEOPLE AND FAMILIES",CNTL ERLY HELP-BBLEY,CATERING PROVISIONS,17/01/2022,7933628754,4.25,WILKO RETAIL LIMITED
OXFORDSHIRE CC,"CHILDRENS, YOUNG PEOPLE AND FAMILIES",CNTL ERLY HELP-BBLEY,CATERING PROVISIONS,17/01/2022,7933628756,77.27,SAINSBURY'S S/MKT
OXFORDSHIRE CC,"CHILDRENS, YOUNG PEOPLE AND FAMILIES",THAME E&A HOME,CATERING PROVISIONS,17/01/2022,7933628060,16.95,SAINSBURYS S/MKTS
OXFORDSHIRE CC,ENVIRONMENT AND ECONOMY,"	COUNTY PRINT FINSHRS",CATERING PROVISIONS,17/01/2022,7933628052,9.72,MILK AND MORE (RECUR
OXFORDSHIRE CC,"CHILDRENS, YOUNG PEOPLE AND FAMILIES",THAME E&A HOME,CATERING PROVISIONS,17/01/2022,7933628062,2.5,SAINSBURYS S/MKTS
OXFORDSHIRE CC,"CHILDRENS, YOUNG PEOPLE AND FAMILIES","	LEAVING CARE CITY 1",CATERING,17/01/2022,7933628056,9.37,COSTA TEMPLAR SQUARE O
OXFORDSHIRE CC,"CHILDRENS, YOUNG PEOPLE AND FAMILIES",THAME E&A HOME,CATERING,17/01/2022,7933628058,38.4,ZTL FAMOUS HOUSE
OXFORDSHIRE CC,"CHILDRENS, YOUNG PEOPLE AND FAMILIES",THAME E&A HOME,CATERING PROVISIONS,17/01/2022,7933628064,10.08,SAINSBURYS SUPERMA
OXFORDSHIRE CC,"CHILDRENS, YOUNG PEOPLE AND FAMILIES",CNTL EARLY HELP-RHIL,MATERIALS,14/01/2022,7928467710,409.98,ARGOS LTD
OXFORDSHIRE CC,"CHILDRENS, YOUNG PEOPLE AND FAMILIES",FSP NON-STAFFING - CENTRAL,CAR LEASING - PRIVATE RENTALS,14/01/2022,7928467716,40,EUROPCAR
OXFORDSHIRE CC,"CHILDRENS, YOUNG PEOPLE AND FAMILIES",PAUSE PROGRAMME,CATERING,14/01/2022,7928467718,10.27,MCDONALDS
OXFORDSHIRE CC,ENVIRONMENT AND ECONOMY,"	ABBEY HOUSE",CATERING PROVISIONS,14/01/2022,7928467726,1.25,WAITROSE 211
OXFORDSHIRE CC,"CHILDRENS, YOUNG PEOPLE AND FAMILIES",C&I BASE CHERWELL,"BOOKS, DVDS AND CDS",14/01/2022,7928467754,74.25,WWW.CGPBOOKS.CO.UK
OXFORDSHIRE CC,CORPORATE CORE,OPERATIONS,EQUIPMENT,14/01/2022,7928467756,7.99,AMZNMKTPLACE AMAZON.CO
OXFORDSHIRE CC,CORPORATE CORE,OPERATIONS,PHOTOCOPYING,14/01/2022,7928467758,242.03,AMZNMKTPLACE
OXFORDSHIRE CC,CORPORATE CORE,OPERATIONS,EQUIPMENT,14/01/2022,7928467760,9.98,AMZNMKTPLACE
OXFORDSHIRE CC,SOCIAL AND COMMUNITY SERVICES,CSS - OXFORD,MATERIALS,14/01/2022,7928467774,27.98,AMZNMKTPLACE
OXFORDSHIRE CC,"CHILDRENS, YOUNG PEOPLE AND FAMILIES",NTH EARLY HELP-WITNY,HIRE OF ACCOMMODATION AND FACILITIES,14/01/2022,7928467776,59.49,TRAVELODGE
OXFORDSHIRE CC,"CHILDRENS, YOUNG PEOPLE AND FAMILIES","	LOOKED AFTER CITY 2",PAYMENTS TO TRANSPORT OPERATORS,14/01/2022,7928467800,37.6,TRAINLINE
OXFORDSHIRE CC,CORPORATE CORE,BANKING,OTHER EXPENSES,14/01/2022,7928467336,34.8,SUMUP   SUMUP PAYMENTS
OXFORDSHIRE CC,"CHILDRENS, YOUNG PEOPLE AND FAMILIES","	LOOKED AFTER CITY 1","SUPPLIES, STATIONERY AND MATERIALS",14/01/2022,7928467342,16,SPORTSDIRECT 218
OXFORDSHIRE CC,SOCIAL AND COMMUNITY SERVICES,CSS - OXFORD,MATERIALS,14/01/2022,7928467346,24.98,AMZNMKTPLACE AMAZON.CO
OXFORDSHIRE CC,ENVIRONMENT AND ECONOMY,HARD FM,VEHICLES AND PLANT - REPAIRS AND MAIN,14/01/2022,7928467348,320.92,WWW.BLACKCIRCLES.COM
OXFORDSHIRE CC,ENVIRONMENT AND ECONOMY,HARD FM,HARDWARE AND CROCKERY,14/01/2022,7928467350,16.61,SCREWFIX DIRECT
OXFORDSHIRE CC,"CHILDRENS, YOUNG PEOPLE AND FAMILIES","	LEAVING CARE NORTH",TELEPHONE - EQUIPMENT,14/01/2022,7928467354,10,VODAFONE LIMITED
OXFORDSHIRE CC,SOCIAL AND COMMUNITY SERVICES,UASC 16&17,CATERING PROVISIONS,14/01/2022,7928467358,15.34,WM MORRISONS STORE
OXFORDSHIRE CC,SOCIAL AND COMMUNITY SERVICES,COMMISSIONING ADMIN,PROFESSIONAL SUBSCRIPTIONS,14/01/2022,7928467360,354,GOVNET EVENTS
OXFORDSHIRE CC,SOCIAL AND COMMUNITY SERVICES,CSS WANTAGE,VEHICLE EQUIPMENT AND EXPENSES - OTHER,14/01/2022,7928467304,20,SUMUP   ADVANCED CAR W
OXFORDSHIRE CC,"CHILDRENS, YOUNG PEOPLE AND FAMILIES",THAME E&A HOME,MATERIALS,14/01/2022,7928467306,20.47,AMZNMKTPLACE
OXFORDSHIRE CC,"CHILDRENS, YOUNG PEOPLE AND FAMILIES",THAME E&A HOME,MATERIALS,14/01/2022,7928467308,21.98,AMZNMKTPLACE
OXFORDSHIRE CC,"CHILDRENS, YOUNG PEOPLE AND FAMILIES",FSP NON-STAFFING - CENTRAL,OTHER TRANSPORT ARRANGEMENTS,14/01/2022,7928467314,15.4,RINGGO PARKING
OXFORDSHIRE CC,"CHILDRENS, YOUNG PEOPLE AND FAMILIES",CHILDREN IN CARE NON-STAFFING - SOUTH,MATERIALS,14/01/2022,7928467318,199.95,ARGOS LTD
OXFORDSHIRE CC,"CHILDRENS, YOUNG PEOPLE AND FAMILIES",ATV ADOPTION WOODLEY,OTHER TRAINING COURSES AND QUALIFICATION,14/01/2022,7928467326,79,CVAA UK LTD
OXFORDSHIRE CC,SOCIAL AND COMMUNITY SERVICES,CSS - ABINGDON,CATERING PROVISIONS,14/01/2022,7928467330,14.85,WAITROSE 211
OXFORDSHIRE CC,"CHILDRENS, YOUNG PEOPLE AND FAMILIES",PAUSE PROGRAMME,CATERING,14/01/2022,7928467610,10.3,COSTA COFFEE 43039930
OXFORDSHIRE CC,SOCIAL AND COMMUNITY SERVICES,SCHOOLS FM CATERING AREA 4,CATERING PROVISIONS,14/01/2022,7928467394,72.8,SAINSBURYS S/MKTS
OXFORDSHIRE CC,"CHILDRENS, YOUNG PEOPLE AND FAMILIES","	LEAVING CARE CITY 2",INSURANCE COSTS,14/01/2022,7928467398,6.8,COSTA GROVE
OXFORDSHIRE CC,"CHILDRENS, YOUNG PEOPLE AND FAMILIES","	LEAVING CARE CITY 2",CATERING PROVISIONS,14/01/2022,7928467400,5.85,TESCO STORES 5429
OXFORDSHIRE CC,"CHILDRENS, YOUNG PEOPLE AND FAMILIES",CHILDREN IN CARE NON-STAFFING - CENTRL 2,LEGAL COSTS,14/01/2022,7928467404,360,TURPIN & MILLER LLP
OXFORDSHIRE CC,ENVIRONMENT AND ECONOMY,"	ROW MAINT",EQUIPMENT,14/01/2022,7928467924,429,L J AND C A CANNINGS
OXFORDSHIRE CC,ENVIRONMENT AND ECONOMY,"	FLEET OPERATIONS",POSTAGE AND DELIVERY,14/01/2022,7928467926,3.2,POST OFFICE COUNTER
OXFORDSHIRE CC,ENVIRONMENT AND ECONOMY,"	FLEET OPERATIONS",MATERIALS,14/01/2022,7928467930,16.98,AMZNMKTPLACE
OXFORDSHIRE CC,ENVIRONMENT AND ECONOMY,SCH&SOC CARE TRANSP,MATERIALS,14/01/2022,7928467932,15.94,AMZNMKTPLACE AMAZON.CO
OXFORDSHIRE CC,"CHILDRENS, YOUNG PEOPLE AND FAMILIES",PAUSE PROGRAMME,CATERING,14/01/2022,7928467614,7.5,THE BREAKFAST CLUB
OXFORDSHIRE CC,"CHILDRENS, YOUNG PEOPLE AND FAMILIES",UASC POST 18,PAYMENTS TO VOLUNTARY BODIES,14/01/2022,7928467618,201.62,ALLPAY  GREENSQUAREACC
OXFORDSHIRE CC,"CHILDRENS, YOUNG PEOPLE AND FAMILIES",WITNEY,"SUPPLIES, STATIONERY AND MATERIALS",14/01/2022,7928467620,27.9,THEWORKS.CO.UK
OXFORDSHIRE CC,"CHILDRENS, YOUNG PEOPLE AND FAMILIES",FAMILY SOLUTIONS PLUS NON-STAFF - NORTH,PAYMENTS TO TRANSPORT OPERATORS,14/01/2022,7928467634,35.8,WWW.GWR.COM
OXFORDSHIRE CC,"CHILDRENS, YOUNG PEOPLE AND FAMILIES",FAMILY SOLUTIONS PLUS NON-STAFF - NORTH,PAYMENTS TO TRANSPORT OPERATORS,14/01/2022,7928467638,139,WWW.GWR.COM
OXFORDSHIRE CC,ENVIRONMENT AND ECONOMY,BANBURY LIBRARY,MATERIALS,14/01/2022,7928467648,3,THE WORKS
OXFORDSHIRE CC,SOCIAL AND COMMUNITY SERVICES,SCHOOLS FM CATERING AREA 1,MATERIALS,14/01/2022,7928467654,28.1,AMZNMKTPLACE AMAZON.CO
OXFORDSHIRE CC,SOCIAL AND COMMUNITY SERVICES,SCHOOLS FM CATERING AREA 1,MATERIALS,14/01/2022,7928467656,40.97,AMZNMKTPLACE AMAZON.CO
OXFORDSHIRE CC,SOCIAL AND COMMUNITY SERVICES,SCHOOLS FM CATERING AREA 1,MATERIALS,14/01/2022,7928467658,28.1,AMZNMKTPLACE
OXFORDSHIRE CC,"CHILDRENS, YOUNG PEOPLE AND FAMILIES",DIDCOT MOVE-ON HOME,CATERING PROVISIONS,14/01/2022,7928467660,13.59,SAINSBURYS S/MKTS
OXFORDSHIRE CC,"CHILDRENS, YOUNG PEOPLE AND FAMILIES","	LEAVING CARE SOUTH",MATERIALS,14/01/2022,7928467664,31,SPORTSDIRECT 218
OXFORDSHIRE CC,"CHILDRENS, YOUNG PEOPLE AND FAMILIES",PAUSE PROGRAMME,CATERING,14/01/2022,7928467668,2.8,HKS B SWAN CLOSE ROAD
OXFORDSHIRE CC,"CHILDRENS, YOUNG PEOPLE AND FAMILIES",HOUSE PROJECT,CATERING PROVISIONS,14/01/2022,7928467676,12.9,SAINSBURYS S/MKTS
OXFORDSHIRE CC,"CHILDRENS, YOUNG PEOPLE AND FAMILIES",FSP NON-STAFFING - CENTRAL,MATERIALS,14/01/2022,7928467680,4.95,ARGOS LTD
OXFORDSHIRE CC,"CHILDRENS, YOUNG PEOPLE AND FAMILIES",FSP NON-STAFFING - CENTRAL,PAYMENT TO GOVERNMENT DEPARTMENTS,14/01/2022,7928467682,35,GEN REGISTER OFFICE
OXFORDSHIRE CC,"CHILDRENS, YOUNG PEOPLE AND FAMILIES","	LEAVING CARE NORTH",MATERIALS,14/01/2022,7928467684,10,SSE ELECTRICITY
OXFORDSHIRE CC,"CHILDRENS, YOUNG PEOPLE AND FAMILIES","	LEAVING CARE NORTH",CATERING,14/01/2022,7928467686,7.98,SUMUP   ELEVEN
OXFORDSHIRE CC,"CHILDRENS, YOUNG PEOPLE AND FAMILIES",THAME E&A HOME,CATERING PROVISIONS,14/01/2022,7928467690,1.75,SAINSBURYS S/MKTS
OXFORDSHIRE CC,"CHILDRENS, YOUNG PEOPLE AND FAMILIES",CHILDREN IN CARE NON-STAFFING - NORTH,VEHICLE FUEL,14/01/2022,7928467694,50.65,BP MOTO KNUTSFORD SOUT
OXFORDSHIRE CC,"CHILDRENS, YOUNG PEOPLE AND FAMILIES",CHILDREN IN CARE NON-STAFFING - NORTH,OTHER TRANSPORT ARRANGEMENTS,14/01/2022,7928467696,7,M6 TOLL
OXFORDSHIRE CC,"CHILDRENS, YOUNG PEOPLE AND FAMILIES","	LEAVING CARE CITY 2",CLOTHING AND UNIFORMS,14/01/2022,7928467488,56.99,BOOHOO.COM
OXFORDSHIRE CC,CORPORATE CORE,INCOME TEAM,PAYMENT TO GOVERNMENT DEPARTMENTS,14/01/2022,7928467506,1.5,WWW.GOV.UK
OXFORDSHIRE CC,"CHILDRENS, YOUNG PEOPLE AND FAMILIES",40 THE MOORS,REGISTRATION AND INSPECTION FEES,14/01/2022,7928467508,45,SUMUP   MPR-OXON
OXFORDSHIRE CC,CORPORATE CORE,ICT OPERATIONS & MAI,IT SERVICES,14/01/2022,7928468026,18.91,GITHUB
OXFORDSHIRE CC,"CHILDRENS, YOUNG PEOPLE AND FAMILIES",40 THE MOORS,CATERING PROVISIONS,14/01/2022,7928467512,8.95,SAINSBURYS S/MKTS
OXFORDSHIRE CC,"CHILDRENS, YOUNG PEOPLE AND FAMILIES","	LEAVING CARE NORTH",CATERING PROVISIONS,14/01/2022,7928467550,5.66,TESCO STORE 2413
OXFORDSHIRE CC,"CHILDRENS, YOUNG PEOPLE AND FAMILIES",CHILDREN IN CARE NON-STAFFING - SOUTH,PAYMENTS TO TRANSPORT OPERATORS,14/01/2022,7928468050,22.06,THETRAINLINE.COM
OXFORDSHIRE CC,"CHILDRENS, YOUNG PEOPLE AND FAMILIES",CNTL ERLY HELP-BBLEY,CATERING PROVISIONS,14/01/2022,7928468056,1.3,SAINSBURYS S/MKTS
OXFORDSHIRE CC,"CHILDRENS, YOUNG PEOPLE AND FAMILIES","	FOSTER CARE RECRUIT",PRINTING,14/01/2022,7928467832,720,ROUND & ABOUT PUBLICAT
OXFORDSHIRE CC,CORPORATE CORE,"	LEGAL SERVICES",LEGAL COSTS,14/01/2022,7928467858,11,OXFORDSHIRE CC MOTO1
OXFORDSHIRE CC,"CHILDRENS, YOUNG PEOPLE AND FAMILIES","	RIVERSIDE CENTRE",DAY ACTIVITIES,14/01/2022,7928467860,6.5,OXFORD BROOKES UNI
OXFORDSHIRE CC,"CHILDRENS, YOUNG PEOPLE AND FAMILIES","	RIVERSIDE CENTRE",DAY ACTIVITIES,14/01/2022,7928467864,2,OXFORD BROOKES UNI
OXFORDSHIRE CC,"CHILDRENS, YOUNG PEOPLE AND FAMILIES","	RIVERSIDE CENTRE",DAY ACTIVITIES,14/01/2022,7928467866,5,OXFORD BROOKES UNI
OXFORDSHIRE CC,"CHILDRENS, YOUNG PEOPLE AND FAMILIES",FSP NON-STAFFING - CENTRAL,MATERIALS,14/01/2022,7928467364,247.95,ARGOS LTD
OXFORDSHIRE CC,"CHILDRENS, YOUNG PEOPLE AND FAMILIES","	OCCG GRANT",TELEPHONE - EQUIPMENT,14/01/2022,7928467874,59.71,EE LIMITED
OXFORDSHIRE CC,SOCIAL AND COMMUNITY SERVICES,CHILDREN IN CARE NON-STAFFING - NORTH,ENTERTAINMENT EXPENSES,14/01/2022,7928467878,17,WWW.GRAVITEEGOLF.COM
OXFORDSHIRE CC,"CHILDRENS, YOUNG PEOPLE AND FAMILIES",EDT,CATERING,14/01/2022,7928467886,4.7,DELIGHT KEBAB HOUSE
OXFORDSHIRE CC,SOCIAL AND COMMUNITY SERVICES,CSS WANTAGE,MATERIALS,14/01/2022,7928467908,33.98,AMAZON.CO.UK VR5VH6QL5
OXFORDSHIRE CC,"CHILDRENS, YOUNG PEOPLE AND FAMILIES","	AAC EQUIPMENT",PURCHASE OF IT EQUIPMENT,14/01/2022,7928467916,62.37,AMZNMKTPLACE AMAZON.CO
OXFORDSHIRE CC,"CHILDRENS, YOUNG PEOPLE AND FAMILIES",FAMILY SOLUTIONS PLUS NON-STAFF - NORTH,MATERIALS,14/01/2022,7928467566,2.2,AMZNMKTPLACE
OXFORDSHIRE CC,"CHILDRENS, YOUNG PEOPLE AND FAMILIES",FAMILY SOLUTIONS PLUS NON-STAFF - NORTH,MATERIALS,14/01/2022,7928467570,2.86,AMZNMKTPLACE
OXFORDSHIRE CC,"CHILDRENS, YOUNG PEOPLE AND FAMILIES",FAMILY SOLUTIONS PLUS NON-STAFF - NORTH,MATERIALS,14/01/2022,7928467572,3.96,AMZNMKTPLACE
OXFORDSHIRE CC,"CHILDRENS, YOUNG PEOPLE AND FAMILIES","	SEN/ICT EQUIPMENT",IT SOFTWARE,14/01/2022,7928467574,"1,092.00",MIRADORE
OXFORDSHIRE CC,"CHILDRENS, YOUNG PEOPLE AND FAMILIES","	SEN/ICT EQUIPMENT",IT SOFTWARE,14/01/2022,7928467574,852,MIRADORE
OXFORDSHIRE CC,CORPORATE CORE,,STATIONERY,14/01/2022,7928468080,12.74,LYRECO UK LTD
OXFORDSHIRE CC,CORPORATE CORE,,STATIONERY,14/01/2022,7928468082,164.64,LYRECO UK LTD
OXFORDSHIRE CC,CORPORATE CORE,,STATIONERY,14/01/2022,7928468086,4.42,LYRECO UK LTD
OXFORDSHIRE CC,CORPORATE CORE,,STATIONERY,14/01/2022,7928468088,64.27,LYRECO UK LTD
OXFORDSHIRE CC,"CHILDRENS, YOUNG PEOPLE AND FAMILIES","	OCCG GRANT",MATERIALS,14/01/2022,7928467588,10.5,POUNDLAND LTD
OXFORDSHIRE CC,"CHILDRENS, YOUNG PEOPLE AND FAMILIES","	OCCG GRANT",MATERIALS,14/01/2022,7928467590,131.85,THEWORKS.CO.UK
OXFORDSHIRE CC,"CHILDRENS, YOUNG PEOPLE AND FAMILIES","	OCCG GRANT",BIRTHDAY ALLOWANCE,14/01/2022,7928467592,4.75,TESCO STORE 2994
OXFORDSHIRE CC,"CHILDRENS, YOUNG PEOPLE AND FAMILIES",40 THE MOORS,CATERING,14/01/2022,7928467956,12.2,MILANO PIZZA
OXFORDSHIRE CC,CORPORATE CORE,"MARKETING, COMMUNICATIONS & ENGAGEMENT",MATERIALS,14/01/2022,7928467960,75.98,AMZNMKTPLACE
OXFORDSHIRE CC,"CHILDRENS, YOUNG PEOPLE AND FAMILIES",UASC POST 18,CATERING PROVISIONS,14/01/2022,7928467964,7.89,SAINSBURYS S/MKTS
OXFORDSHIRE CC,"CHILDRENS, YOUNG PEOPLE AND FAMILIES",UASC POST 18,HOSPITALITY EXPENSES,14/01/2022,7928467966,7.89,SAINSBURYS S/MKTS
OXFORDSHIRE CC,"CHILDRENS, YOUNG PEOPLE AND FAMILIES",UASC POST 18,HOSPITALITY EXPENSES,14/01/2022,7928467968,8.14,SAINSBURYS S/MKTS
OXFORDSHIRE CC,"CHILDRENS, YOUNG PEOPLE AND FAMILIES",UASC POST 18,HOSPITALITY EXPENSES,14/01/2022,7928467970,8.14,SAINSBURYS S/MKTS
OXFORDSHIRE CC,"CHILDRENS, YOUNG PEOPLE AND FAMILIES",UASC POST 18,HOSPITALITY EXPENSES,14/01/2022,7928467972,7.89,SAINSBURYS S/MKTS
OXFORDSHIRE CC,"CHILDRENS, YOUNG PEOPLE AND FAMILIES",UASC POST 18,HOSPITALITY EXPENSES,14/01/2022,7928467974,24.38,HEADINGTON BUTCHERS AN
OXFORDSHIRE CC,"CHILDRENS, YOUNG PEOPLE AND FAMILIES",UASC POST 18,CATERING,14/01/2022,7928467978,26.7,HEADINGTON BUTCHERS AN
OXFORDSHIRE CC,SOCIAL AND COMMUNITY SERVICES,SCHOOLS FM CATERING AREA 2,CATERING,14/01/2022,7928467450,20.78,BOOKER LIMITED OXFORD
OXFORDSHIRE CC,"CHILDRENS, YOUNG PEOPLE AND FAMILIES",CSS - DIDCOT,MATERIALS,14/01/2022,7928467470,23.4,AMZNMKTPLACE AMAZON.CO
OXFORDSHIRE CC,"CHILDRENS, YOUNG PEOPLE AND FAMILIES",CSS - DIDCOT,MATERIALS,14/01/2022,7928467472,5.99,AMZNMKTPLACE
OXFORDSHIRE CC,"CHILDRENS, YOUNG PEOPLE AND FAMILIES",CSS - DIDCOT,MATERIALS,14/01/2022,7928467474,102.57,AMZNMKTPLACE
OXFORDSHIRE CC,"CHILDRENS, YOUNG PEOPLE AND FAMILIES",UASC POST 18,HOSPITALITY EXPENSES,14/01/2022,7928467980,25.52,HEADINGTON BUTCHERS AN
OXFORDSHIRE CC,"CHILDRENS, YOUNG PEOPLE AND FAMILIES",UASC POST 18,HOSPITALITY EXPENSES,14/01/2022,7928467982,24.38,HEADINGTON BUTCHERS AN
OXFORDSHIRE CC,"CHILDRENS, YOUNG PEOPLE AND FAMILIES",UASC POST 18,HOSPITALITY EXPENSES,14/01/2022,7928467986,25.97,HEADINGTON BUTCHERS AN
OXFORDSHIRE CC,"CHILDRENS, YOUNG PEOPLE AND FAMILIES",UASC POST 18,HOSPITALITY EXPENSES,14/01/2022,7928467990,19.06,HEADINGTON BUTCHERS AN
OXFORDSHIRE CC,"CHILDRENS, YOUNG PEOPLE AND FAMILIES",UASC POST 18,CATERING PROVISIONS,14/01/2022,7928467992,1.4,SIP CARS PARKS (1) LI
OXFORDSHIRE CC,"CHILDRENS, YOUNG PEOPLE AND FAMILIES",DIDCOT MOVE-ON HOME,CATERING PROVISIONS,14/01/2022,7928467996,14.31,SAINSBURYS S/MKTS
OXFORDSHIRE CC,"CHILDRENS, YOUNG PEOPLE AND FAMILIES",CSS - DIDCOT,CATERING PROVISIONS,14/01/2022,7928467476,135.29,TESCO STORES 2008
OXFORDSHIRE CC,"CHILDRENS, YOUNG PEOPLE AND FAMILIES",40 THE MOORS,CLOTHING AND UNIFORMS,13/01/2022,7924909328,53.24,END CLOTHING
OXFORDSHIRE CC,CORPORATE CORE,"MARKETING, COMMUNICATIONS & ENGAGEMENT",PHOTOCOPYING,13/01/2022,7924909334,29,STK SHUTTERSTOCK
OXFORDSHIRE CC,"CHILDRENS, YOUNG PEOPLE AND FAMILIES",40 THE MOORS,CATERING PROVISIONS,13/01/2022,7924908538,8.58,TESCO STORE 2788
OXFORDSHIRE CC,"CHILDRENS, YOUNG PEOPLE AND FAMILIES",40 THE MOORS,DRUGS AND MEDICAL SUPPLIES,13/01/2022,7924908540,5.25,SUPERDRUG STORES PLC
OXFORDSHIRE CC,"CHILDRENS, YOUNG PEOPLE AND FAMILIES",40 THE MOORS,MATERIALS,13/01/2022,7924908544,6.64,CARD FACTORY
OXFORDSHIRE CC,"CHILDRENS, YOUNG PEOPLE AND FAMILIES",40 THE MOORS,PREMISES REPAIRS,13/01/2022,7924908548,300,SUMUP   CREST AMUSEMEN
OXFORDSHIRE CC,SHARED SERVICES,CSC SUPP & SERVICES,PURCHASE OF IT EQUIPMENT,13/01/2022,7924908580,11.97,AMAZON.CO.UK 689MC9PE5
OXFORDSHIRE CC,"CHILDRENS, YOUNG PEOPLE AND FAMILIES",UASC POST 18,HOSPITALITY EXPENSES,13/01/2022,7924909340,34.05,ASDA STORE 4442
OXFORDSHIRE CC,"CHILDRENS, YOUNG PEOPLE AND FAMILIES",FAMILY SOLUTIONS PLUS NON-STAFF - NORTH,MATERIALS,13/01/2022,7924908612,120.75,ARGOS LTD
OXFORDSHIRE CC,"CHILDRENS, YOUNG PEOPLE AND FAMILIES",FAMILY SOLUTIONS PLUS NON-STAFF - NORTH,MATERIALS,13/01/2022,7924908616,2.75,AMZNMKTPLACE
OXFORDSHIRE CC,SOCIAL AND COMMUNITY SERVICES,SCHOOLS FM CATERING AREA 2,CATERING,13/01/2022,7924908430,16.14,BOOKER LIMITED OXFORD
OXFORDSHIRE CC,SOCIAL AND COMMUNITY SERVICES,CICC,PAYMENTS TO TRANSPORT OPERATORS,13/01/2022,7924908432,34.49,TRAINLINE.COM
OXFORDSHIRE CC,SOCIAL AND COMMUNITY SERVICES,CHILDREN IN CARE NON-STAFFING - NORTH,CATERING PROVISIONS,13/01/2022,7924909138,5.85,SAINSBURYS S/MKTS
OXFORDSHIRE CC,"CHILDRENS, YOUNG PEOPLE AND FAMILIES",MEMBERS SERVICES,"SUPPLIES, STATIONERY AND MATERIALS",13/01/2022,7924909164,18,CHARITIES TRUST
OXFORDSHIRE CC,"CHILDRENS, YOUNG PEOPLE AND FAMILIES",CSS - DIDCOT,CATERING PROVISIONS,13/01/2022,7924908454,33.27,ALDI 99 775
OXFORDSHIRE CC,CORPORATE CORE,,STATIONERY,13/01/2022,7924909502,15.6,LYRECO UK LTD
OXFORDSHIRE CC,ENTERPRISEVC,,CAR LEASING - PRIVATE RENTALS,13/01/2022,7924909514,129.65,ENTERPRISE RENT-A-CAR
OXFORDSHIRE CC,ENTERPRISEVC,,CAR LEASING - PRIVATE RENTALS,13/01/2022,7924909520,53.5,ENTERPRISE RENT-A-CAR
OXFORDSHIRE CC,"CHILDRENS, YOUNG PEOPLE AND FAMILIES","	OCCG GRANT",BIRTHDAY ALLOWANCE,13/01/2022,7924908678,12.55,ASDA STORE 4442
OXFORDSHIRE CC,"CHILDRENS, YOUNG PEOPLE AND FAMILIES","	OCCG GRANT",CATERING PROVISIONS,13/01/2022,7924908684,32,ASDA STORE 4442
OXFORDSHIRE CC,"CHILDRENS, YOUNG PEOPLE AND FAMILIES","	OCCG GRANT",CATERING PROVISIONS,13/01/2022,7924908692,3.65,SAINSBURYS SMKT
OXFORDSHIRE CC,"CHILDRENS, YOUNG PEOPLE AND FAMILIES","	OCCG GRANT",DOMESTIC AND CLEANING EQUIPMENT,13/01/2022,7924908712,2.45,TESCO-STORES-5812
OXFORDSHIRE CC,ENTERPRISEVC,,CAR LEASING - PRIVATE RENTALS,13/01/2022,7924909524,53.06,ENTERPRISE RENT-A-CAR
OXFORDSHIRE CC,ENTERPRISEVC,,CAR LEASING - PRIVATE RENTALS,13/01/2022,7924909528,248.69,ENTERPRISE RENT-A-CAR
OXFORDSHIRE CC,ENTERPRISEVC,,CAR LEASING - PRIVATE RENTALS,13/01/2022,7924909532,62.17,ENTERPRISE RENT-A-CAR
OXFORDSHIRE CC,CORPORATE CORE,REGISTRAR,MATERIALS,13/01/2022,7924908766,41.75,AMZNMKTPLACE
OXFORDSHIRE CC,CORPORATE CORE,REGISTRAR,POSTAGE AND DELIVERY,13/01/2022,7924908774,385.2,ROYAL MAIL GROUP LTD
OXFORDSHIRE CC,CORPORATE CORE,OXFORD LOCALITY,SUBSCRIPTIONS,13/01/2022,7924908780,180,RTPI
OXFORDSHIRE CC,"CHILDRENS, YOUNG PEOPLE AND FAMILIES","	RIVERSIDE CENTRE",HARDWARE AND CROCKERY,13/01/2022,7924908788,63,WICKES OXFORD
OXFORDSHIRE CC,ENVIRONMENT AND ECONOMY,HARD FM,HARDWARE AND CROCKERY,13/01/2022,7924908796,6.75,SCREWFIX DIRECT
OXFORDSHIRE CC,"CHILDRENS, YOUNG PEOPLE AND FAMILIES",PAUSE PROGRAMME,MATERIALS,13/01/2022,7924908804,153.97,CURRYS ONLINE
OXFORDSHIRE CC,"CHILDRENS, YOUNG PEOPLE AND FAMILIES",KINGFISHER,CATERING,13/01/2022,7924908812,3.9,COSTA COFFEE
OXFORDSHIRE CC,"CHILDRENS, YOUNG PEOPLE AND FAMILIES",DIDCOT MOVE-ON HOME,CATERING PROVISIONS,13/01/2022,7924908842,13.25,SAINSBURYS S/MKTS
OXFORDSHIRE CC,"CHILDRENS, YOUNG PEOPLE AND FAMILIES",CSS - DIDCOT,MATERIALS,13/01/2022,7924908456,12.48,AMZNMKTPLACE
OXFORDSHIRE CC,ENVIRONMENT AND ECONOMY,THE RIDGEWAY,MATERIALS,13/01/2022,7924908460,36.98,AMZNMKTPLACE AMAZON.CO
OXFORDSHIRE CC,"CHILDRENS, YOUNG PEOPLE AND FAMILIES","	LEAVING CARE CITY 2",NON-STAFF SUBSISTENCE AND EXPENSES,13/01/2022,7924908464,50,TESCO GIFT CARD
OXFORDSHIRE CC,"CHILDRENS, YOUNG PEOPLE AND FAMILIES","	LOOKED AFTER CITY 2",OTHER TRANSPORT ARRANGEMENTS,13/01/2022,7924909200,28,WWW.THEKEY.CO.UK
OXFORDSHIRE CC,"CHILDRENS, YOUNG PEOPLE AND FAMILIES","	SENSS TRAINING",EDUCATIONAL AND VOCATIONAL TRAINING ,13/01/2022,7924909226,10,SENSORY INTEGRATION ED
OXFORDSHIRE CC,"CHILDRENS, YOUNG PEOPLE AND FAMILIES","	AAC EQUIPMENT",PURCHASE OF IT EQUIPMENT,13/01/2022,7924909234,25.78,AMZNMKTPLACE
OXFORDSHIRE CC,ENVIRONMENT AND ECONOMY,"	FLEET OPERATIONS",TELEPHONE - EQUIPMENT,13/01/2022,7924909246,55.98,BT.COM BUSINESS BP
OXFORDSHIRE CC,"CHILDRENS, YOUNG PEOPLE AND FAMILIES",FAMILY SOLUTIONS PLUS NON-STAFF � SOUTH,FURNITURE,13/01/2022,7924908494,69.99,EBAY COMMERCE UK LTD
OXFORDSHIRE CC,"CHILDRENS, YOUNG PEOPLE AND FAMILIES",FAMILY SOLUTIONS PLUS NON-STAFF � SOUTH,MATERIALS,13/01/2022,7924908498,23.97,AMZNMKTPLACE
OXFORDSHIRE CC,"CHILDRENS, YOUNG PEOPLE AND FAMILIES",FSP NON-STAFFING - CENTRAL,ENTERTAINMENT EXPENSES,13/01/2022,7924908520,24.65,ABINGDON SNAKES AND LA
OXFORDSHIRE CC,"CHILDRENS, YOUNG PEOPLE AND FAMILIES",FSP NON-STAFFING - CENTRAL,MATERIALS,13/01/2022,7924908526,299,CURRYS ONLINE
OXFORDSHIRE CC,"CHILDRENS, YOUNG PEOPLE AND FAMILIES",40 THE MOORS,"BOOKS, DVDS AND CDS",13/01/2022,7924908534,20.8,BLACKWELL S
OXFORDSHIRE CC,SOCIAL AND COMMUNITY SERVICES,CSS - OXFORD,CATERING PROVISIONS,13/01/2022,7924908954,41.98,B&M 515 - ABINGDON
OXFORDSHIRE CC,"CHILDRENS, YOUNG PEOPLE AND FAMILIES",CHILDREN IN CARE NON-STAFFING - NORTH,OTHER TRANSPORT ARRANGEMENTS,13/01/2022,7924908960,7,M6 TOLL
OXFORDSHIRE CC,"CHILDRENS, YOUNG PEOPLE AND FAMILIES",CHILDREN IN CARE NON-STAFFING - NORTH,VEHICLE FUEL,13/01/2022,7924908964,30.21,HKS B SWAN CLOSE ROAD
OXFORDSHIRE CC,"CHILDRENS, YOUNG PEOPLE AND FAMILIES","	LOOKED AFTER CITY 1",VEHICLE FUEL,13/01/2022,7924908978,47.4,BASILDON GARAGE
OXFORDSHIRE CC,SOCIAL AND COMMUNITY SERVICES,CSS - ABINGDON,DRUGS AND MEDICAL SUPPLIES,13/01/2022,7924908260,8.25,SAVERS HEALTH & BEAUTY
OXFORDSHIRE CC,ENVIRONMENT AND ECONOMY,HARD FM,EQUIPMENT,13/01/2022,7924908272,604.76,SYSTEMAIR LTD
OXFORDSHIRE CC,ENVIRONMENT AND ECONOMY,HARD FM,HARDWARE AND CROCKERY,13/01/2022,7924908276,58.35,B AND Q
OXFORDSHIRE CC,"CHILDRENS, YOUNG PEOPLE AND FAMILIES","	LEAVING CARE NORTH",PROFESSIONAL SUBSCRIPTIONS,13/01/2022,7924908284,15,CITIZENCARD
OXFORDSHIRE CC,"CHILDRENS, YOUNG PEOPLE AND FAMILIES","	LEAVING CARE CITY 1",CATERING PROVISIONS,13/01/2022,7924908286,30,TESCO GIFT CARD
OXFORDSHIRE CC,CORPORATE CORE,OPERATIONS,EQUIPMENT,13/01/2022,7924909032,2.08,AMZNMKTPLACE AMAZON.CO
OXFORDSHIRE CC,CORPORATE CORE,OPERATIONS,EQUIPMENT,13/01/2022,7924909036,16.99,AMAZON.CO.UK JD51L4E65
OXFORDSHIRE CC,SOCIAL AND COMMUNITY SERVICES,SCHOOLS FM CATERING AREA 4,CATERING,13/01/2022,7924908322,14.3,BOOKER LIMITED OXFORD
OXFORDSHIRE CC,"CHILDRENS, YOUNG PEOPLE AND FAMILIES",FAMILY SOLUTIONS PLUS NON-STAFF - NORTH,MATERIALS,13/01/2022,7924908622,3.99,AMZNMKTPLACE
OXFORDSHIRE CC,"CHILDRENS, YOUNG PEOPLE AND FAMILIES",FAMILY SOLUTIONS PLUS NON-STAFF - NORTH,MATERIALS,13/01/2022,7924908624,6.98,AMZNMKTPLACE
OXFORDSHIRE CC,"CHILDRENS, YOUNG PEOPLE AND FAMILIES",FAMILY SOLUTIONS PLUS NON-STAFF - NORTH,MATERIALS,13/01/2022,7924908628,2,AMZNMKTPLACE
OXFORDSHIRE CC,"CHILDRENS, YOUNG PEOPLE AND FAMILIES","	LEAVING CARE CITY 2",OTHER EXPENSES,13/01/2022,7924909388,12.8,WM MORRISONS STORE
OXFORDSHIRE CC,"CHILDRENS, YOUNG PEOPLE AND FAMILIES","	LOOKED AFTER CITY 1",VEHICLE FUEL,13/01/2022,7924909394,35.51,BP OXFORD SERVICE AREA
OXFORDSHIRE CC,CORPORATE CORE,OTHER,INSUR AD HOLD ACC-E,13/01/2022,7924909412,120,LOQATE
OXFORDSHIRE CC,"CHILDRENS, YOUNG PEOPLE AND FAMILIES",FAMILY SOLUTIONS PLUS NON-STAFF - NORTH,MATERIALS,13/01/2022,7924908632,11.94,AMZNMKTPLACE
OXFORDSHIRE CC,"CHILDRENS, YOUNG PEOPLE AND FAMILIES",FAMILY SOLUTIONS PLUS NON-STAFF - NORTH,MATERIALS,13/01/2022,7924908638,21.99,AMZNMKTPLACE
OXFORDSHIRE CC,"CHILDRENS, YOUNG PEOPLE AND FAMILIES",FAMILY SOLUTIONS PLUS NON-STAFF - NORTH,MATERIALS,13/01/2022,7924908642,8.99,AMZNMKTPLACE
OXFORDSHIRE CC,"CHILDRENS, YOUNG PEOPLE AND FAMILIES",FAMILY SOLUTIONS PLUS NON-STAFF - NORTH,MATERIALS,13/01/2022,7924908646,42.51,AMZNMKTPLACE
OXFORDSHIRE CC,"CHILDRENS, YOUNG PEOPLE AND FAMILIES",FAMILY SOLUTIONS PLUS NON-STAFF - NORTH,MATERIALS,13/01/2022,7924908648,7.99,AMZNMKTPLACE
OXFORDSHIRE CC,"CHILDRENS, YOUNG PEOPLE AND FAMILIES",FAMILY SOLUTIONS PLUS NON-STAFF - NORTH,MATERIALS,13/01/2022,7924908652,10,APPLE.COM/UK
OXFORDSHIRE CC,"CHILDRENS, YOUNG PEOPLE AND FAMILIES",HOUSE PROJECT,OTHER TRANSPORT ARRANGEMENTS,13/01/2022,7924908664,7,WESTGATE OXFORD CAR PA
OXFORDSHIRE CC,"CHILDRENS, YOUNG PEOPLE AND FAMILIES","	OCCG GRANT",CATERING PROVISIONS,13/01/2022,7924908668,65,B&M 236 - COWLEY
OXFORDSHIRE CC,"CHILDRENS, YOUNG PEOPLE AND FAMILIES","	OCCG GRANT",EDUCATIONAL AND VOCATIONAL TRAINING ,13/01/2022,7924908674,20.5,WILKO RETAIL LIMITED
OXFORDSHIRE CC,"CHILDRENS, YOUNG PEOPLE AND FAMILIES","	RIVERSIDE CENTRE",ROAD FUND LICENCES AND MOTS,13/01/2022,7924909480,277.5,DVLA VEHICLE TAX
OXFORDSHIRE CC,SOCIAL AND COMMUNITY SERVICES,CSS - OXFORD,MATERIALS,13/01/2022,7924909054,25.56,AMZNMKTPLACE AMAZON.CO
OXFORDSHIRE CC,SOCIAL AND COMMUNITY SERVICES,CSS - OXFORD,MATERIALS,13/01/2022,7924909056,27.92,AMZNMKTPLACE
OXFORDSHIRE CC,"CHILDRENS, YOUNG PEOPLE AND FAMILIES","	LOOKED AFTER CITY 2",OTHER TRANSPORT ARRANGEMENTS,13/01/2022,7924909092,3.3,OXFORD BUS COMPANY
OXFORDSHIRE CC,SOCIAL AND COMMUNITY SERVICES,CSS BICESTER,MATERIALS,13/01/2022,7924908390,4.62,AMZNMKTPLACE AMAZON.CO
OXFORDSHIRE CC,SOCIAL AND COMMUNITY SERVICES,CSS BICESTER,MATERIALS,13/01/2022,7924908394,16.65,AMZNMKTPLACE
OXFORDSHIRE CC,"CHILDRENS, YOUNG PEOPLE AND FAMILIES",FAMILY SOLUTIONS PLUS NON-STAFF - NORTH,PAYMENTS TO TRANSPORT OPERATORS,13/01/2022,7924908400,374.13,THETRAINLINE.COM
OXFORDSHIRE CC,"CHILDRENS, YOUNG PEOPLE AND FAMILIES","	LOOKED AFTER CITY 2",OTHER TRANSPORT ARRANGEMENTS,13/01/2022,7924909098,1.7,OXFORD BUS COMPANY
OXFORDSHIRE CC,"CHILDRENS, YOUNG PEOPLE AND FAMILIES",DIDCOT MOVE-ON HOME,CATERING PROVISIONS,13/01/2022,7924908846,15,SAINSBURYS S/MKTS
OXFORDSHIRE CC,SOCIAL AND COMMUNITY SERVICES,CSS - OXFORD,CATERING PROVISIONS,13/01/2022,7924908866,11.27,ALDI STORES 775-142
OXFORDSHIRE CC,SOCIAL AND COMMUNITY SERVICES,CSS - OXFORD,CATERING PROVISIONS,13/01/2022,7924908912,34.49,TESCO STORE 2994
OXFORDSHIRE CC,"CHILDRENS, YOUNG PEOPLE AND FAMILIES","	MUSIC UNALLOCABLE",CATERING PROVISIONS,13/01/2022,7924908918,38.37,TESCO STORE 2994
OXFORDSHIRE CC,CORPORATE CORE,BUSINESS INTELLECTUAL PROPERTY CENTRE,MATERIALS,13/01/2022,7924908924,15.29,AMZNMKTPLACE
OXFORDSHIRE CC,"CHILDRENS, YOUNG PEOPLE AND FAMILIES",HOUSE PROJECT,OTHER TRANSPORT ARRANGEMENTS,13/01/2022,7924908938,7,WESTGATE OXFORD CAR PA
OXFORDSHIRE CC,"CHILDRENS, YOUNG PEOPLE AND FAMILIES",PAUSE PROGRAMME,CATERING,13/01/2022,7924908944,11.35,OAKS COFFEE SHOP
OXFORDSHIRE CC,"CHILDRENS, YOUNG PEOPLE AND FAMILIES",UASC 16&17,RESIDENTIAL ACTIVITIES,13/01/2022,7924908950,39.99,PUREGYM LIMITED
OXFORDSHIRE CC,"CHILDRENS, YOUNG PEOPLE AND FAMILIES",CSS WALLINGFORD,CATERING PROVISIONS,13/01/2022,7924908238,6.65,WAITROSE 675
OXFORDSHIRE CC,"CHILDRENS, YOUNG PEOPLE AND FAMILIES",CHILDREN IN CARE NON-STAFFING - SOUTH,MATERIALS,13/01/2022,7924908246,90.62,ARGOS LTD
OXFORDSHIRE CC,SOCIAL AND COMMUNITY SERVICES,CSS - ABINGDON,CATERING PROVISIONS,13/01/2022,7924908258,5.5,WAITROSE 211
OXFORDSHIRE CC,"CHILDRENS, YOUNG PEOPLE AND FAMILIES",DIDCOT MOVE-ON HOME,CATERING PROVISIONS,12/01/2022,7921485344,39.1,SAINSBURYS SMKT
OXFORDSHIRE CC,"CHILDRENS, YOUNG PEOPLE AND FAMILIES",DIDCOT MOVE-ON HOME,POSTAGE AND DELIVERY,12/01/2022,7921485346,3.54,POST OFFICE COUNTER
OXFORDSHIRE CC,"CHILDRENS, YOUNG PEOPLE AND FAMILIES",THAME E&A HOME,PAYMENTS TO VOLUNTARY BODIES,12/01/2022,7921485070,20.34,ST JOHN AMBULANCE
OXFORDSHIRE CC,"CHILDRENS, YOUNG PEOPLE AND FAMILIES",THAME E&A HOME,MATERIALS,12/01/2022,7921485072,9.97,AMZNMKTPLACE
OXFORDSHIRE CC,SOCIAL AND COMMUNITY SERVICES,CSS WITNEY,MATERIALS,12/01/2022,7921485076,5,THEWORKS
OXFORDSHIRE CC,CORPORATE CORE,OPERATIONS,PHOTOCOPYING,12/01/2022,7921485382,87.3,AMZNMKTPLACE
OXFORDSHIRE CC,SOCIAL AND COMMUNITY SERVICES,CSS - OXFORD,CATERING PROVISIONS,12/01/2022,7921485390,155.23,TESCO STORE 2994
OXFORDSHIRE CC,SOCIAL AND COMMUNITY SERVICES,CSS - OXFORD,DISABILITY AIDS AND EQUIPMENT,12/01/2022,7921485392,21.98,AMZNMKTPLACE
OXFORDSHIRE CC,"CHILDRENS, YOUNG PEOPLE AND FAMILIES","	RESIDENTIAL STRATEGY",FURNITURE,12/01/2022,7921485394,"1,556.88",WWW.EMMA-MATRATZE.CH
OXFORDSHIRE CC,"CHILDRENS, YOUNG PEOPLE AND FAMILIES","	RESIDENTIAL STRATEGY",FURNITURE,12/01/2022,7921485396,664.56,WWW.EMMA-MATRATZE.CH
OXFORDSHIRE CC,"CHILDRENS, YOUNG PEOPLE AND FAMILIES",PAUSE PROGRAMME,CATERING,12/01/2022,7921485288,13,COSTA COFFEE 43042160
OXFORDSHIRE CC,"CHILDRENS, YOUNG PEOPLE AND FAMILIES",FSP NON-STAFFING - CENTRAL,MATERIALS,12/01/2022,7921485290,249.99,ARGOS LTD
OXFORDSHIRE CC,"CHILDRENS, YOUNG PEOPLE AND FAMILIES",FSP NON-STAFFING - CENTRAL,MATERIALS,12/01/2022,7921485292,499.98,ARGOS LTD
OXFORDSHIRE CC,"CHILDRENS, YOUNG PEOPLE AND FAMILIES","	LEAVING CARE NORTH",CATERING,12/01/2022,7921485438,1.9,COSTA TEMPLAR SQUARE O
OXFORDSHIRE CC,"CHILDRENS, YOUNG PEOPLE AND FAMILIES",CHILDREN IN CARE NON-STAFFING - CENTRL 1,PAYMENT TO GOVERNMENT DEPARTMENTS,12/01/2022,7921485136,14,GEN REGISTER OFFICE
OXFORDSHIRE CC,"CHILDRENS, YOUNG PEOPLE AND FAMILIES",CHILDREN IN CARE NON-STAFFING - CENTRL 1,PAYMENT TO GOVERNMENT DEPARTMENTS,12/01/2022,7921485138,14,GEN REGISTER OFFICE
OXFORDSHIRE CC,"CHILDRENS, YOUNG PEOPLE AND FAMILIES",CHILDREN IN CARE NON-STAFFING - CENTRL 1,PAYMENT TO GOVERNMENT DEPARTMENTS,12/01/2022,7921485140,14,GEN REGISTER OFFICE
OXFORDSHIRE CC,SOCIAL AND COMMUNITY SERVICES,CSS WITNEY,CATERING PROVISIONS,12/01/2022,7921485454,125.46,SAINSBURYS.CO.UK
OXFORDSHIRE CC,"CHILDRENS, YOUNG PEOPLE AND FAMILIES",CHILDREN IN CARE NON-STAFFING - CENTRL 1,PAYMENT TO GOVERNMENT DEPARTMENTS,12/01/2022,7921485142,14,GEN REGISTER OFFICE
OXFORDSHIRE CC,SOCIAL AND COMMUNITY SERVICES,CSS BICESTER,MATERIALS,12/01/2022,7921485158,14.75,POUNDLAND LTD 1505
OXFORDSHIRE CC,CORPORATE CORE,BUSINESS INTELLECTUAL PROPERTY CENTRE,MATERIALS,12/01/2022,7921485308,14.94,AMZNMKTPLACE
OXFORDSHIRE CC,CORPORATE CORE,BUSINESS INTELLECTUAL PROPERTY CENTRE,PAYMENTS TO TRANSPORT OPERATORS,12/01/2022,7921485310,38.9,TRIP.COM
OXFORDSHIRE CC,SOCIAL AND COMMUNITY SERVICES,SCHOOLS FM CATERING AREA 1,CATERING PROVISIONS,12/01/2022,7921485312,13.2,SAINSBURYS S/MKTS
OXFORDSHIRE CC,"CHILDRENS, YOUNG PEOPLE AND FAMILIES",KINGFISHER,CATERING,12/01/2022,7921485318,3.38,BURGER KINGBURGER KING
OXFORDSHIRE CC,"CHILDRENS, YOUNG PEOPLE AND FAMILIES",KINGFISHER,CATERING,12/01/2022,7921485320,1.05,GREGGS
OXFORDSHIRE CC,"CHILDRENS, YOUNG PEOPLE AND FAMILIES",KINGFISHER,MATERIALS,12/01/2022,7921485322,22.93,HOME BARGAINS
OXFORDSHIRE CC,ENVIRONMENT AND ECONOMY,MAJOR INFRASTRUCTURE DELIVERY,POSTAGE AND DELIVERY,12/01/2022,7921485328,27.65,ROYAL MAIL GROUP LTD
OXFORDSHIRE CC,ENVIRONMENT AND ECONOMY,"	KNIGHTS COURT",OTHER EXPENSES,12/01/2022,7921485332,37.98,AMZNMKTPLACE
OXFORDSHIRE CC,"CHILDRENS, YOUNG PEOPLE AND FAMILIES",FAMILY SOLUTIONS PLUS NON-STAFF � SOUTH,PAYMENT TO GOVERNMENT DEPARTMENTS,12/01/2022,7921485336,33,GEN REGISTER OFFICE
OXFORDSHIRE CC,"CHILDRENS, YOUNG PEOPLE AND FAMILIES",PAUSE PROGRAMME,CATERING PROVISIONS,12/01/2022,7921485338,7.38,TESCO STORE 2413
OXFORDSHIRE CC,"CHILDRENS, YOUNG PEOPLE AND FAMILIES",PAUSE PROGRAMME,MATERIALS,12/01/2022,7921485340,8.99,SUPERDRUG STORES PLC
OXFORDSHIRE CC,"CHILDRENS, YOUNG PEOPLE AND FAMILIES",CNTL ERLY HELP-BBLEY,MATERIALS,12/01/2022,7921485500,32.99,AMZNMKTPLACE
OXFORDSHIRE CC,"CHILDRENS, YOUNG PEOPLE AND FAMILIES",THAME E&A HOME,MATERIALS,12/01/2022,7921485190,6.99,TESCO SUBSCRIPTION
OXFORDSHIRE CC,ENVIRONMENT AND ECONOMY,WASTE REDUCTION GEN,"PUBLICITY, PROMOTIONS AND ADVERTISEMENT",12/01/2022,7921485192,37.95,FACEBK VSVJH87C32
OXFORDSHIRE CC,SOCIAL AND COMMUNITY SERVICES,CSS - OXFORD,MATERIALS,12/01/2022,7921485194,54.77,ALDI STORES 775-142
OXFORDSHIRE CC,"CHILDRENS, YOUNG PEOPLE AND FAMILIES","	RIVERSIDE CENTRE",CATERING PROVISIONS,12/01/2022,7921485198,0.95,TESCO STORES 4377
OXFORDSHIRE CC,"CHILDRENS, YOUNG PEOPLE AND FAMILIES",CNTL ERLY HELP-BBLEY,MATERIALS,12/01/2022,7921485502,16.75,AMZNMKTPLACE
OXFORDSHIRE CC,"CHILDRENS, YOUNG PEOPLE AND FAMILIES",CNTL ERLY HELP-BBLEY,MATERIALS,12/01/2022,7921485504,15.98,AMZNMKTPLACE
OXFORDSHIRE CC,"CHILDRENS, YOUNG PEOPLE AND FAMILIES",EYNSHAM,CATERING PROVISIONS,12/01/2022,7921485508,196.68,TESCO STORES 2008
OXFORDSHIRE CC,SOCIAL AND COMMUNITY SERVICES,CSS - ABINGDON,CATERING PROVISIONS,12/01/2022,7921485092,18.07,WAITROSE 211
OXFORDSHIRE CC,ENVIRONMENT AND ECONOMY,"	ROW MAINT",MATERIALS,12/01/2022,7921485094,64.98,SCREWFIX DIRECT
OXFORDSHIRE CC,"CHILDRENS, YOUNG PEOPLE AND FAMILIES",KINGFISHER,PAYMENTS TO TRANSPORT OPERATORS,12/01/2022,7921485096,159.3,EXPEDIA
OXFORDSHIRE CC,"CHILDRENS, YOUNG PEOPLE AND FAMILIES",UASC 16&17,OTHER TRANSPORT ARRANGEMENTS,12/01/2022,7921485098,3.6,BANBURY STATION T/O
OXFORDSHIRE CC,"CHILDRENS, YOUNG PEOPLE AND FAMILIES","	LOOKED AFTER CITY 2",OTHER TRANSPORT ARRANGEMENTS,12/01/2022,7921485406,3.3,OXFORD BUS COMPANY
OXFORDSHIRE CC,"CHILDRENS, YOUNG PEOPLE AND FAMILIES","	LOOKED AFTER CITY 2",OTHER TRANSPORT ARRANGEMENTS,12/01/2022,7921485408,3.3,OXFORD BUS COMPANY
OXFORDSHIRE CC,"CHILDRENS, YOUNG PEOPLE AND FAMILIES",EET SERVICE,PAYMENTS TO TRANSPORT OPERATORS,12/01/2022,7921485416,15.79,TRAINLINE.COM
OXFORDSHIRE CC,SOCIAL AND COMMUNITY SERVICES,CSS - ABINGDON,CATERING PROVISIONS,12/01/2022,7921485102,7.5,WAITROSE 211
OXFORDSHIRE CC,ENVIRONMENT AND ECONOMY,HARD FM,HARDWARE AND CROCKERY,12/01/2022,7921485104,139.99,SCREWFIX DIRECT
OXFORDSHIRE CC,"CHILDRENS, YOUNG PEOPLE AND FAMILIES","	DISABILITIES TEAM-C",MATERIALS,12/01/2022,7921485110,12.99,AMZNMKTPLACE
OXFORDSHIRE CC,"CHILDRENS, YOUNG PEOPLE AND FAMILIES",40 THE MOORS,CATERING,12/01/2022,7921485112,47.47,DOMINO S PIZZA
OXFORDSHIRE CC,"CHILDRENS, YOUNG PEOPLE AND FAMILIES",THAME E&A HOME,CATERING PROVISIONS,12/01/2022,7921485114,0.91,SAINSBURYS S/MKTS
OXFORDSHIRE CC,"CHILDRENS, YOUNG PEOPLE AND FAMILIES","	LOOKED AFTER NORTH",OTHER EXPENSES,12/01/2022,7921485534,3.2,STARBUCKS COFFEE
OXFORDSHIRE CC,SOCIAL AND COMMUNITY SERVICES,FLEET OPERATIONS,EDUCATIONAL AND VOCATIONAL TRAINING ,12/01/2022,7921485538,240,PROTRAININGS
OXFORDSHIRE CC,"CHILDRENS, YOUNG PEOPLE AND FAMILIES",40 THE MOORS,CATERING PROVISIONS,12/01/2022,7921485222,17.94,SAINSBURYS S/MKTS
OXFORDSHIRE CC,"CHILDRENS, YOUNG PEOPLE AND FAMILIES",FSP NON-STAFFING - CENTRAL,PAYMENTS TO TRANSPORT OPERATORS,12/01/2022,7921485224,10.4,WWW.GWR.COM
OXFORDSHIRE CC,"CHILDRENS, YOUNG PEOPLE AND FAMILIES",40 THE MOORS,CATERING,12/01/2022,7921485230,14.99,DOMINOS PIZZA
OXFORDSHIRE CC,"CHILDRENS, YOUNG PEOPLE AND FAMILIES",40 THE MOORS,CLOTHING AND UNIFORMS,12/01/2022,7921485232,124.97,SP   MERCIERUK
OXFORDSHIRE CC,"CHILDRENS, YOUNG PEOPLE AND FAMILIES","	LEAVING CARE NORTH",TELEPHONE - EQUIPMENT,12/01/2022,7921485546,10,GIFFGAFF
OXFORDSHIRE CC,CORPORATE CORE,CATERING MANAGEMENT SOFT FM,CATERING,12/01/2022,7921485548,129.05,BRAKES (STORED CARDS)
OXFORDSHIRE CC,CORPORATE CORE,CATERING MANAGEMENT SOFT FM,CATERING,12/01/2022,7921485550,54.63,BRAKES (STORED CARDS)
OXFORDSHIRE CC,SHARED SERVICES,CSC - PERMITS,PURCHASE OF IT EQUIPMENT,12/01/2022,7921485242,286.64,AMZNMKTPLACE
OXFORDSHIRE CC,SHARED SERVICES,CSC - PERMITS,PURCHASE OF IT EQUIPMENT,12/01/2022,7921485244,407.4,HP INC HP.COM STORE UK
OXFORDSHIRE CC,"CHILDRENS, YOUNG PEOPLE AND FAMILIES",CHILDREN IN CARE NON-STAFFING - NORTH,REGISTRATION AND INSPECTION FEES,12/01/2022,7921485278,85,HM PASSPORT OFFICE
OXFORDSHIRE CC,"CHILDRENS, YOUNG PEOPLE AND FAMILIES",VULNERABLE LEARNERS,CLOTHING AND UNIFORMS,12/01/2022,7921485280,88.79,ETSY.COM - ECOFRIENDLY
OXFORDSHIRE CC,SOCIAL AND COMMUNITY SERVICES,CSS BICESTER,CATERING PROVISIONS,12/01/2022,7921485160,9.7,SAINSBURYS S/MKTS
OXFORDSHIRE CC,"CHILDRENS, YOUNG PEOPLE AND FAMILIES",40 THE MOORS,CATERING,12/01/2022,7921485466,9.5,ZTL WORCESTER KEBAB HO
OXFORDSHIRE CC,CORPORATE CORE,"MARKETING, COMMUNICATIONS & ENGAGEMENT","PUBLICITY, PROMOTIONS AND ADVERTISEMENT",12/01/2022,7921485480,500,GOOGLE ADS4896546035
OXFORDSHIRE CC,SOCIAL AND COMMUNITY SERVICES,CSS BICESTER,CATERING PROVISIONS,12/01/2022,7921485162,85.06,SAINSBURYS.CO.UK
OXFORDSHIRE CC,SOCIAL AND COMMUNITY SERVICES,CSS BICESTER,MATERIALS,12/01/2022,7921485164,8.01,AMZNMKTPLACE AMAZON.CO
OXFORDSHIRE CC,SOCIAL AND COMMUNITY SERVICES,CSS BICESTER,MATERIALS,12/01/2022,7921485166,12.77,AMZNMKTPLACE
OXFORDSHIRE CC,SOCIAL AND COMMUNITY SERVICES,SCHOOLS FM CATERING AREA 2,CATERING,12/01/2022,7921485168,21.97,BOOKER LIMITED OXFORD
OXFORDSHIRE CC,SOCIAL AND COMMUNITY SERVICES,CSS - BANBURY,CATERING PROVISIONS,12/01/2022,7921485176,48.08,SAINSBURYS.CO.UK
OXFORDSHIRE CC,"CHILDRENS, YOUNG PEOPLE AND FAMILIES",THAME E&A HOME,MATERIALS,11/01/2022,7918206774,11.98,AMZNMKTPLACE
OXFORDSHIRE CC,ENVIRONMENT AND ECONOMY,HOLDING CODE FOR REA,MATERIALS,11/01/2022,7918206794,7.99,AMAZON PRIME QK4C73S95
OXFORDSHIRE CC,"CHILDRENS, YOUNG PEOPLE AND FAMILIES",40 THE MOORS,CATERING,11/01/2022,7918207388,17.6,FIVE GUYS WORCESTER
OXFORDSHIRE CC,"CHILDRENS, YOUNG PEOPLE AND FAMILIES",CSS WANTAGE,CATERING PROVISIONS,11/01/2022,7918206798,3,TESCO STORES 2008
OXFORDSHIRE CC,"CHILDRENS, YOUNG PEOPLE AND FAMILIES",KINGFISHER,MATERIALS,11/01/2022,7918206802,93.99,AMAZON.CO.UK IC4DX6OB5
OXFORDSHIRE CC,ENVIRONMENT AND ECONOMY,HARD FM,HARDWARE AND CROCKERY,11/01/2022,7918206818,189.42,DULUX DECORATOR CENTRE
OXFORDSHIRE CC,ENVIRONMENT AND ECONOMY,HARD FM,HARDWARE AND CROCKERY,11/01/2022,7918206822,78,CITY PLUMBING
OXFORDSHIRE CC,"CHILDRENS, YOUNG PEOPLE AND FAMILIES",40 THE MOORS,CATERING,11/01/2022,7918206830,23.5,EASTERN KITCHEN
OXFORDSHIRE CC,"CHILDRENS, YOUNG PEOPLE AND FAMILIES",40 THE MOORS,CATERING PROVISIONS,11/01/2022,7918206834,13,TESCO STORE 2788
OXFORDSHIRE CC,"CHILDRENS, YOUNG PEOPLE AND FAMILIES",UASC POST 18,HOSPITALITY EXPENSES,11/01/2022,7918207414,2.8,SIP CARS PARKS (1) LI
OXFORDSHIRE CC,SOCIAL AND COMMUNITY SERVICES,ADULTS AT RISK,HIRE OF ACCOMMODATION AND FACILITIES,11/01/2022,7918207436,455,ASHLEA GUEST HOUSE
OXFORDSHIRE CC,SOCIAL AND COMMUNITY SERVICES,PA TEAM,POSTAGE AND DELIVERY,11/01/2022,7918207440,23.3,ROYAL MAIL GROUP LTD
OXFORDSHIRE CC,"CHILDRENS, YOUNG PEOPLE AND FAMILIES",BULLINGDON PRISON,"SUPPLIES, STATIONERY AND MATERIALS",11/01/2022,7918207442,9.8,BICESTER SHOE REPAIRS
OXFORDSHIRE CC,"CHILDRENS, YOUNG PEOPLE AND FAMILIES",BULLINGDON PRISON,"NEWSPAPERS, PERIODICALS AND PUBLICATIONS",11/01/2022,7918207446,55.13,BICESTER POST OFFICE
OXFORDSHIRE CC,SOCIAL AND COMMUNITY SERVICES,"	PUBLIC HEALTH GENERA",ADMIN FURNITURE,11/01/2022,7918207450,"1,161.60",WWW.COMPUTINGPLUS.CO.U
OXFORDSHIRE CC,SOCIAL AND COMMUNITY SERVICES,SOUTH OXFORDSHIRE TEAM,HIRE OF ACCOMMODATION AND FACILITIES,11/01/2022,7918207456,56.24,HOLIDAY INN BIRMINGHAM
OXFORDSHIRE CC,"CHILDRENS, YOUNG PEOPLE AND FAMILIES","	LEAVING CARE CITY 2",BIRTHDAY ALLOWANCE,11/01/2022,7918207472,50.53,AMZNMKTPLACE AMAZON.CO
OXFORDSHIRE CC,"CHILDRENS, YOUNG PEOPLE AND FAMILIES",EYNSHAM,CATERING PROVISIONS,11/01/2022,7918207484,6.5,MAYFIELDEGGS
OXFORDSHIRE CC,SOCIAL AND COMMUNITY SERVICES,CSS BICESTER,CATERING PROVISIONS,11/01/2022,7918206878,10.2,WILKO RETAIL LIMITED
OXFORDSHIRE CC,"CHILDRENS, YOUNG PEOPLE AND FAMILIES",THAME E&A HOME,MATERIALS,11/01/2022,7918206908,24.34,AMZNMKTPLACE AMAZON.CO
OXFORDSHIRE CC,SOCIAL AND COMMUNITY SERVICES,CSS WITNEY,MATERIALS,11/01/2022,7918207314,11.39,AMZNMKTPLACE
OXFORDSHIRE CC,SOCIAL AND COMMUNITY SERVICES,CSS WANTAGE,MATERIALS,11/01/2022,7918207318,23.38,AMZNMKTPLACE
OXFORDSHIRE CC,SOCIAL AND COMMUNITY SERVICES,CSS WANTAGE,ENTERTAINMENT EXPENSES,11/01/2022,7918207320,15.15,WWW.BETTER.ORG.UK
OXFORDSHIRE CC,SOCIAL AND COMMUNITY SERVICES,CSS WANTAGE,ENTERTAINMENT EXPENSES,11/01/2022,7918207322,5.05,WWW.BETTER.ORG.UK
OXFORDSHIRE CC,"CHILDRENS, YOUNG PEOPLE AND FAMILIES",40 THE MOORS,CATERING PROVISIONS,11/01/2022,7918206942,38.41,TESCO STORE 2788
OXFORDSHIRE CC,CORPORATE CORE,,STATIONERY,11/01/2022,7918207536,8.5,LYRECO UK LTD
OXFORDSHIRE CC,CORPORATE CORE,,STATIONERY,11/01/2022,7918207540,158.33,LYRECO UK LTD
OXFORDSHIRE CC,"CHILDRENS, YOUNG PEOPLE AND FAMILIES",FSP NON-STAFFING - CENTRAL,HIRE OF ACCOMMODATION AND FACILITIES,11/01/2022,7918206946,476.84,AIRBNB   HMDTDYWP3W
OXFORDSHIRE CC,"CHILDRENS, YOUNG PEOPLE AND FAMILIES",FSP NON-STAFFING - CENTRAL,OTHER TRANSPORT ARRANGEMENTS,11/01/2022,7918206950,67.5,OXFORD BUS TICKETS
OXFORDSHIRE CC,"CHILDRENS, YOUNG PEOPLE AND FAMILIES",40 THE MOORS,CATERING PROVISIONS,11/01/2022,7918206968,233.33,TESCO STORES 4480
OXFORDSHIRE CC,"CHILDRENS, YOUNG PEOPLE AND FAMILIES",40 THE MOORS,MATERIALS,11/01/2022,7918206974,48.14,AMZNMKTPLACE AMAZON.CO
OXFORDSHIRE CC,SOCIAL AND COMMUNITY SERVICES,CHILDREN IN CARE NON-STAFFING - NORTH,PAYMENTS TO TRANSPORT OPERATORS,11/01/2022,7918207016,184.6,BANBURY STATION T/O
OXFORDSHIRE CC,"CHILDRENS, YOUNG PEOPLE AND FAMILIES",FSP STAFFING � NORTH,POSTAGE AND DELIVERY,11/01/2022,7918207040,92.04,ROYAL MAIL SAMEDAY
OXFORDSHIRE CC,"CHILDRENS, YOUNG PEOPLE AND FAMILIES",UASC 16&17,PAYMENTS TO TRANSPORT OPERATORS,11/01/2022,7918207046,7.1,GWR OXFORD TO
OXFORDSHIRE CC,"CHILDRENS, YOUNG PEOPLE AND FAMILIES",FAMILY SOLUTIONS PLUS NON-STAFF - NORTH,PAYMENTS TO TRANSPORT OPERATORS,11/01/2022,7918207058,17.9,WWW.GWR.COM
OXFORDSHIRE CC,"CHILDRENS, YOUNG PEOPLE AND FAMILIES","	OCCG GRANT",CATERING,11/01/2022,7918207068,52.9,TESCO STORE 2994
OXFORDSHIRE CC,"CHILDRENS, YOUNG PEOPLE AND FAMILIES",KINGFISHER,CATERING,11/01/2022,7918207122,6,COSTA COFFEE ABINGDON
OXFORDSHIRE CC,"CHILDRENS, YOUNG PEOPLE AND FAMILIES",PAUSE PROGRAMME,CATERING,11/01/2022,7918207132,5.5,AMT COFFEE OXFORD BR
OXFORDSHIRE CC,"CHILDRENS, YOUNG PEOPLE AND FAMILIES",PAUSE PROGRAMME,PAYMENTS TO TRANSPORT OPERATORS,11/01/2022,7918207134,7.1,GWR OXFORD TO
OXFORDSHIRE CC,"CHILDRENS, YOUNG PEOPLE AND FAMILIES",FAMILY SOLUTIONS PLUS NON-STAFF - NORTH,PAYMENT TO GOVERNMENT DEPARTMENTS,11/01/2022,7918207140,24.99,CHERWELL DC
OXFORDSHIRE CC,"CHILDRENS, YOUNG PEOPLE AND FAMILIES",FAMILY SOLUTIONS PLUS NON-STAFF - NORTH,PAYMENT TO GOVERNMENT DEPARTMENTS,11/01/2022,7918207142,24.99,CHERWELL DC
OXFORDSHIRE CC,SOCIAL AND COMMUNITY SERVICES,CSS - OXFORD,DISABILITY AIDS AND EQUIPMENT,11/01/2022,7918207214,49.98,AMZNMKTPLACE
OXFORDSHIRE CC,"CHILDRENS, YOUNG PEOPLE AND FAMILIES",FSP NON-STAFFING - CENTRAL,CATERING PROVISIONS,11/01/2022,7918207268,10.7,TESCO STORES 4377
OXFORDSHIRE CC,"CHILDRENS, YOUNG PEOPLE AND FAMILIES",FSP NON-STAFFING - CENTRAL,CATERING PROVISIONS,11/01/2022,7918207270,13.25,TESCO STORES 4377
OXFORDSHIRE CC,CORPORATE CORE,HISTORY SERVICE,EQUIPMENT,11/01/2022,7918207282,14.99,AMZNMKTPLACE
OXFORDSHIRE CC,CORPORATE CORE,"	CORPORATE FINANCE",OTHER TRAINING COURSES AND QUALIFICATION,11/01/2022,7918207294,708,WWW.CIPFA.ORG.UK/PFMCO
OXFORDSHIRE CC,"CHILDRENS, YOUNG PEOPLE AND FAMILIES",THAME E&A HOME,CATERING PROVISIONS,11/01/2022,7918206910,183.32,TESCO STORES 2038
OXFORDSHIRE CC,CORPORATE CORE,HISTORY SERVICE,EQUIPMENT,10/01/2022,7913586966,8.3,AMZNMKTPLACE
OXFORDSHIRE CC,CORPORATE CORE,HISTORY SERVICE,EQUIPMENT,10/01/2022,7913586968,19.98,AMZNMKTPLACE
OXFORDSHIRE CC,CORPORATE CORE,HISTORY SERVICE,EQUIPMENT,10/01/2022,7913586970,15.76,AMZNMKTPLACE
OXFORDSHIRE CC,"CHILDRENS, YOUNG PEOPLE AND FAMILIES","	LOOKED AFTER CITY 2",PAYMENTS TO TRANSPORT OPERATORS,10/01/2022,7913586982,32.2,TRAINLINE
OXFORDSHIRE CC,"CHILDRENS, YOUNG PEOPLE AND FAMILIES","	OCCG GRANT",CATERING PROVISIONS,10/01/2022,7913586990,105,TESCO STORE 2994
OXFORDSHIRE CC,"CHILDRENS, YOUNG PEOPLE AND FAMILIES",CHILDREN IN CARE NON-STAFFING - CENTRL 1,POSTAGE AND DELIVERY,10/01/2022,7913587308,8.4,POST OFFICE COUNTER
OXFORDSHIRE CC,"CHILDRENS, YOUNG PEOPLE AND FAMILIES",EYNSHAM,CATERING PROVISIONS,10/01/2022,7913587314,144.23,TESCO STORES 2008
OXFORDSHIRE CC,"CHILDRENS, YOUNG PEOPLE AND FAMILIES","	OCCG GRANT",CATERING PROVISIONS,10/01/2022,7913586992,69.99,TESCO STORE 2994
OXFORDSHIRE CC,"CHILDRENS, YOUNG PEOPLE AND FAMILIES",UASC 16&17,DRUGS AND MEDICAL SUPPLIES,10/01/2022,7913587340,9.01,"BOOTS,OXFORD"
OXFORDSHIRE CC,"CHILDRENS, YOUNG PEOPLE AND FAMILIES",EDT,CATERING,10/01/2022,7913587354,19.99,DOMINO S PIZZA
OXFORDSHIRE CC,"CHILDRENS, YOUNG PEOPLE AND FAMILIES",40 THE MOORS,CATERING PROVISIONS,10/01/2022,7913586152,10.6,CO-OPERATIVE FOOD
OXFORDSHIRE CC,"CHILDRENS, YOUNG PEOPLE AND FAMILIES",KEEP ON CARING,OTHER TRANSPORT ARRANGEMENTS,10/01/2022,7913586156,12.5,TFL BUSINESS BOPS WEB
OXFORDSHIRE CC,"CHILDRENS, YOUNG PEOPLE AND FAMILIES","	LEAVING CARE CITY 1",CATERING,10/01/2022,7913586158,10.35,COSTA COFFEE
OXFORDSHIRE CC,"CHILDRENS, YOUNG PEOPLE AND FAMILIES",FAMILY SOLUTIONS PLUS NON-STAFF - NORTH,MATERIALS,10/01/2022,7913586162,415,ARGOS LTD
OXFORDSHIRE CC,"CHILDRENS, YOUNG PEOPLE AND FAMILIES",CNTL EARLY HELP-RHIL,PAYMENTS TO VOLUNTARY BODIES,10/01/2022,7913586186,165,PAYPAL  WOMENSLIBER WO
OXFORDSHIRE CC,"CHILDRENS, YOUNG PEOPLE AND FAMILIES",ROSE HILL CC,MANAGEMENT CONSULTANT FEES,10/01/2022,7913586190,159,TVLICENSING.CO.UK
OXFORDSHIRE CC,"CHILDRENS, YOUNG PEOPLE AND FAMILIES","	LEAVING CARE SOUTH",CLOTHING AND UNIFORMS,10/01/2022,7913586194,33.95,ARGOS LTD
OXFORDSHIRE CC,"CHILDRENS, YOUNG PEOPLE AND FAMILIES",40 THE MOORS,CATERING PROVISIONS,10/01/2022,7913586438,21.2,SAINSBURYS S/MKTS
OXFORDSHIRE CC,"CHILDRENS, YOUNG PEOPLE AND FAMILIES",FSP NON-STAFFING - CENTRAL,MATERIALS,10/01/2022,7913586442,266.95,ARGOS LTD
OXFORDSHIRE CC,"CHILDRENS, YOUNG PEOPLE AND FAMILIES",LEGAL BUDGET,PAYMENTS TO TRANSPORT OPERATORS,10/01/2022,7913586444,44,LATAM.COM GBP
OXFORDSHIRE CC,"CHILDRENS, YOUNG PEOPLE AND FAMILIES",40 THE MOORS,CATERING PROVISIONS,10/01/2022,7913586458,22.09,TESCO STORE 2788
OXFORDSHIRE CC,"CHILDRENS, YOUNG PEOPLE AND FAMILIES",40 THE MOORS,CATERING PROVISIONS,10/01/2022,7913586462,84.99,TESCO STORE 2788
OXFORDSHIRE CC,"CHILDRENS, YOUNG PEOPLE AND FAMILIES",40 THE MOORS,CLOTHING AND UNIFORMS,10/01/2022,7913586464,-59,THE STEVENSON GROUP LT
OXFORDSHIRE CC,"CHILDRENS, YOUNG PEOPLE AND FAMILIES",UASC 16&17,CLOTHING AND UNIFORMS,10/01/2022,7913586716,35.96,ADIDASWWW.ADIDAS.CO.UK
OXFORDSHIRE CC,"CHILDRENS, YOUNG PEOPLE AND FAMILIES",UASC 16&17,CLOTHING AND UNIFORMS,10/01/2022,7913586718,21.6,SPORTSDIRECT 218
OXFORDSHIRE CC,ENVIRONMENT AND ECONOMY,HARD FM,HARDWARE AND CROCKERY,10/01/2022,7913586128,35,WICKES OXFORD
OXFORDSHIRE CC,"CHILDRENS, YOUNG PEOPLE AND FAMILIES","	LEAVING CARE NORTH",FURNITURE,10/01/2022,7913586134,95.6,DUNELM
OXFORDSHIRE CC,ENVIRONMENT AND ECONOMY,"	COUNTY PRINT FINSHRS",CATERING PROVISIONS,10/01/2022,7913586136,9.72,MILK AND MORE (RECUR
OXFORDSHIRE CC,ENVIRONMENT AND ECONOMY,"	COUNTY PRINT FINSHRS",OTHER TRANSPORT ARRANGEMENTS,10/01/2022,7913586142,"3,662.00",S JONES CONTAINERS LIM
OXFORDSHIRE CC,ENVIRONMENT AND ECONOMY,"	COUNTY PRINT FINSHRS",OTHER TRANSPORT ARRANGEMENTS,10/01/2022,7913586144,1,S JONES CONTAINERS LIM
OXFORDSHIRE CC,"CHILDRENS, YOUNG PEOPLE AND FAMILIES",FAMILY SOLUTIONS PLUS NON-STAFF � SOUTH,FURNITURE,10/01/2022,7913586396,110.5,ARGOS LTD
OXFORDSHIRE CC,"CHILDRENS, YOUNG PEOPLE AND FAMILIES",FAMILY SOLUTIONS PLUS NON-STAFF � SOUTH,FURNITURE,10/01/2022,7913586400,80.45,ARGOS LTD
OXFORDSHIRE CC,CORPORATE CORE,PUBLIC HEALTH GENERA,PAYMENT TO GOVERNMENT DEPARTMENTS,10/01/2022,7913586404,199,C2E804300079H UKVI
OXFORDSHIRE CC,"CHILDRENS, YOUNG PEOPLE AND FAMILIES",FAMILY SOLUTIONS PLUS NON-STAFF � SOUTH,HIRE OF ACCOMMODATION AND FACILITIES,10/01/2022,7913586656,500,CROWNE PLAZA MARLOW
OXFORDSHIRE CC,"CHILDRENS, YOUNG PEOPLE AND FAMILIES",FAMILY SOLUTIONS PLUS NON-STAFF � SOUTH,HIRE OF ACCOMMODATION AND FACILITIES,10/01/2022,7913586658,500,CROWNE PLAZA MARLOW
OXFORDSHIRE CC,"CHILDRENS, YOUNG PEOPLE AND FAMILIES",FAMILY SOLUTIONS PLUS NON-STAFF � SOUTH,HIRE OF ACCOMMODATION AND FACILITIES,10/01/2022,7913586660,500,CROWNE PLAZA MARLOW
OXFORDSHIRE CC,"CHILDRENS, YOUNG PEOPLE AND FAMILIES",WITNEY,CATERING,10/01/2022,7913586668,20,BAKERS BUTCHERS LT
OXFORDSHIRE CC,SOCIAL AND COMMUNITY SERVICES,"	MUSEUMS COLLECTIONS",CATERING PROVISIONS,10/01/2022,7913586950,3.24,MILK AND MORE (RECUR
OXFORDSHIRE CC,"CHILDRENS, YOUNG PEOPLE AND FAMILIES",CNTL ERLY HELP-BBLEY,PAYMENTS TO TRANSPORT OPERATORS,10/01/2022,7913587288,25.15,WWW.GWR.COM
OXFORDSHIRE CC,"CHILDRENS, YOUNG PEOPLE AND FAMILIES",CNTL ERLY HELP-BBLEY,PAYMENTS TO TRANSPORT OPERATORS,10/01/2022,7913587290,31.9,WWW.GWR.COM
OXFORDSHIRE CC,"CHILDRENS, YOUNG PEOPLE AND FAMILIES","	LEAVING CARE SOUTH",MATERIALS,10/01/2022,7913587294,395,AO RETAIL LIMITED
OXFORDSHIRE CC,CORPORATE CORE,ICT OPERATIONS & MAI,MATERIALS,10/01/2022,7913587296,79.99,AMZNMKTPLACE
OXFORDSHIRE CC,CORPORATE CORE,INCOME TEAM,PAYMENT TO GOVERNMENT DEPARTMENTS,10/01/2022,7913586430,-11,OXFORDSHIRE CC MOTO1
OXFORDSHIRE CC,"CHILDRENS, YOUNG PEOPLE AND FAMILIES","	OCCG GRANT",CATERING PROVISIONS,10/01/2022,7913586684,13.3,TESCO STORE 2994
OXFORDSHIRE CC,"CHILDRENS, YOUNG PEOPLE AND FAMILIES",NRPF & HOMELESSNESS,HIRE OF ACCOMMODATION AND FACILITIES,10/01/2022,7913586696,538,PREMIER INN
OXFORDSHIRE CC,"CHILDRENS, YOUNG PEOPLE AND FAMILIES",NRPF & HOMELESSNESS,HIRE OF ACCOMMODATION AND FACILITIES,10/01/2022,7913586700,414,PREMIER INN
OXFORDSHIRE CC,"CHILDRENS, YOUNG PEOPLE AND FAMILIES",NRPF & HOMELESSNESS,HIRE OF ACCOMMODATION AND FACILITIES,10/01/2022,7913586702,125,PREMIER INN
OXFORDSHIRE CC,"CHILDRENS, YOUNG PEOPLE AND FAMILIES",UASC 16&17,NON-STAFF SUBSISTENCE AND EXPENSES,10/01/2022,7913586704,2.29,CO-OPERATIVE FOOD
OXFORDSHIRE CC,"CHILDRENS, YOUNG PEOPLE AND FAMILIES",UASC 16&17,CLOTHING AND UNIFORMS,10/01/2022,7913586708,36.7,ASDA STORE 4442
OXFORDSHIRE CC,"CHILDRENS, YOUNG PEOPLE AND FAMILIES",UASC 16&17,CLOTHING AND UNIFORMS,10/01/2022,7913586712,22.68,ASDA STORE 4442
OXFORDSHIRE CC,"CHILDRENS, YOUNG PEOPLE AND FAMILIES",UASC 16&17,NON-STAFF SUBSISTENCE AND EXPENSES,10/01/2022,7913586714,10,TESCO STORES 6880
OXFORDSHIRE CC,CORPORATE CORE,"	ORGANISATIONAL DEV'T",OTHER TRANSPORT ARRANGEMENTS,10/01/2022,7913586954,17.7,PARCELFORCE WL
OXFORDSHIRE CC,CORPORATE CORE,TRANSPORT GENERAL,CLOTHING AND UNIFORMS,10/01/2022,7913586904,44.9,AMZNMKTPLACE
OXFORDSHIRE CC,CORPORATE CORE,OPERATIONS,MATERIALS,10/01/2022,7913586906,27.45,AMZNMKTPLACE
OXFORDSHIRE CC,CORPORATE CORE,"MARKETING, COMMUNICATIONS & ENGAGEMENT",IT SOFTWARE,10/01/2022,7913587194,7.61,RSS.APP
OXFORDSHIRE CC,CORPORATE CORE,"MARKETING, COMMUNICATIONS & ENGAGEMENT","PUBLICITY, PROMOTIONS AND ADVERTISEMENT",10/01/2022,7913587196,2.46,SNAP INC SNAP SNAP ADS
OXFORDSHIRE CC,"CHILDRENS, YOUNG PEOPLE AND FAMILIES",DIDCOT MOVE-ON HOME,DOMESTIC AND CLEANING EQUIPMENT,10/01/2022,7913587234,3.99,SAINSBURYS S/MKTS
OXFORDSHIRE CC,"CHILDRENS, YOUNG PEOPLE AND FAMILIES",DIDCOT MOVE-ON HOME,CATERING PROVISIONS,10/01/2022,7913587240,4.15,SAINSBURYS S/MKTS
OXFORDSHIRE CC,"CHILDRENS, YOUNG PEOPLE AND FAMILIES",DIDCOT MOVE-ON HOME,MATERIALS,10/01/2022,7913587244,54,ARGOS LTD
OXFORDSHIRE CC,"CHILDRENS, YOUNG PEOPLE AND FAMILIES",DIDCOT MOVE-ON HOME,CATERING PROVISIONS,10/01/2022,7913587248,6.7,SAINSBURYS S/MKTS
OXFORDSHIRE CC,"CHILDRENS, YOUNG PEOPLE AND FAMILIES",DIDCOT MOVE-ON HOME,CATERING PROVISIONS,10/01/2022,7913587254,17.95,SAINSBURYS S/MKTS
OXFORDSHIRE CC,SOCIAL AND COMMUNITY SERVICES,CSS WITNEY,MATERIALS,10/01/2022,7913586036,26.99,AMZNMKTPLACE
OXFORDSHIRE CC,"CHILDRENS, YOUNG PEOPLE AND FAMILIES","	MALTFIELD HOUSE",CATERING PROVISIONS,10/01/2022,7913586066,5.4,CO-OPERATIVE FOOD
OXFORDSHIRE CC,"CHILDRENS, YOUNG PEOPLE AND FAMILIES",THAME E&A HOME,MATERIALS,10/01/2022,7913586352,12.97,AMZNMKTPLACE AMAZON.CO
OXFORDSHIRE CC,"CHILDRENS, YOUNG PEOPLE AND FAMILIES",WITNEY,MATERIALS,10/01/2022,7913586074,10.99,AMAZON.CO.UK QV6D85DC5
OXFORDSHIRE CC,"CHILDRENS, YOUNG PEOPLE AND FAMILIES",CSS WANTAGE,CATERING PROVISIONS,10/01/2022,7913586084,11.8,SAINSBURYS S/MKTS
OXFORDSHIRE CC,"CHILDRENS, YOUNG PEOPLE AND FAMILIES",UASC POST 18,CLOTHING AND UNIFORMS,10/01/2022,7913586090,20.1,J D SPORTS FASHION PLC
OXFORDSHIRE CC,"CHILDRENS, YOUNG PEOPLE AND FAMILIES",UASC POST 18,CLOTHING AND UNIFORMS,10/01/2022,7913586092,35,J D SPORTS FASHION PLC
OXFORDSHIRE CC,ENVIRONMENT AND ECONOMY,HARD FM,VEHICLES AND PLANT - REPAIRS AND MAIN,10/01/2022,7913586106,19.28,HALFORDS ON LINE
OXFORDSHIRE CC,ENVIRONMENT AND ECONOMY,HARD FM,HARDWARE AND CROCKERY,10/01/2022,7913586112,202.61,B AND Q
OXFORDSHIRE CC,"CHILDRENS, YOUNG PEOPLE AND FAMILIES",THAME E&A HOME,CATERING PROVISIONS,10/01/2022,7913586354,128.65,TESCO STORES 2038
OXFORDSHIRE CC,"CHILDRENS, YOUNG PEOPLE AND FAMILIES",THAME E&A HOME,MATERIALS,10/01/2022,7913586358,7.98,AMAZON.CO.UK FO6AP3PM5
OXFORDSHIRE CC,"CHILDRENS, YOUNG PEOPLE AND FAMILIES",THAME E&A HOME,CATERING PROVISIONS,10/01/2022,7913586360,-2,TESCO STORES 2038
OXFORDSHIRE CC,SOCIAL AND COMMUNITY SERVICES,CSS - OXFORD,CATERING PROVISIONS,10/01/2022,7913586362,62.36,ALDI STORES 775-142
OXFORDSHIRE CC,"CHILDRENS, YOUNG PEOPLE AND FAMILIES","	LEAVING CARE CITY 2",EDUCATIONAL AND VOCATIONAL TRAINING ,10/01/2022,7913586378,39.5,EB  YOUTH IN MIND CONF
OXFORDSHIRE CC,"CHILDRENS, YOUNG PEOPLE AND FAMILIES",PAUSE PROGRAMME,CATERING PROVISIONS,10/01/2022,7913586626,20,TESCO STORE 2994
OXFORDSHIRE CC,"CHILDRENS, YOUNG PEOPLE AND FAMILIES",PAUSE PROGRAMME,DRUGS AND MEDICAL SUPPLIES,10/01/2022,7913586630,2.7,"BOOTS,THAME"
OXFORDSHIRE CC,"CHILDRENS, YOUNG PEOPLE AND FAMILIES",PAUSE PROGRAMME,CATERING PROVISIONS,10/01/2022,7913586632,-20,TESCO STORE 2994
OXFORDSHIRE CC,"CHILDRENS, YOUNG PEOPLE AND FAMILIES","	RIVERSIDE CENTRE",CLOTHING AND UNIFORMS,10/01/2022,7913586640,250,MARSPORT LTD
OXFORDSHIRE CC,"CHILDRENS, YOUNG PEOPLE AND FAMILIES",FAMILY SOLUTIONS PLUS NON-STAFF - NORTH,HARDWARE AND CROCKERY,10/01/2022,7913586646,39,B&Q LTD
OXFORDSHIRE CC,"CHILDRENS, YOUNG PEOPLE AND FAMILIES",FAMILY SOLUTIONS PLUS NON-STAFF � SOUTH,HIRE OF ACCOMMODATION AND FACILITIES,10/01/2022,7913586652,500,CROWNE PLAZA MARLOW
OXFORDSHIRE CC,"CHILDRENS, YOUNG PEOPLE AND FAMILIES",FAMILY SOLUTIONS PLUS NON-STAFF � SOUTH,HIRE OF ACCOMMODATION AND FACILITIES,10/01/2022,7913586654,500,CROWNE PLAZA MARLOW
OXFORDSHIRE CC,ENVIRONMENT AND ECONOMY,HARD FM,HARDWARE AND CROCKERY,10/01/2022,7913586116,74.25,B AND Q
OXFORDSHIRE CC,ENVIRONMENT AND ECONOMY,HARD FM,HARDWARE AND CROCKERY,10/01/2022,7913586120,55.36,B AND Q
OXFORDSHIRE CC,ENVIRONMENT AND ECONOMY,HARD FM,HARDWARE AND CROCKERY,10/01/2022,7913586124,34.43,SCREWFIX DIRECT
OXFORDSHIRE CC,ENVIRONMENT AND ECONOMY,HARD FM,MATERIALS,10/01/2022,7913586126,43.82,MANOMANO
OXFORDSHIRE CC,"CHILDRENS, YOUNG PEOPLE AND FAMILIES","	LOOKED AFTER CITY 2",OTHER TRANSPORT ARRANGEMENTS,10/01/2022,7913586552,2.3,OXFORD BUS COMPANY
OXFORDSHIRE CC,"CHILDRENS, YOUNG PEOPLE AND FAMILIES","	LOOKED AFTER CITY 2",PAYMENTS TO TRANSPORT OPERATORS,10/01/2022,7913586554,33.7,GWR OXFORD TO
OXFORDSHIRE CC,"CHILDRENS, YOUNG PEOPLE AND FAMILIES",EYNSHAM,CATERING PROVISIONS,10/01/2022,7913586558,3,CO-OPERATIVE FOOD
OXFORDSHIRE CC,"CHILDRENS, YOUNG PEOPLE AND FAMILIES",PAUSE PROGRAMME,CATERING PROVISIONS,10/01/2022,7913586808,14.27,TESCO STORE 2413
OXFORDSHIRE CC,SOCIAL AND COMMUNITY SERVICES,CSS WANTAGE,MATERIALS,10/01/2022,7913586030,15.65,SAINSBURYS S/MKTS
OXFORDSHIRE CC,SOCIAL AND COMMUNITY SERVICES,CSS WANTAGE,CATERING PROVISIONS,10/01/2022,7913586034,26,AMZNMKTPLACE
OXFORDSHIRE CC,SOCIAL AND COMMUNITY SERVICES,CSS - BANBURY,DRUGS AND MEDICAL SUPPLIES,10/01/2022,7913586320,30.97,AGE CO IADVISORS
OXFORDSHIRE CC,SOCIAL AND COMMUNITY SERVICES,CSS WALLINGFORD,MATERIALS,10/01/2022,7913586322,14.97,AMZNMKTPLACE
OXFORDSHIRE CC,SOCIAL AND COMMUNITY SERVICES,CSS WALLINGFORD,HARDWARE AND CROCKERY,10/01/2022,7913586324,5,CHILTON GARDEN CENTRE
OXFORDSHIRE CC,"CHILDRENS, YOUNG PEOPLE AND FAMILIES",HOUSE PROJECT,HOSPITALITY EXPENSES,10/01/2022,7913586582,2.65,WHITE HORSE
OXFORDSHIRE CC,"CHILDRENS, YOUNG PEOPLE AND FAMILIES",HOUSE PROJECT,CATERING PROVISIONS,10/01/2022,7913586584,10,CO-OP GROUP 350035
OXFORDSHIRE CC,ENVIRONMENT AND ECONOMY,"	SAMUELSON HOUSE",CATERING PROVISIONS,10/01/2022,7913586588,1.15,WM MORRISONS STORE
OXFORDSHIRE CC,SOCIAL AND COMMUNITY SERVICES,CSS WITNEY,MATERIALS,10/01/2022,7913586844,27.5,POUNDLAND LTD
OXFORDSHIRE CC,"CHILDRENS, YOUNG PEOPLE AND FAMILIES",KINGFISHER,CATERING PROVISIONS,10/01/2022,7913587184,12.66,ASDA SUPERSTORE
OXFORDSHIRE CC,"CHILDRENS, YOUNG PEOPLE AND FAMILIES",PAUSE PROGRAMME,CATERING PROVISIONS,10/01/2022,7913586622,20,TESCO STORE 2994
OXFORDSHIRE CC,"CHILDRENS, YOUNG PEOPLE AND FAMILIES",WITNEY,CATERING PROVISIONS,10/01/2022,7913586766,10,SAINSBURY'S S/MKT
OXFORDSHIRE CC,"CHILDRENS, YOUNG PEOPLE AND FAMILIES",WITNEY,CATERING PROVISIONS,10/01/2022,7913586770,37.23,SAINSBURY'S S/MKT
OXFORDSHIRE CC,"CHILDRENS, YOUNG PEOPLE AND FAMILIES",WITNEY,VEHICLE FUEL,10/01/2022,7913586772,11.15,TESCO PFS 3418
OXFORDSHIRE CC,"CHILDRENS, YOUNG PEOPLE AND FAMILIES","	LEAVING CARE NORTH",VEHICLE FUEL,10/01/2022,7913586776,23.54,SHELL BEACONSFIELD
OXFORDSHIRE CC,"CHILDRENS, YOUNG PEOPLE AND FAMILIES",THAME E&A HOME,"SUPPLIES, STATIONERY AND MATERIALS",10/01/2022,7913586780,14,HELLFIRECAVES.CO.UK
OXFORDSHIRE CC,SOCIAL AND COMMUNITY SERVICES,CSS WITNEY,CATERING PROVISIONS,10/01/2022,7913587060,39.17,SAINSBURY'S S/MKT
OXFORDSHIRE CC,SOCIAL AND COMMUNITY SERVICES,CSS WITNEY,MATERIALS,10/01/2022,7913587064,52.68,AMZNMKTPLACE
OXFORDSHIRE CC,SOCIAL AND COMMUNITY SERVICES,CSS WITNEY,MATERIALS,10/01/2022,7913587066,35,AMZNMKTPLACE
OXFORDSHIRE CC,SOCIAL AND COMMUNITY SERVICES,CSS WANTAGE,CATERING PROVISIONS,10/01/2022,7913587070,9.3,AMZNMKTPLACE
OXFORDSHIRE CC,SOCIAL AND COMMUNITY SERVICES,CSS WANTAGE,CATERING PROVISIONS,10/01/2022,7913587072,24.19,AMZNMKTPLACE
OXFORDSHIRE CC,CORPORATE CORE,,STATIONERY,10/01/2022,7913587450,75.6,LYRECO UK LTD
OXFORDSHIRE CC,CORPORATE CORE,,STATIONERY,10/01/2022,7913587454,5.22,LYRECO UK LTD
OXFORDSHIRE CC,CORPORATE CORE,,STATIONERY,10/01/2022,7913587458,89.34,LYRECO UK LTD
OXFORDSHIRE CC,CORPORATE CORE,,STATIONERY,10/01/2022,7913587462,11.99,LYRECO UK LTD
OXFORDSHIRE CC,"CHILDRENS, YOUNG PEOPLE AND FAMILIES",THAME E&A HOME,ENTERTAINMENT EXPENSES,10/01/2022,7913586782,40.5,WEST WYCOMBE CAVES LIM
OXFORDSHIRE CC,"CHILDRENS, YOUNG PEOPLE AND FAMILIES","	OCCG GRANT",CATERING PROVISIONS,10/01/2022,7913586796,4.05,ALDI STORES 775-142
OXFORDSHIRE CC,"CHILDRENS, YOUNG PEOPLE AND FAMILIES","	OCCG GRANT",CATERING PROVISIONS,10/01/2022,7913586800,0.08,ALDI STORES 775-142
OXFORDSHIRE CC,ENVIRONMENT AND ECONOMY,"	FLEET OPERATIONS",CATERING PROVISIONS,10/01/2022,7913587094,13.44,MILK AND MORE (RECUR
OXFORDSHIRE CC,ENVIRONMENT AND ECONOMY,"	FLEET OPERATIONS",LICENCES,10/01/2022,7913587100,159,TVLICENSING.CO.UK
OXFORDSHIRE CC,"CHILDRENS, YOUNG PEOPLE AND FAMILIES",CHILDREN IN CARE NON-STAFFING - CENTRL 1,PAYMENT TO GOVERNMENT DEPARTMENTS,10/01/2022,7913586250,-7.5,GEN REGISTER OFFICE
OXFORDSHIRE CC,SOCIAL AND COMMUNITY SERVICES,CSS BICESTER,MATERIALS,10/01/2022,7913586292,5.45,AMZNMKTPLACE AMAZON.CO
OXFORDSHIRE CC,SOCIAL AND COMMUNITY SERVICES,SCHOOLS FM CATERING AREA 2,MATERIALS,10/01/2022,7913586306,14.5,AMZNMKTPLACE
OXFORDSHIRE CC,SOCIAL AND COMMUNITY SERVICES,SCHOOLS FM CATERING AREA 2,MATERIALS,10/01/2022,7913586310,16.18,AMZNMKTPLACE
OXFORDSHIRE CC,"CHILDRENS, YOUNG PEOPLE AND FAMILIES",40 THE MOORS,MATERIALS,10/01/2022,7913586470,3,THEWORKS.CO.UK
OXFORDSHIRE CC,"CHILDRENS, YOUNG PEOPLE AND FAMILIES",40 THE MOORS,CLOTHING AND UNIFORMS,10/01/2022,7913586472,-24.99,SHOE ZONE (INTERNET)
OXFORDSHIRE CC,"CHILDRENS, YOUNG PEOPLE AND FAMILIES",40 THE MOORS,CATERING PROVISIONS,10/01/2022,7913586474,-119,ASDA GEORGE COM LEEDS
OXFORDSHIRE CC,"CHILDRENS, YOUNG PEOPLE AND FAMILIES",40 THE MOORS,MATERIALS,10/01/2022,7913586478,20.95,AMZNMKTPLACE AMAZON.CO
OXFORDSHIRE CC,"CHILDRENS, YOUNG PEOPLE AND FAMILIES",40 THE MOORS,MATERIALS,10/01/2022,7913586480,12.99,AMZNMKTPLACE AMAZON.CO
OXFORDSHIRE CC,"CHILDRENS, YOUNG PEOPLE AND FAMILIES",40 THE MOORS,MATERIALS,10/01/2022,7913586482,23.98,AMZNMKTPLACE AMAZON.CO
OXFORDSHIRE CC,"CHILDRENS, YOUNG PEOPLE AND FAMILIES",40 THE MOORS,MATERIALS,10/01/2022,7913586486,23.98,AMZNMKTPLACE AMAZON.CO
OXFORDSHIRE CC,"CHILDRENS, YOUNG PEOPLE AND FAMILIES",UASC 16&17,CLOTHING AND UNIFORMS,10/01/2022,7913586720,71.08,SPORTSDIRECT.COM
OXFORDSHIRE CC,"CHILDRENS, YOUNG PEOPLE AND FAMILIES","	LOOKED AFTER NORTH",VEHICLE FUEL,10/01/2022,7913586722,15.1,SAINSBURYS PETROL
OXFORDSHIRE CC,CORPORATE CORE,SCHOOLS FM CATERING AREA 4,CATERING PROVISIONS,10/01/2022,7913586732,43.5,SAINSBURYS S/MKTS
OXFORDSHIRE CC,SOCIAL AND COMMUNITY SERVICES,SCHOOLS FM CATERING AREA 1,MATERIALS,10/01/2022,7913586734,22.47,AMZNMKTPLACE
OXFORDSHIRE CC,"CHILDRENS, YOUNG PEOPLE AND FAMILIES","	LEAVING CARE CITY 2",CLOTHING AND UNIFORMS,10/01/2022,7913586736,84.99,SUPERDRY
OXFORDSHIRE CC,"CHILDRENS, YOUNG PEOPLE AND FAMILIES","	LEAVING CARE SOUTH",CLOTHING AND UNIFORMS,10/01/2022,7913586742,45.92,ZARA.COM
OXFORDSHIRE CC,SOCIAL AND COMMUNITY SERVICES,"	MUSEUMS COLLECTIONS",OTHER SERVICES,10/01/2022,7913587004,24.98,AMZNMKTPLACE AMAZON.CO
OXFORDSHIRE CC,"CHILDRENS, YOUNG PEOPLE AND FAMILIES",CNTL ERLY HELP-BBLEY,CATERING PROVISIONS,10/01/2022,7913587370,14.62,LIDL GB WITNEY
OXFORDSHIRE CC,"CHILDRENS, YOUNG PEOPLE AND FAMILIES",CNTL ERLY HELP-BBLEY,CATERING PROVISIONS,10/01/2022,7913587374,6,MARKS&SPENCER PLC SACA
OXFORDSHIRE CC,"CHILDRENS, YOUNG PEOPLE AND FAMILIES",CNTL ERLY HELP-BBLEY,CATERING PROVISIONS,10/01/2022,7913587376,27.65,SAINSBURYS S/MKTS
